Workbook

Sheet Biztosítási termékismertető

Sheet Ajánlat1
H3: UNION-Business Class
I4: Biztosítási ajánlat
B6: Módozat: | D6: 7910 | J6: Beérkezett:
B7: Üzletkötő neve: | G7: Üzletkötő kódja:
B8: Átdolgozás: | D8: nem | F8: Előzmény kötv.száma:
B9: Készítette: | E9: =CONCATENATE(" Tel: ",IFERROR(VLOOKUP(C9,B128:H142,7,FALSE),"")," E-mail: ",IFERROR(VLOOKUP(C9,B128:H142,4,FALSE),"")) -> Tel: E-mail: | J9: Hiv.szám:
B11: Adóigazgatási szám: 1049 1984-2-44 | H11: Ajánlat azonosító:
B14: SZERZŐDŐ/BIZTOSÍTOTT NEVE:
B16: Szerződő / Biztosított neve:
B18: Adószáma: | F18: Tel.: | H18: E-mail:
B19: Székhelye:
C20: ir.sz. | F20: helység | I20: közterület | K20: hsz.em.ajtó
B21: Levelezési címe: (amennyiben eltér a székhelye címétől)
C22: ir.sz. | F22: helység | I22: közterület | K22: hsz.em.ajtó
B24: Egyéni vállalkozó / Adószámos természetes személy esetén:
B25: Szül. ideje: | E25: Születési helye: | H25: Anyja neve:
B26: Adószáma: | F26: Tel: | H26: E-mail:
B27: Székhelye:
C28: ir.sz. | F28: helység | I28: utca | K28: hsz.em.ajtó
B30: Levelezési címe:
C31: ir.sz. | F31: helység | I31: utca | K31: hsz.em.ajtó
B32: Kockázatviselés helye: vagyonbiztosítási adatközlő szerint
C33: ir.sz. | F33: helység | I33: utca | K33: hsz.em.ajtó
B35: Kockázatviselés kezdete: | E35: =TODAY()+1 -> 2021-07-06 | I35: Forgalom: | K35: M Ft
B37: Kockázatviselés vége: | E37: határozatlan | I37: Lejárata: | N37: =IF(OR(MOD(YEAR(E35)-2000,4)=0,J37=""),365,IF(J37-E35=364,365,J37-E35+1)) -> 365 | O37: =DATEVALUE(CONCATENATE(YEAR(E35)+1,".",MONTH(E35),".",DAY(E35),".")) -> 2022-07-06
B38: =IF(E37=0,0,IF(AND(E37="határozatlan",J37=0),0,IF(AND(E37="1 évnél rövidebb",J37=0),"Kérjük töltse ki a lejárat dátumát",IF(AND(E37="1 évnél rövidebb",J37>0),0,)))) -> 0 | N38: =IF(IF(DAY(E35)<3,DAY(E35),DAY(E35-1))<16,E35-DAY(E35)+1,DATEVALUE(CONCATENATE(YEAR(E35),".",IF(MONTH(E35)=12,"01",MONTH(E35)+1),".01"))) -> 2021-07-01
B39: Díjfizetés kezdete: | E39: =E35 -> 2021-07-06 | I39: Évforduló: | J39: =IF(E37="1 évnél rövidebb","",IF(DAY(E35)=1,O37,IF(DAY(E35)>1,N41))) -> 2022-08-01
B41: Díjfizetés gyakorisága: | E41: =Díjszámítás!H113 -> éves | G41: Díjfizetés módja: | I41: banki átutalás | N41: =IF(E37="1 évnél rövidebb",0,IF(OR(J37="",N37>364),DATEVALUE(CONCATENATE(YEAR(E39)+1,".",IF(MONTH(E39)=12,"01",MONTH(E39)+1),".01")),"")) -> 2022-08-01
B43: Átutalási számlaszáma:
B44: Hitelbiztosítéki/társbiztosítotti záradék bejegyzése csak zálogkötelezetti/társbiztosítotti nyilatkozat csatolása esetén történik.
B45: Hitelt nyújtó pénzintézet neve, címe:
B47: Hitelszerződés száma: | G47: Kezdete: | J47: Lejárata:
B49: Hitelfedezet tárgya | J49: Hitel összege
B51: Záradékok
B52: =IF(E37="Felmondási jog 3 évre kizárva",B125,0) -> 0
E54: =Díjszámítás!C106 -> 0 | H54: =IF(AND(Díjszámítás!C12="8411 Általános közigazgatás",Díjszámítás!I95>0),"A biztosítás a 6-7-es számú záradékkal érvényes",0) -> 0
I58: Gyakoriság engedmény: 5%
B81: 00:00:00
D95: határozatlan | F95: igen
D96: 1 évnél rövidebb | F96: nem
D97: Felmondási jog 3 évre kizárva
D100: csekk
D101: csoportos beszedés (GIRO)
D102: banki átutalás
D103: egyéb
D105: 1. havi
D106: 2. negyedéves
D107: 3. féléves
D108: 4. éves
B110: Ajánlatkészítés dátuma: | E110: =TODAY() -> 2021-07-05
B112: Aláírás helye, dátuma | E112: =hely1 -> 0
C115: biztosításközvetítő aláírása | F115: szerződő aláírása
B116: ="Verzió: "&lejar.verzio -> Verzió: 1.19
B117: UNION-Business Class Érvényes: 2021.12.31.-ig
C120: Lejárat dátuma | E120: Verzió | F120: lejárati jelszó
C121: 2021-12-31 | E121: 1.19 | F121: Bukta
B125: A biztosított/szerződő vállalja, hogy jelen szerződést 3 évig nem mondja fel, ezért a biztosító a biztosítás éves díjából 10% engedményt nyújt. Amennyiben a szerződő/biztosított a 3 év lejárata előtt felmondja a szerződést, a tartamengedmény címén nyújtott kedvezményt meg kell fizetnie.
B128: Ambrus Péter | E128: ambrus.peter@unionbiztosito.hu | H128: 666-7656
B129: Árokszállási Zoltán | E129: ajanlatkeres@unionbiztosito.hu | H129: 486-4366
B130: Csanádi Zoltán | E130: csanadi.zoltan@unionbiztosito.hu | H130: 486-4235
B131: Dobi László | E131: dobi.laszlogabor@unionbiztosito.hu | H131: 486-4346
B132: Hajdók Viktória | E132: hajdok.viktoria@unionbiztosito.hu | H132: 486-4213
B133: Klinger József | E133: klinger.jozsef@unionbiztosito.hu | H133: 486-4232
B134: Utry Oszkár | E134: ajanlatkeres@unionbiztosito.hu | H134: 486-4215
A136: FALSE
A137: FALSE | B137: Hitelfedezeti

Sheet Tevékenység lista (hidden)
A1: Tevkor | B1: Vagyon | C1: Felelosseg | D1: Betores | E1: Üzemszünet | F1: Géptörés | G1: Elber | K1: =COUNTIF(L2:L302,"?*") -> 301 | AA1: Újraindít Akció lista
A2: 1011 Húsfeldolgozás, -tartósítás | B2: 3 | C2: 3 | D2: 1 | E2: 3 | F2: 2 | G2: 2 | I2: =IF(ISNUMBER(SEARCH($H$2,'Tevékenység lista'!A2)),MAX($I$1:I1)+1,0) -> 1 | J2: ABC, élelmiszer jellegű vegyeskereskedés | K2: =OFFSET($L$2,,,COUNTIF($L$2:$L$302,"?*")) -> ABC, élelmiszer jellegű vegyeskereskedés | L2: =IFERROR(VLOOKUP(ROWS($L$2:L2),I2:$J$302,2,FALSE),"") -> ABC, élelmiszer jellegű vegyeskereskedés | Q2: =IF(--ISNUMBER(SEARCH(Díjszámítás!$C$12,A2)),MAX($Q$1:Q1)+1,"") -> 1 | R2: =IFERROR(INDEX($A$2:$A$302,MATCH(ROWS($Q$2:Q2),$Q$2:$Q$302,0)),"") -> 1011 Húsfeldolgozás, -tartósítás | U2: =$R$2:INDEX($R$2:$R$302,COUNTIF($R$2:$R$302,"?*")) -> 1011 Húsfeldolgozás, -tartósítás | AA2: 4743 Audio-, videoberendezés kiskereskedelme | AB2: =IFERROR(VLOOKUP(Díjszámítás!C12,'Tevékenység lista'!AA2:AA34,1,FALSE),0) -> 0
A3: 1012 Baromfihús feldolgozása, tartósítása | B3: 3 | C3: 3 | D3: 1 | E3: 3 | F3: 2 | G3: 2 | I3: =IF(ISNUMBER(SEARCH($H$2,'Tevékenység lista'!A3)),MAX($I$1:I2)+1,0) -> 2 | J3: Acélkereskedelem | L3: =IFERROR(VLOOKUP(ROWS($L$2:L3),I3:$J$302,2,FALSE),"") -> Acélkereskedelem | Q3: =IF(--ISNUMBER(SEARCH(Díjszámítás!$C$12,A3)),MAX($Q$1:Q2)+1,"") -> 2 | R3: =IFERROR(INDEX($A$2:$A$302,MATCH(ROWS($Q$2:Q3),$Q$2:$Q$302,0)),"") -> 1012 Baromfihús feldolgozása, tartósítása | AA3: 4751 Textil-kiskereskedelem
A4: 1013 Hús-, baromfihús-készítmény gyártása | B4: 3 | C4: 3 | D4: 1 | E4: 3 | F4: 2 | G4: 2 | I4: =IF(ISNUMBER(SEARCH($H$2,'Tevékenység lista'!A4)),MAX($I$1:I3)+1,0) -> 3 | J4: Acélszerkezetépítés | L4: =IFERROR(VLOOKUP(ROWS($L$2:L4),I4:$J$302,2,FALSE),"") -> Acélszerkezetépítés | Q4: =IF(--ISNUMBER(SEARCH(Díjszámítás!$C$12,A4)),MAX($Q$1:Q3)+1,"") -> 3 | R4: =IFERROR(INDEX($A$2:$A$302,MATCH(ROWS($Q$2:Q4),$Q$2:$Q$302,0)),"") -> 1013 Hús-, baromfihús-készítmény gyártása | AA4: 4754 Villamos háztartási készülék kiskereskedelme
A5: 1020 Halfeldolgozás, -tartósítás | B5: 3 | C5: 3 | D5: 1 | E5: 3 | F5: 2 | G5: 2 | I5: =IF(ISNUMBER(SEARCH($H$2,'Tevékenység lista'!A5)),MAX($I$1:I4)+1,0) -> 4 | J5: Ács, állványozó | L5: =IFERROR(VLOOKUP(ROWS($L$2:L5),I5:$J$302,2,FALSE),"") -> Ács, állványozó | Q5: =IF(--ISNUMBER(SEARCH(Díjszámítás!$C$12,A5)),MAX($Q$1:Q4)+1,"") -> 4 | R5: =IFERROR(INDEX($A$2:$A$302,MATCH(ROWS($Q$2:Q5),$Q$2:$Q$302,0)),"") -> 1020 Halfeldolgozás, -tartósítás | AA5: 4759 Bútor, világítási eszköz, egyéb háztartási cikk kiskereskedelme
A6: 1031 Burgonyafeldolgozás, -tartósítás | B6: 3 | C6: 3 | D6: 1 | E6: 3 | F6: 2 | G6: 1 | I6: =IF(ISNUMBER(SEARCH($H$2,'Tevékenység lista'!A6)),MAX($I$1:I5)+1,0) -> 5 | J6: Ajándék, bizsu kereskedés | L6: =IFERROR(VLOOKUP(ROWS($L$2:L6),I6:$J$302,2,FALSE),"") -> Ajándék, bizsu kereskedés | Q6: =IF(--ISNUMBER(SEARCH(Díjszámítás!$C$12,A6)),MAX($Q$1:Q5)+1,"") -> 5 | R6: =IFERROR(INDEX($A$2:$A$302,MATCH(ROWS($Q$2:Q6),$Q$2:$Q$302,0)),"") -> 1031 Burgonyafeldolgozás, -tartósítás | AA6: 4761 Könyv-kiskereskedelem
A7: 1032 Gyümölcs-, zöldséglé gyártása | B7: 3 | C7: 3 | D7: 1 | E7: 3 | F7: 2 | G7: 1 | I7: =IF(ISNUMBER(SEARCH($H$2,'Tevékenység lista'!A7)),MAX($I$1:I6)+1,0) -> 6 | J7: Akkumulátor kereskedelem | L7: =IFERROR(VLOOKUP(ROWS($L$2:L7),I7:$J$302,2,FALSE),"") -> Akkumulátor kereskedelem | Q7: =IF(--ISNUMBER(SEARCH(Díjszámítás!$C$12,A7)),MAX($Q$1:Q6)+1,"") -> 6 | R7: =IFERROR(INDEX($A$2:$A$302,MATCH(ROWS($Q$2:Q7),$Q$2:$Q$302,0)),"") -> 1032 Gyümölcs-, zöldséglé gyártása | AA7: 4763 Zene-, videofelvétel kiskereskedelme
A8: 1039 Egyéb gyümölcs-, zöldségfeldolgozás, -tartósítás | B8: 3 | C8: 3 | D8: 1 | E8: 3 | F8: 2 | G8: 1 | I8: =IF(ISNUMBER(SEARCH($H$2,'Tevékenység lista'!A8)),MAX($I$1:I7)+1,0) -> 7 | J8: Akkumulátor, szárazelemgyártás | L8: =IFERROR(VLOOKUP(ROWS($L$2:L8),I8:$J$302,2,FALSE),"") -> Akkumulátor, szárazelemgyártás | Q8: =IF(--ISNUMBER(SEARCH(Díjszámítás!$C$12,A8)),MAX($Q$1:Q7)+1,"") -> 7 | R8: =IFERROR(INDEX($A$2:$A$302,MATCH(ROWS($Q$2:Q8),$Q$2:$Q$302,0)),"") -> 1039 Egyéb gyümölcs-, zöldségfeldolgozás, -tartósítás | AA8: 4764 Sportszer-kiskereskedelem
A9: 1041 Olaj gyártása | B9: 5 | C9: 3 | D9: 2 | E9: 5 | F9: 3 | G9: 2 | I9: =IF(ISNUMBER(SEARCH($H$2,'Tevékenység lista'!A9)),MAX($I$1:I8)+1,0) -> 8 | J9: Alapfokú általános oktatás | L9: =IFERROR(VLOOKUP(ROWS($L$2:L9),I9:$J$302,2,FALSE),"") -> Alapfokú általános oktatás | Q9: =IF(--ISNUMBER(SEARCH(Díjszámítás!$C$12,A9)),MAX($Q$1:Q8)+1,"") -> 8 | R9: =IFERROR(INDEX($A$2:$A$302,MATCH(ROWS($Q$2:Q9),$Q$2:$Q$302,0)),"") -> 1041 Olaj gyártása | AA9: 4765 Játék-kiskereskedelem
A10: 1042 Margarin gyártása | B10: 5 | C10: 3 | D10: 2 | E10: 5 | F10: 3 | G10: 2 | I10: =IF(ISNUMBER(SEARCH($H$2,'Tevékenység lista'!A10)),MAX($I$1:I9)+1,0) -> 9 | J10: Állategészségügyi tevékenység | L10: =IFERROR(VLOOKUP(ROWS($L$2:L10),I10:$J$302,2,FALSE),"") -> Állategészségügyi tevékenység | Q10: =IF(--ISNUMBER(SEARCH(Díjszámítás!$C$12,A10)),MAX($Q$1:Q9)+1,"") -> 9 | R10: =IFERROR(INDEX($A$2:$A$302,MATCH(ROWS($Q$2:Q10),$Q$2:$Q$302,0)),"") -> 1042 Margarin gyártása | AA10: 4771 Ruházat kiskereskedelem
A11: 1051 Tejtermék gyártása | B11: 3 | C11: 3 | D11: 1 | E11: 3 | F11: 3 | G11: 1 | I11: =IF(ISNUMBER(SEARCH($H$2,'Tevékenység lista'!A11)),MAX($I$1:I10)+1,0) -> 10 | J11: Állateledel kereskedés | L11: =IFERROR(VLOOKUP(ROWS($L$2:L11),I11:$J$302,2,FALSE),"") -> Állateledel kereskedés | Q11: =IF(--ISNUMBER(SEARCH(Díjszámítás!$C$12,A11)),MAX($Q$1:Q10)+1,"") -> 10 | R11: =IFERROR(INDEX($A$2:$A$302,MATCH(ROWS($Q$2:Q11),$Q$2:$Q$302,0)),"") -> 1051 Tejtermék gyártása | AA11: 4772 Lábbeli-, bőráru-kiskereskedelem
A12: 1052 Jégkrém gyártása | B12: 3 | C12: 3 | D12: 1 | E12: 3 | F12: 3 | G12: 1 | I12: =IF(ISNUMBER(SEARCH($H$2,'Tevékenység lista'!A12)),MAX($I$1:I11)+1,0) -> 11 | J12: Általános rendeltetésű gépek és berendezések gyártása | L12: =IFERROR(VLOOKUP(ROWS($L$2:L12),I12:$J$302,2,FALSE),"") -> Általános rendeltetésű gépek és berendezések gyártása | Q12: =IF(--ISNUMBER(SEARCH(Díjszámítás!$C$12,A12)),MAX($Q$1:Q11)+1,"") -> 11 | R12: =IFERROR(INDEX($A$2:$A$302,MATCH(ROWS($Q$2:Q12),$Q$2:$Q$302,0)),"") -> 1052 Jégkrém gyártása | AA12: 5510 Szállodai szolgáltatás
A13: 1071 Kenyér; friss pékáru gyártása | B13: 3 | C13: 3 | D13: 1 | E13: 3 | F13: 3 | G13: 2 | I13: =IF(ISNUMBER(SEARCH($H$2,'Tevékenység lista'!A13)),MAX($I$1:I12)+1,0) -> 12 | J13: Antikvárium | L13: =IFERROR(VLOOKUP(ROWS($L$2:L13),I13:$J$302,2,FALSE),"") -> Antikvárium | Q13: =IF(--ISNUMBER(SEARCH(Díjszámítás!$C$12,A13)),MAX($Q$1:Q12)+1,"") -> 12 | R13: =IFERROR(INDEX($A$2:$A$302,MATCH(ROWS($Q$2:Q13),$Q$2:$Q$302,0)),"") -> 1071 Kenyér; friss pékáru gyártása | AA13: 5520 Üdülési, egyéb átmeneti szálláshely-szolgáltatás
A14: 1072 Tartósított lisztes áru gyártása | B14: 4 | C14: 3 | D14: 1 | E14: 4 | F14: 2 | G14: 1 | I14: =IF(ISNUMBER(SEARCH($H$2,'Tevékenység lista'!A14)),MAX($I$1:I13)+1,0) -> 13 | J14: Árnyékolástechnikai berendezések kereskedelme és telepítése | L14: =IFERROR(VLOOKUP(ROWS($L$2:L14),I14:$J$302,2,FALSE),"") -> Árnyékolástechnikai berendezések kereskedelme és telepítése | Q14: =IF(--ISNUMBER(SEARCH(Díjszámítás!$C$12,A14)),MAX($Q$1:Q13)+1,"") -> 13 | R14: =IFERROR(INDEX($A$2:$A$302,MATCH(ROWS($Q$2:Q14),$Q$2:$Q$302,0)),"") -> 1072 Tartósított lisztes áru gyártása | AA14: 5590 Egyéb szálláshely-szolgáltatás
A15: 1073 Tésztafélék gyártása | B15: 4 | C15: 3 | D15: 1 | E15: 4 | F15: 2 | G15: 1 | I15: =IF(ISNUMBER(SEARCH($H$2,'Tevékenység lista'!A15)),MAX($I$1:I14)+1,0) -> 14 | J15: Asztalosműhely | L15: =IFERROR(VLOOKUP(ROWS($L$2:L15),I15:$J$302,2,FALSE),"") -> Asztalosműhely | Q15: =IF(--ISNUMBER(SEARCH(Díjszámítás!$C$12,A15)),MAX($Q$1:Q14)+1,"") -> 14 | R15: =IFERROR(INDEX($A$2:$A$302,MATCH(ROWS($Q$2:Q15),$Q$2:$Q$302,0)),"") -> 1073 Tésztafélék gyártása | AA15: 5610 Éttermi, mozgó vendéglátás
A16: 1081 Cukorgyártás | B16: 4 | C16: 3 | D16: 2 | E16: 4 | F16: 3 | G16: 2 | I16: =IF(ISNUMBER(SEARCH($H$2,'Tevékenység lista'!A16)),MAX($I$1:I15)+1,0) -> 15 | J16: Autógumi kereskedelem | L16: =IFERROR(VLOOKUP(ROWS($L$2:L16),I16:$J$302,2,FALSE),"") -> Autógumi kereskedelem | Q16: =IF(--ISNUMBER(SEARCH(Díjszámítás!$C$12,A16)),MAX($Q$1:Q15)+1,"") -> 15 | R16: =IFERROR(INDEX($A$2:$A$302,MATCH(ROWS($Q$2:Q16),$Q$2:$Q$302,0)),"") -> 1081 Cukorgyártás | AA16: 5621 Rendezvényi étkeztetés
A17: 1082 Édesség gyártása | B17: 4 | C17: 3 | D17: 2 | E17: 4 | F17: 3 | G17: 2 | I17: =IF(ISNUMBER(SEARCH($H$2,'Tevékenység lista'!A17)),MAX($I$1:I16)+1,0) -> 16 | J17: Automatika és robotok gyártása | L17: =IFERROR(VLOOKUP(ROWS($L$2:L17),I17:$J$302,2,FALSE),"") -> Automatika és robotok gyártása | Q17: =IF(--ISNUMBER(SEARCH(Díjszámítás!$C$12,A17)),MAX($Q$1:Q16)+1,"") -> 16 | R17: =IFERROR(INDEX($A$2:$A$302,MATCH(ROWS($Q$2:Q17),$Q$2:$Q$302,0)),"") -> 1082 Édesség gyártása | AA17: 5629 Egyéb vendéglátás
A18: 1083 Tea, kávé feldolgozása | B18: 6 | C18: 3 | D18: 3 | E18: 6 | F18: 2 | G18: 2 | I18: =IF(ISNUMBER(SEARCH($H$2,'Tevékenység lista'!A18)),MAX($I$1:I17)+1,0) -> 17 | J18: Automatika és robotok kereskedelme | L18: =IFERROR(VLOOKUP(ROWS($L$2:L18),I18:$J$302,2,FALSE),"") -> Automatika és robotok kereskedelme | Q18: =IF(--ISNUMBER(SEARCH(Díjszámítás!$C$12,A18)),MAX($Q$1:Q17)+1,"") -> 17 | R18: =IFERROR(INDEX($A$2:$A$302,MATCH(ROWS($Q$2:Q18),$Q$2:$Q$302,0)),"") -> 1083 Tea, kávé feldolgozása | AA18: 5630 Italszolgáltatás
A19: 1084 Fűszer, ételízesítő gyártása | B19: 6 | C19: 3 | D19: 1 | E19: 6 | F19: 2 | G19: 2 | I19: =IF(ISNUMBER(SEARCH($H$2,'Tevékenység lista'!A19)),MAX($I$1:I18)+1,0) -> 18 | J19: Bababolt | L19: =IFERROR(VLOOKUP(ROWS($L$2:L19),I19:$J$302,2,FALSE),"") -> Bababolt | Q19: =IF(--ISNUMBER(SEARCH(Díjszámítás!$C$12,A19)),MAX($Q$1:Q18)+1,"") -> 18 | R19: =IFERROR(INDEX($A$2:$A$302,MATCH(ROWS($Q$2:Q19),$Q$2:$Q$302,0)),"") -> 1084 Fűszer, ételízesítő gyártása | AA19: 5914 Filmvetítés
A20: 1085 Készétel gyártása | B20: 3 | C20: 3 | D20: 1 | E20: 3 | F20: 3 | G20: 3 | I20: =IF(ISNUMBER(SEARCH($H$2,'Tevékenység lista'!A20)),MAX($I$1:I19)+1,0) -> 19 | J20: Bádogos | L20: =IFERROR(VLOOKUP(ROWS($L$2:L20),I20:$J$302,2,FALSE),"") -> Bádogos | Q20: =IF(--ISNUMBER(SEARCH(Díjszámítás!$C$12,A20)),MAX($Q$1:Q19)+1,"") -> 19 | R20: =IFERROR(INDEX($A$2:$A$302,MATCH(ROWS($Q$2:Q20),$Q$2:$Q$302,0)),"") -> 1085 Készétel gyártása | AA20: 7722 Videokazetta, lemez kölcsönzése
A21: 1086 Homogenizált, diétás étel gyártása | B21: 3 | C21: 3 | D21: 1 | E21: 3 | F21: 3 | G21: 3 | I21: =IF(ISNUMBER(SEARCH($H$2,'Tevékenység lista'!A21)),MAX($I$1:I20)+1,0) -> 20 | J21: Bankok | L21: =IFERROR(VLOOKUP(ROWS($L$2:L21),I21:$J$302,2,FALSE),"") -> Bankok | Q21: =IF(--ISNUMBER(SEARCH(Díjszámítás!$C$12,A21)),MAX($Q$1:Q20)+1,"") -> 20 | R21: =IFERROR(INDEX($A$2:$A$302,MATCH(ROWS($Q$2:Q21),$Q$2:$Q$302,0)),"") -> 1086 Homogenizált, diétás étel gyártása | AA21: 7911 Utazásközvetítés
A22: 1089 M.n.s. egyéb élelmiszer gyártása | B22: 3 | C22: 3 | D22: 1 | E22: 3 | F22: 3 | G22: 3 | I22: =IF(ISNUMBER(SEARCH($H$2,'Tevékenység lista'!A22)),MAX($I$1:I21)+1,0) -> 21 | J22: Barkács-műszaki áru kereskedelem (faáruk nélkül) | L22: =IFERROR(VLOOKUP(ROWS($L$2:L22),I22:$J$302,2,FALSE),"") -> Barkács-műszaki áru kereskedelem (faáruk nélkül) | Q22: =IF(--ISNUMBER(SEARCH(Díjszámítás!$C$12,A22)),MAX($Q$1:Q21)+1,"") -> 21 | R22: =IFERROR(INDEX($A$2:$A$302,MATCH(ROWS($Q$2:Q22),$Q$2:$Q$302,0)),"") -> 1089 M.n.s. egyéb élelmiszer gyártása | AA22: 7912 Utazásszervezés
A23: 1091 Haszonállat-eledel gyártása | B23: 3 | C23: 3 | D23: 1 | E23: 3 | F23: 3 | G23: 3 | I23: =IF(ISNUMBER(SEARCH($H$2,'Tevékenység lista'!A23)),MAX($I$1:I22)+1,0) -> 22 | J23: Barkácsgépek gyártása | L23: =IFERROR(VLOOKUP(ROWS($L$2:L23),I23:$J$302,2,FALSE),"") -> Barkácsgépek gyártása | Q23: =IF(--ISNUMBER(SEARCH(Díjszámítás!$C$12,A23)),MAX($Q$1:Q22)+1,"") -> 22 | R23: =IFERROR(INDEX($A$2:$A$302,MATCH(ROWS($Q$2:Q23),$Q$2:$Q$302,0)),"") -> 1091 Haszonállat-eledel gyártása | AA23: 8551 Sport, szabadidős képzés
A24: 1092 Hobbiállat-eledel gyártása | B24: 3 | C24: 3 | D24: 1 | E24: 3 | F24: 3 | G24: 3 | I24: =IF(ISNUMBER(SEARCH($H$2,'Tevékenység lista'!A24)),MAX($I$1:I23)+1,0) -> 23 | J24: Baromfi-feldolgozás | L24: =IFERROR(VLOOKUP(ROWS($L$2:L24),I24:$J$302,2,FALSE),"") -> Baromfi-feldolgozás | Q24: =IF(--ISNUMBER(SEARCH(Díjszámítás!$C$12,A24)),MAX($Q$1:Q23)+1,"") -> 23 | R24: =IFERROR(INDEX($A$2:$A$302,MATCH(ROWS($Q$2:Q24),$Q$2:$Q$302,0)),"") -> 1092 Hobbiállat-eledel gyártása | AA24: 8553 Járművezető-oktatás
A25: 1101 Desztillált szeszes ital gyártása | B25: 6 | C25: 3 | D25: 2 | E25: 6 | F25: 3 | G25: 1 | I25: =IF(ISNUMBER(SEARCH($H$2,'Tevékenység lista'!A25)),MAX($I$1:I24)+1,0) -> 24 | J25: Beton-, cement- és gipsztermékek gyártása | L25: =IFERROR(VLOOKUP(ROWS($L$2:L25),I25:$J$302,2,FALSE),"") -> Beton-, cement- és gipsztermékek gyártása | Q25: =IF(--ISNUMBER(SEARCH(Díjszámítás!$C$12,A25)),MAX($Q$1:Q24)+1,"") -> 24 | R25: =IFERROR(INDEX($A$2:$A$302,MATCH(ROWS($Q$2:Q25),$Q$2:$Q$302,0)),"") -> 1101 Desztillált szeszes ital gyártása | AA25: 8559 M.n.s. egyéb oktatás
A26: 1102 Szőlőbor termelése | B26: 2 | C26: 3 | D26: 1 | E26: 2 | F26: 3 | G26: 1 | I26: =IF(ISNUMBER(SEARCH($H$2,'Tevékenység lista'!A26)),MAX($I$1:I25)+1,0) -> 25 | J26: Biztonságtechnikai berendezések gyártása | L26: =IFERROR(VLOOKUP(ROWS($L$2:L26),I26:$J$302,2,FALSE),"") -> Biztonságtechnikai berendezések gyártása | Q26: =IF(--ISNUMBER(SEARCH(Díjszámítás!$C$12,A26)),MAX($Q$1:Q25)+1,"") -> 25 | R26: =IFERROR(INDEX($A$2:$A$302,MATCH(ROWS($Q$2:Q26),$Q$2:$Q$302,0)),"") -> 1102 Szőlőbor termelése | AA26: 8560 Oktatást kiegészítő tevékenység
A27: 1103 Gyümölcsbor termelése | B27: 2 | C27: 3 | D27: 1 | E27: 2 | F27: 3 | G27: 1 | I27: =IF(ISNUMBER(SEARCH($H$2,'Tevékenység lista'!A27)),MAX($I$1:I26)+1,0) -> 26 | J27: Biztonságtechnikai berendezések kereskedelme | L27: =IFERROR(VLOOKUP(ROWS($L$2:L27),I27:$J$302,2,FALSE),"") -> Biztonságtechnikai berendezések kereskedelme | Q27: =IF(--ISNUMBER(SEARCH(Díjszámítás!$C$12,A27)),MAX($Q$1:Q26)+1,"") -> 26 | R27: =IFERROR(INDEX($A$2:$A$302,MATCH(ROWS($Q$2:Q27),$Q$2:$Q$302,0)),"") -> 1103 Gyümölcsbor termelése | AA27: 9004 Művészeti létesítmények működtetése
A28: 1104 Egyéb nem desztillált, erjesztett ital gyártása | B28: 2 | C28: 3 | D28: 1 | E28: 2 | F28: 3 | G28: 1 | I28: =IF(ISNUMBER(SEARCH($H$2,'Tevékenység lista'!A28)),MAX($I$1:I27)+1,0) -> 27 | J28: Borfeldolgozás, pezsgőgyártás, palackozás | L28: =IFERROR(VLOOKUP(ROWS($L$2:L28),I28:$J$302,2,FALSE),"") -> Borfeldolgozás, pezsgőgyártás, palackozás | Q28: =IF(--ISNUMBER(SEARCH(Díjszámítás!$C$12,A28)),MAX($Q$1:Q27)+1,"") -> 27 | R28: =IFERROR(INDEX($A$2:$A$302,MATCH(ROWS($Q$2:Q28),$Q$2:$Q$302,0)),"") -> 1104 Egyéb nem desztillált, erjesztett ital gyártása | AA28: 9311 Sportlétesítmény működtetése
A29: 1105 Sörgyártás | B29: 6 | C29: 3 | D29: 2 | E29: 6 | F29: 3 | G29: 1 | I29: =IF(ISNUMBER(SEARCH($H$2,'Tevékenység lista'!A29)),MAX($I$1:I28)+1,0) -> 28 | J29: Borozó, söröző, italbolt, büfé, bisztró, kávézó, eszpresszó | L29: =IFERROR(VLOOKUP(ROWS($L$2:L29),I29:$J$302,2,FALSE),"") -> Borozó, söröző, italbolt, büfé, bisztró, kávézó, eszpresszó | Q29: =IF(--ISNUMBER(SEARCH(Díjszámítás!$C$12,A29)),MAX($Q$1:Q28)+1,"") -> 28 | R29: =IFERROR(INDEX($A$2:$A$302,MATCH(ROWS($Q$2:Q29),$Q$2:$Q$302,0)),"") -> 1105 Sörgyártás | AA29: 9312 Sportegyesületi tevékenység
A30: 1107 Üdítőital, ásványvíz gyártása | B30: 3 | C30: 3 | D30: 1 | E30: 3 | F30: 3 | G30: 2 | I30: =IF(ISNUMBER(SEARCH($H$2,'Tevékenység lista'!A30)),MAX($I$1:I29)+1,0) -> 29 | J30: Bölcsőde | L30: =IFERROR(VLOOKUP(ROWS($L$2:L30),I30:$J$302,2,FALSE),"") -> Bölcsőde | Q30: =IF(--ISNUMBER(SEARCH(Díjszámítás!$C$12,A30)),MAX($Q$1:Q29)+1,"") -> 29 | R30: =IFERROR(INDEX($A$2:$A$302,MATCH(ROWS($Q$2:Q30),$Q$2:$Q$302,0)),"") -> 1107 Üdítőital, ásványvíz gyártása | AA30: 9313 Testedzési szolgáltatás
A31: 1411 Bőrruházat gyártása | B31: 4 | C31: 3 | D31: 3 | E31: 4 | F31: 2 | G31: 1 | I31: =IF(ISNUMBER(SEARCH($H$2,'Tevékenység lista'!A31)),MAX($I$1:I30)+1,0) -> 30 | J31: Bőr konfekcionált termékek javítása | L31: =IFERROR(VLOOKUP(ROWS($L$2:L31),I31:$J$302,2,FALSE),"") -> Bőr konfekcionált termékek javítása | Q31: =IF(--ISNUMBER(SEARCH(Díjszámítás!$C$12,A31)),MAX($Q$1:Q30)+1,"") -> 30 | R31: =IFERROR(INDEX($A$2:$A$302,MATCH(ROWS($Q$2:Q31),$Q$2:$Q$302,0)),"") -> 1411 Bőrruházat gyártása | AA31: 9319 Egyéb sporttevékenység
A32: 1412 Munkaruházat gyártása | B32: 4 | C32: 3 | D32: 2 | E32: 4 | F32: 4 | G32: 2 | I32: =IF(ISNUMBER(SEARCH($H$2,'Tevékenység lista'!A32)),MAX($I$1:I31)+1,0) -> 31 | J32: Bőr, bőrdíszmű kereskedelem | L32: =IFERROR(VLOOKUP(ROWS($L$2:L32),I32:$J$302,2,FALSE),"") -> Bőr, bőrdíszmű kereskedelem | Q32: =IF(--ISNUMBER(SEARCH(Díjszámítás!$C$12,A32)),MAX($Q$1:Q31)+1,"") -> 31 | R32: =IFERROR(INDEX($A$2:$A$302,MATCH(ROWS($Q$2:Q32),$Q$2:$Q$302,0)),"") -> 1412 Munkaruházat gyártása | AA32: 9329 M.n.s. egyéb szórakoztatás, szabadidős tevékenység
A33: 1413 Felsőruházat gyártása (kivéve: munkaruházat) | B33: 4 | C33: 3 | D33: 2 | E33: 4 | F33: 4 | G33: 2 | I33: =IF(ISNUMBER(SEARCH($H$2,'Tevékenység lista'!A33)),MAX($I$1:I32)+1,0) -> 32 | J33: Bőrkikészítés, bőrtermékek gyártása | L33: =IFERROR(VLOOKUP(ROWS($L$2:L33),I33:$J$302,2,FALSE),"") -> Bőrkikészítés, bőrtermékek gyártása | Q33: =IF(--ISNUMBER(SEARCH(Díjszámítás!$C$12,A33)),MAX($Q$1:Q32)+1,"") -> 32 | R33: =IFERROR(INDEX($A$2:$A$302,MATCH(ROWS($Q$2:Q33),$Q$2:$Q$302,0)),"") -> 1413 Felsőruházat gyártása (kivéve: munkaruházat) | AA33: 9524 Bútor, lakberendezési tárgy javítása
A34: 1414 Alsóruházat gyártása | B34: 4 | C34: 3 | D34: 2 | E34: 4 | F34: 4 | G34: 2 | I34: =IF(ISNUMBER(SEARCH($H$2,'Tevékenység lista'!A34)),MAX($I$1:I33)+1,0) -> 33 | J34: Bőrruházat gyártása | L34: =IFERROR(VLOOKUP(ROWS($L$2:L34),I34:$J$302,2,FALSE),"") -> Bőrruházat gyártása | Q34: =IF(--ISNUMBER(SEARCH(Díjszámítás!$C$12,A34)),MAX($Q$1:Q33)+1,"") -> 33 | R34: =IFERROR(INDEX($A$2:$A$302,MATCH(ROWS($Q$2:Q34),$Q$2:$Q$302,0)),"") -> 1414 Alsóruházat gyártása | AA34: 9602 Fodrászat, szépségápolás
A35: 1419 Egyéb ruházat, kiegészítők gyártása | B35: 4 | C35: 3 | D35: 2 | E35: 4 | F35: 4 | G35: 2 | I35: =IF(ISNUMBER(SEARCH($H$2,'Tevékenység lista'!A35)),MAX($I$1:I34)+1,0) -> 34 | J35: Bőrruházati kereskedelem | L35: =IFERROR(VLOOKUP(ROWS($L$2:L35),I35:$J$302,2,FALSE),"") -> Bőrruházati kereskedelem | Q35: =IF(--ISNUMBER(SEARCH(Díjszámítás!$C$12,A35)),MAX($Q$1:Q34)+1,"") -> 34 | R35: =IFERROR(INDEX($A$2:$A$302,MATCH(ROWS($Q$2:Q35),$Q$2:$Q$302,0)),"") -> 1419 Egyéb ruházat, kiegészítők gyártása
A36: 1431 Kötött, hurkolt harisnyafélék gyártása | B36: 4 | C36: 3 | D36: 2 | E36: 4 | F36: 4 | G36: 2 | I36: =IF(ISNUMBER(SEARCH($H$2,'Tevékenység lista'!A36)),MAX($I$1:I35)+1,0) -> 35 | J36: Brókercégek (biztosítási, befektetési) | L36: =IFERROR(VLOOKUP(ROWS($L$2:L36),I36:$J$302,2,FALSE),"") -> Brókercégek (biztosítási, befektetési) | Q36: =IF(--ISNUMBER(SEARCH(Díjszámítás!$C$12,A36)),MAX($Q$1:Q35)+1,"") -> 35 | R36: =IFERROR(INDEX($A$2:$A$302,MATCH(ROWS($Q$2:Q36),$Q$2:$Q$302,0)),"") -> 1431 Kötött, hurkolt harisnyafélék gyártása
A37: 1439 Egyéb kötött, hurkolt ruházati termék gyártása | B37: 4 | C37: 3 | D37: 2 | E37: 4 | F37: 4 | G37: 2 | I37: =IF(ISNUMBER(SEARCH($H$2,'Tevékenység lista'!A37)),MAX($I$1:I36)+1,0) -> 36 | J37: Bútor (fa alapanyagú, illetve kárpitozott) kereskedelem | L37: =IFERROR(VLOOKUP(ROWS($L$2:L37),I37:$J$302,2,FALSE),"") -> Bútor (fa alapanyagú, illetve kárpitozott) kereskedelem | Q37: =IF(--ISNUMBER(SEARCH(Díjszámítás!$C$12,A37)),MAX($Q$1:Q36)+1,"") -> 36 | R37: =IFERROR(INDEX($A$2:$A$302,MATCH(ROWS($Q$2:Q37),$Q$2:$Q$302,0)),"") -> 1439 Egyéb kötött, hurkolt ruházati termék gyártása
A38: 1520 Lábbeligyártás | B38: 4 | C38: 3 | D38: 2 | E38: 4 | F38: 2 | G38: 1 | I38: =IF(ISNUMBER(SEARCH($H$2,'Tevékenység lista'!A38)),MAX($I$1:I37)+1,0) -> 37 | J38: Bútorgyártás egyéb anyagok felhasználásával (fém, műanyag) | L38: =IFERROR(VLOOKUP(ROWS($L$2:L38),I38:$J$302,2,FALSE),"") -> Bútorgyártás egyéb anyagok felhasználásával (fém, műanyag) | Q38: =IF(--ISNUMBER(SEARCH(Díjszámítás!$C$12,A38)),MAX($Q$1:Q37)+1,"") -> 37 | R38: =IFERROR(INDEX($A$2:$A$302,MATCH(ROWS($Q$2:Q38),$Q$2:$Q$302,0)),"") -> 1520 Lábbeligyártás
A39: 1610 Fűrészárugyártás | B39: 8 | C39: 4 | D39: 2 | E39: 8 | F39: 4 | G39: 3 | I39: =IF(ISNUMBER(SEARCH($H$2,'Tevékenység lista'!A39)),MAX($I$1:I38)+1,0) -> 38 | J39: Bútorgyártás, egyéb feldolgozóipari termékek gyártása | L39: =IFERROR(VLOOKUP(ROWS($L$2:L39),I39:$J$302,2,FALSE),"") -> Bútorgyártás, egyéb feldolgozóipari termékek gyártása | Q39: =IF(--ISNUMBER(SEARCH(Díjszámítás!$C$12,A39)),MAX($Q$1:Q38)+1,"") -> 38 | R39: =IFERROR(INDEX($A$2:$A$302,MATCH(ROWS($Q$2:Q39),$Q$2:$Q$302,0)),"") -> 1610 Fűrészárugyártás
A40: 1621 Falemezgyártás | B40: 6 | C40: 4 | D40: 2 | E40: 6 | F40: 1 | G40: 1 | I40: =IF(ISNUMBER(SEARCH($H$2,'Tevékenység lista'!A40)),MAX($I$1:I39)+1,0) -> 39 | J40: Bútorjavítás (fa anyagok felhasználásával) | L40: =IFERROR(VLOOKUP(ROWS($L$2:L40),I40:$J$302,2,FALSE),"") -> Bútorjavítás (fa anyagok felhasználásával) | Q40: =IF(--ISNUMBER(SEARCH(Díjszámítás!$C$12,A40)),MAX($Q$1:Q39)+1,"") -> 39 | R40: =IFERROR(INDEX($A$2:$A$302,MATCH(ROWS($Q$2:Q40),$Q$2:$Q$302,0)),"") -> 1621 Falemezgyártás
A41: 1622 Parkettagyártás | B41: 6 | C41: 4 | D41: 2 | E41: 6 | F41: 1 | G41: 1 | I41: =IF(ISNUMBER(SEARCH($H$2,'Tevékenység lista'!A41)),MAX($I$1:I40)+1,0) -> 40 | J41: Bútorkereskedelem | L41: =IFERROR(VLOOKUP(ROWS($L$2:L41),I41:$J$302,2,FALSE),"") -> Bútorkereskedelem | Q41: =IF(--ISNUMBER(SEARCH(Díjszámítás!$C$12,A41)),MAX($Q$1:Q40)+1,"") -> 40 | R41: =IFERROR(INDEX($A$2:$A$302,MATCH(ROWS($Q$2:Q41),$Q$2:$Q$302,0)),"") -> 1622 Parkettagyártás
A42: 1623 Épületasztalos-ipari termék gyártása | B42: 5 | C42: 4 | D42: 3 | E42: 5 | F42: 3 | G42: 1 | I42: =IF(ISNUMBER(SEARCH($H$2,'Tevékenység lista'!A42)),MAX($I$1:I41)+1,0) -> 41 | J42: Camping | L42: =IFERROR(VLOOKUP(ROWS($L$2:L42),I42:$J$302,2,FALSE),"") -> Camping | Q42: =IF(--ISNUMBER(SEARCH(Díjszámítás!$C$12,A42)),MAX($Q$1:Q41)+1,"") -> 41 | R42: =IFERROR(INDEX($A$2:$A$302,MATCH(ROWS($Q$2:Q42),$Q$2:$Q$302,0)),"") -> 1623 Épületasztalos-ipari termék gyártása
A43: 1624 Tároló fatermék gyártása | B43: 6 | C43: 4 | D43: 2 | E43: 6 | F43: 3 | G43: 2 | I43: =IF(ISNUMBER(SEARCH($H$2,'Tevékenység lista'!A43)),MAX($I$1:I42)+1,0) -> 42 | J43: Címfestő, vésnök | L43: =IFERROR(VLOOKUP(ROWS($L$2:L43),I43:$J$302,2,FALSE),"") -> Címfestő, vésnök | Q43: =IF(--ISNUMBER(SEARCH(Díjszámítás!$C$12,A43)),MAX($Q$1:Q42)+1,"") -> 42 | R43: =IFERROR(INDEX($A$2:$A$302,MATCH(ROWS($Q$2:Q43),$Q$2:$Q$302,0)),"") -> 1624 Tároló fatermék gyártása
A44: 1629 Egyéb fa-, parafatermék, fonottáru gyártása | B44: 5 | C44: 4 | D44: 2 | E44: 5 | F44: 2 | G44: 2 | I44: =IF(ISNUMBER(SEARCH($H$2,'Tevékenység lista'!A44)),MAX($I$1:I43)+1,0) -> 43 | J44: Cipőkereskedelem | L44: =IFERROR(VLOOKUP(ROWS($L$2:L44),I44:$J$302,2,FALSE),"") -> Cipőkereskedelem | Q44: =IF(--ISNUMBER(SEARCH(Díjszámítás!$C$12,A44)),MAX($Q$1:Q43)+1,"") -> 43 | R44: =IFERROR(INDEX($A$2:$A$302,MATCH(ROWS($Q$2:Q44),$Q$2:$Q$302,0)),"") -> 1629 Egyéb fa-, parafatermék, fonottáru gyártása
A45: 1711 Papíripari rostanyag gyártása | B45: 6 | C45: 4 | D45: 2 | E45: 6 | F45: 3 | G45: 3 | I45: =IF(ISNUMBER(SEARCH($H$2,'Tevékenység lista'!A45)),MAX($I$1:I44)+1,0) -> 44 | J45: Cipőjavítás | L45: =IFERROR(VLOOKUP(ROWS($L$2:L45),I45:$J$302,2,FALSE),"") -> Cipőjavítás | Q45: =IF(--ISNUMBER(SEARCH(Díjszámítás!$C$12,A45)),MAX($Q$1:Q44)+1,"") -> 44 | R45: =IFERROR(INDEX($A$2:$A$302,MATCH(ROWS($Q$2:Q45),$Q$2:$Q$302,0)),"") -> 1711 Papíripari rostanyag gyártása
A46: 1712 Papírgyártás | B46: 6 | C46: 4 | D46: 2 | E46: 6 | F46: 3 | G46: 3 | I46: =IF(ISNUMBER(SEARCH($H$2,'Tevékenység lista'!A46)),MAX($I$1:I45)+1,0) -> 45 | J46: Cukorgyártás | L46: =IFERROR(VLOOKUP(ROWS($L$2:L46),I46:$J$302,2,FALSE),"") -> Cukorgyártás | Q46: =IF(--ISNUMBER(SEARCH(Díjszámítás!$C$12,A46)),MAX($Q$1:Q45)+1,"") -> 45 | R46: =IFERROR(INDEX($A$2:$A$302,MATCH(ROWS($Q$2:Q46),$Q$2:$Q$302,0)),"") -> 1712 Papírgyártás
A47: 1721 Papír csomagolóeszköz gyártása | B47: 5 | C47: 4 | D47: 2 | E47: 5 | F47: 3 | G47: 3 | I47: =IF(ISNUMBER(SEARCH($H$2,'Tevékenység lista'!A47)),MAX($I$1:I46)+1,0) -> 46 | J47: Cukrászda | L47: =IFERROR(VLOOKUP(ROWS($L$2:L47),I47:$J$302,2,FALSE),"") -> Cukrászda | Q47: =IF(--ISNUMBER(SEARCH(Díjszámítás!$C$12,A47)),MAX($Q$1:Q46)+1,"") -> 46 | R47: =IFERROR(INDEX($A$2:$A$302,MATCH(ROWS($Q$2:Q47),$Q$2:$Q$302,0)),"") -> 1721 Papír csomagolóeszköz gyártása
A48: 1722 Háztartási, egészségügyi papírtermék gyártása | B48: 6 | C48: 4 | D48: 2 | E48: 6 | F48: 2 | G48: 2 | I48: =IF(ISNUMBER(SEARCH($H$2,'Tevékenység lista'!A48)),MAX($I$1:I47)+1,0) -> 47 | J48: Csecsemő- és gyermekotthon | L48: =IFERROR(VLOOKUP(ROWS($L$2:L48),I48:$J$302,2,FALSE),"") -> Csecsemő- és gyermekotthon | Q48: =IF(--ISNUMBER(SEARCH(Díjszámítás!$C$12,A48)),MAX($Q$1:Q47)+1,"") -> 47 | R48: =IFERROR(INDEX($A$2:$A$302,MATCH(ROWS($Q$2:Q48),$Q$2:$Q$302,0)),"") -> 1722 Háztartási, egészségügyi papírtermék gyártása
A49: 1723 Irodai papíráru gyártása | B49: 6 | C49: 4 | D49: 2 | E49: 6 | F49: 3 | G49: 3 | I49: =IF(ISNUMBER(SEARCH($H$2,'Tevékenység lista'!A49)),MAX($I$1:I48)+1,0) -> 48 | J49: Csomagoló- és tároló fatermékek gyártása | L49: =IFERROR(VLOOKUP(ROWS($L$2:L49),I49:$J$302,2,FALSE),"") -> Csomagoló- és tároló fatermékek gyártása | Q49: =IF(--ISNUMBER(SEARCH(Díjszámítás!$C$12,A49)),MAX($Q$1:Q48)+1,"") -> 48 | R49: =IFERROR(INDEX($A$2:$A$302,MATCH(ROWS($Q$2:Q49),$Q$2:$Q$302,0)),"") -> 1723 Irodai papíráru gyártása
A50: 1724 Tapétagyártás | B50: 6 | C50: 4 | D50: 2 | E50: 6 | F50: 3 | G50: 3 | I50: =IF(ISNUMBER(SEARCH($H$2,'Tevékenység lista'!A50)),MAX($I$1:I49)+1,0) -> 49 | J50: Csőgyártás | L50: =IFERROR(VLOOKUP(ROWS($L$2:L50),I50:$J$302,2,FALSE),"") -> Csőgyártás | Q50: =IF(--ISNUMBER(SEARCH(Díjszámítás!$C$12,A50)),MAX($Q$1:Q49)+1,"") -> 49 | R50: =IFERROR(INDEX($A$2:$A$302,MATCH(ROWS($Q$2:Q50),$Q$2:$Q$302,0)),"") -> 1724 Tapétagyártás
A51: 1729 Egyéb papír-, kartontermék gyártása | B51: 6 | C51: 4 | D51: 2 | E51: 6 | F51: 3 | G51: 3 | I51: =IF(ISNUMBER(SEARCH($H$2,'Tevékenység lista'!A51)),MAX($I$1:I50)+1,0) -> 50 | J51: Dekoratőr | L51: =IFERROR(VLOOKUP(ROWS($L$2:L51),I51:$J$302,2,FALSE),"") -> Dekoratőr | Q51: =IF(--ISNUMBER(SEARCH(Díjszámítás!$C$12,A51)),MAX($Q$1:Q50)+1,"") -> 50 | R51: =IFERROR(INDEX($A$2:$A$302,MATCH(ROWS($Q$2:Q51),$Q$2:$Q$302,0)),"") -> 1729 Egyéb papír-, kartontermék gyártása
A52: 1811 Napilapnyomás | B52: 4 | C52: 4 | D52: 1 | E52: 4 | F52: 4 | G52: 1 | I52: =IF(ISNUMBER(SEARCH($H$2,'Tevékenység lista'!A52)),MAX($I$1:I51)+1,0) -> 51 | J52: Delicatesse, édesség kereskedés | L52: =IFERROR(VLOOKUP(ROWS($L$2:L52),I52:$J$302,2,FALSE),"") -> Delicatesse, édesség kereskedés | Q52: =IF(--ISNUMBER(SEARCH(Díjszámítás!$C$12,A52)),MAX($Q$1:Q51)+1,"") -> 51 | R52: =IFERROR(INDEX($A$2:$A$302,MATCH(ROWS($Q$2:Q52),$Q$2:$Q$302,0)),"") -> 1811 Napilapnyomás
A53: 1812 Nyomás (kivéve: napilap) | B53: 4 | C53: 4 | D53: 1 | E53: 4 | F53: 4 | G53: 1 | I53: =IF(ISNUMBER(SEARCH($H$2,'Tevékenység lista'!A53)),MAX($I$1:I52)+1,0) -> 52 | J53: Diákétkeztetés | L53: =IFERROR(VLOOKUP(ROWS($L$2:L53),I53:$J$302,2,FALSE),"") -> Diákétkeztetés | Q53: =IF(--ISNUMBER(SEARCH(Díjszámítás!$C$12,A53)),MAX($Q$1:Q52)+1,"") -> 52 | R53: =IFERROR(INDEX($A$2:$A$302,MATCH(ROWS($Q$2:Q53),$Q$2:$Q$302,0)),"") -> 1812 Nyomás (kivéve: napilap)
A54: 1813 Nyomdai előkészítő tevékenység | B54: 4 | C54: 4 | D54: 1 | E54: 4 | F54: 4 | G54: 2 | I54: =IF(ISNUMBER(SEARCH($H$2,'Tevékenység lista'!A54)),MAX($I$1:I53)+1,0) -> 53 | J54: Diákotthoni, kollégiumi ellátás | L54: =IFERROR(VLOOKUP(ROWS($L$2:L54),I54:$J$302,2,FALSE),"") -> Diákotthoni, kollégiumi ellátás | Q54: =IF(--ISNUMBER(SEARCH(Díjszámítás!$C$12,A54)),MAX($Q$1:Q53)+1,"") -> 53 | R54: =IFERROR(INDEX($A$2:$A$302,MATCH(ROWS($Q$2:Q54),$Q$2:$Q$302,0)),"") -> 1813 Nyomdai előkészítő tevékenység
A55: 1814 Könyvkötés, kapcsolódó szolgáltatás | B55: 4 | C55: 4 | D55: 1 | E55: 4 | F55: 3 | G55: 1 | I55: =IF(ISNUMBER(SEARCH($H$2,'Tevékenység lista'!A55)),MAX($I$1:I54)+1,0) -> 54 | J55: Dísz- és ajándéktárgyak gyártása | L55: =IFERROR(VLOOKUP(ROWS($L$2:L55),I55:$J$302,2,FALSE),"") -> Dísz- és ajándéktárgyak gyártása | Q55: =IF(--ISNUMBER(SEARCH(Díjszámítás!$C$12,A55)),MAX($Q$1:Q54)+1,"") -> 54 | R55: =IFERROR(INDEX($A$2:$A$302,MATCH(ROWS($Q$2:Q55),$Q$2:$Q$302,0)),"") -> 1814 Könyvkötés, kapcsolódó szolgáltatás
A56: 1820 Egyéb sokszorosítás | B56: 4 | C56: 4 | D56: 1 | E56: 4 | F56: 4 | G56: 2 | I56: =IF(ISNUMBER(SEARCH($H$2,'Tevékenység lista'!A56)),MAX($I$1:I55)+1,0) -> 55 | J56: Divatáru kereskedés (butik) | L56: =IFERROR(VLOOKUP(ROWS($L$2:L56),I56:$J$302,2,FALSE),"") -> Divatáru kereskedés (butik) | Q56: =IF(--ISNUMBER(SEARCH(Díjszámítás!$C$12,A56)),MAX($Q$1:Q55)+1,"") -> 55 | R56: =IFERROR(INDEX($A$2:$A$302,MATCH(ROWS($Q$2:Q56),$Q$2:$Q$302,0)),"") -> 1820 Egyéb sokszorosítás
A57: 2012 Színezék, pigment gyártása | B57: 8 | C57: 4 | D57: 2 | E57: 8 | F57: 4 | G57: 3 | I57: =IF(ISNUMBER(SEARCH($H$2,'Tevékenység lista'!A57)),MAX($I$1:I56)+1,0) -> 56 | J57: Dohány, ajándék, bizsu, hírlap kereskedés | L57: =IFERROR(VLOOKUP(ROWS($L$2:L57),I57:$J$302,2,FALSE),"") -> Dohány, ajándék, bizsu, hírlap kereskedés | Q57: =IF(--ISNUMBER(SEARCH(Díjszámítás!$C$12,A57)),MAX($Q$1:Q56)+1,"") -> 56 | R57: =IFERROR(INDEX($A$2:$A$302,MATCH(ROWS($Q$2:Q57),$Q$2:$Q$302,0)),"") -> 2012 Színezék, pigment gyártása
A58: 2013 Szervetlen vegyi alapanyag gyártása | B58: 8 | C58: 4 | D58: 2 | E58: 8 | F58: 4 | G58: 3 | I58: =IF(ISNUMBER(SEARCH($H$2,'Tevékenység lista'!A58)),MAX($I$1:I57)+1,0) -> 57 | J58: Édesipari termékek gyártása | L58: =IFERROR(VLOOKUP(ROWS($L$2:L58),I58:$J$302,2,FALSE),"") -> Édesipari termékek gyártása | Q58: =IF(--ISNUMBER(SEARCH(Díjszámítás!$C$12,A58)),MAX($Q$1:Q57)+1,"") -> 57 | R58: =IFERROR(INDEX($A$2:$A$302,MATCH(ROWS($Q$2:Q58),$Q$2:$Q$302,0)),"") -> 2013 Szervetlen vegyi alapanyag gyártása
A59: 2014 Szerves vegyi alapanyag gyártása | B59: 8 | C59: 4 | D59: 2 | E59: 8 | F59: 4 | G59: 3 | I59: =IF(ISNUMBER(SEARCH($H$2,'Tevékenység lista'!A59)),MAX($I$1:I58)+1,0) -> 58 | J59: Egészségügyi és szociális ellátás - kizárólag magán tulajdonban lévő intézmények biztosíthatók | L59: =IFERROR(VLOOKUP(ROWS($L$2:L59),I59:$J$302,2,FALSE),"") -> Egészségügyi és szociális ellátás - kizárólag magán tulajdonban lévő intézmények biztosíthatók | Q59: =IF(--ISNUMBER(SEARCH(Díjszámítás!$C$12,A59)),MAX($Q$1:Q58)+1,"") -> 58 | R59: =IFERROR(INDEX($A$2:$A$302,MATCH(ROWS($Q$2:Q59),$Q$2:$Q$302,0)),"") -> 2014 Szerves vegyi alapanyag gyártása
A60: 2016 Műanyag-alapanyag gyártása | B60: 6 | C60: 4 | D60: 1 | E60: 6 | F60: 3 | G60: 1 | I60: =IF(ISNUMBER(SEARCH($H$2,'Tevékenység lista'!A60)),MAX($I$1:I59)+1,0) -> 59 | J60: Egészségügyi, sport és szabadidő központ | L60: =IFERROR(VLOOKUP(ROWS($L$2:L60),I60:$J$302,2,FALSE),"") -> Egészségügyi, sport és szabadidő központ | Q60: =IF(--ISNUMBER(SEARCH(Díjszámítás!$C$12,A60)),MAX($Q$1:Q59)+1,"") -> 59 | R60: =IFERROR(INDEX($A$2:$A$302,MATCH(ROWS($Q$2:Q60),$Q$2:$Q$302,0)),"") -> 2016 Műanyag-alapanyag gyártása
A61: 2020 Mezőgazdasági vegyi termék gyártása | B61: 8 | C61: 4 | D61: 2 | E61: 8 | F61: 4 | G61: 3 | I61: =IF(ISNUMBER(SEARCH($H$2,'Tevékenység lista'!A61)),MAX($I$1:I60)+1,0) -> 60 | J61: Elektromos és elektronikus alkatrészek kereskedelme | L61: =IFERROR(VLOOKUP(ROWS($L$2:L61),I61:$J$302,2,FALSE),"") -> Elektromos és elektronikus alkatrészek kereskedelme | Q61: =IF(--ISNUMBER(SEARCH(Díjszámítás!$C$12,A61)),MAX($Q$1:Q60)+1,"") -> 60 | R61: =IFERROR(INDEX($A$2:$A$302,MATCH(ROWS($Q$2:Q61),$Q$2:$Q$302,0)),"") -> 2020 Mezőgazdasági vegyi termék gyártása
A62: 2041 Tisztítószer gyártása | B62: 6 | C62: 4 | D62: 1 | E62: 6 | F62: 3 | G62: 1 | I62: =IF(ISNUMBER(SEARCH($H$2,'Tevékenység lista'!A62)),MAX($I$1:I61)+1,0) -> 61 | J62: Élelmiszer nagykereskedelem | L62: =IFERROR(VLOOKUP(ROWS($L$2:L62),I62:$J$302,2,FALSE),"") -> Élelmiszer nagykereskedelem | Q62: =IF(--ISNUMBER(SEARCH(Díjszámítás!$C$12,A62)),MAX($Q$1:Q61)+1,"") -> 61 | R62: =IFERROR(INDEX($A$2:$A$302,MATCH(ROWS($Q$2:Q62),$Q$2:$Q$302,0)),"") -> 2041 Tisztítószer gyártása
A63: 2042 Testápolási cikk gyártása | B63: 6 | C63: 4 | D63: 1 | E63: 6 | F63: 3 | G63: 1 | I63: =IF(ISNUMBER(SEARCH($H$2,'Tevékenység lista'!A63)),MAX($I$1:I62)+1,0) -> 62 | J63: Élelmiszer, ital, dohányáru nagykereskedelem | L63: =IFERROR(VLOOKUP(ROWS($L$2:L63),I63:$J$302,2,FALSE),"") -> Élelmiszer, ital, dohányáru nagykereskedelem | Q63: =IF(--ISNUMBER(SEARCH(Díjszámítás!$C$12,A63)),MAX($Q$1:Q62)+1,"") -> 62 | R63: =IFERROR(INDEX($A$2:$A$302,MATCH(ROWS($Q$2:Q63),$Q$2:$Q$302,0)),"") -> 2042 Testápolási cikk gyártása
A64: 2052 Ragasztószergyártás | B64: 8 | C64: 4 | D64: 2 | E64: 8 | F64: 4 | G64: 3 | I64: =IF(ISNUMBER(SEARCH($H$2,'Tevékenység lista'!A64)),MAX($I$1:I63)+1,0) -> 63 | J64: Élelmiszeripari gépgyártás | L64: =IFERROR(VLOOKUP(ROWS($L$2:L64),I64:$J$302,2,FALSE),"") -> Élelmiszeripari gépgyártás | Q64: =IF(--ISNUMBER(SEARCH(Díjszámítás!$C$12,A64)),MAX($Q$1:Q63)+1,"") -> 63 | R64: =IFERROR(INDEX($A$2:$A$302,MATCH(ROWS($Q$2:Q64),$Q$2:$Q$302,0)),"") -> 2052 Ragasztószergyártás
A65: 2053 Illóolajgyártás | B65: 8 | C65: 4 | D65: 2 | E65: 8 | F65: 4 | G65: 3 | I65: =IF(ISNUMBER(SEARCH($H$2,'Tevékenység lista'!A65)),MAX($I$1:I64)+1,0) -> 64 | J65: Építési és épületgépészeti szerelőipar | L65: =IFERROR(VLOOKUP(ROWS($L$2:L65),I65:$J$302,2,FALSE),"") -> Építési és épületgépészeti szerelőipar | Q65: =IF(--ISNUMBER(SEARCH(Díjszámítás!$C$12,A65)),MAX($Q$1:Q64)+1,"") -> 64 | R65: =IFERROR(INDEX($A$2:$A$302,MATCH(ROWS($Q$2:Q65),$Q$2:$Q$302,0)),"") -> 2053 Illóolajgyártás
A66: 2059 M.n.s. egyéb vegyi termék gyártása | B66: 8 | C66: 4 | D66: 2 | E66: 8 | F66: 4 | G66: 3 | I66: =IF(ISNUMBER(SEARCH($H$2,'Tevékenység lista'!A66)),MAX($I$1:I65)+1,0) -> 65 | J66: Építőanyag kereskedelem faáruk nélkül (tégla, cement, mész stb.) | L66: =IFERROR(VLOOKUP(ROWS($L$2:L66),I66:$J$302,2,FALSE),"") -> Építőanyag kereskedelem faáruk nélkül (tégla, cement, mész stb.) | Q66: =IF(--ISNUMBER(SEARCH(Díjszámítás!$C$12,A66)),MAX($Q$1:Q65)+1,"") -> 65 | R66: =IFERROR(INDEX($A$2:$A$302,MATCH(ROWS($Q$2:Q66),$Q$2:$Q$302,0)),"") -> 2059 M.n.s. egyéb vegyi termék gyártása
A67: 2060 Vegyi szál gyártása | B67: 6 | C67: 4 | D67: 2 | E67: 6 | F67: 3 | G67: 3 | I67: =IF(ISNUMBER(SEARCH($H$2,'Tevékenység lista'!A67)),MAX($I$1:I66)+1,0) -> 66 | J67: Építőanyag kereskedelem, jellemzően faárukkal (ajtó, ablak, épületfa) | L67: =IFERROR(VLOOKUP(ROWS($L$2:L67),I67:$J$302,2,FALSE),"") -> Építőanyag kereskedelem, jellemzően faárukkal (ajtó, ablak, épületfa) | Q67: =IF(--ISNUMBER(SEARCH(Díjszámítás!$C$12,A67)),MAX($Q$1:Q66)+1,"") -> 66 | R67: =IFERROR(INDEX($A$2:$A$302,MATCH(ROWS($Q$2:Q67),$Q$2:$Q$302,0)),"") -> 2060 Vegyi szál gyártása
A68: 2211 Gumiabroncs, gumitömlő gyártása | B68: 6 | C68: 4 | D68: 1 | E68: 6 | F68: 3 | G68: 2 | I68: =IF(ISNUMBER(SEARCH($H$2,'Tevékenység lista'!A68)),MAX($I$1:I67)+1,0) -> 67 | J68: Építőipar | L68: =IFERROR(VLOOKUP(ROWS($L$2:L68),I68:$J$302,2,FALSE),"") -> Építőipar | Q68: =IF(--ISNUMBER(SEARCH(Díjszámítás!$C$12,A68)),MAX($Q$1:Q67)+1,"") -> 67 | R68: =IFERROR(INDEX($A$2:$A$302,MATCH(ROWS($Q$2:Q68),$Q$2:$Q$302,0)),"") -> 2211 Gumiabroncs, gumitömlő gyártása
A69: 2219 Egyéb gumitermék gyártása | B69: 6 | C69: 4 | D69: 1 | E69: 6 | F69: 3 | G69: 2 | I69: =IF(ISNUMBER(SEARCH($H$2,'Tevékenység lista'!A69)),MAX($I$1:I68)+1,0) -> 68 | J69: Építőipari gépek, berendezések kölcsönzése (kivéve daru) | L69: =IFERROR(VLOOKUP(ROWS($L$2:L69),I69:$J$302,2,FALSE),"") -> Építőipari gépek, berendezések kölcsönzése (kivéve daru) | Q69: =IF(--ISNUMBER(SEARCH(Díjszámítás!$C$12,A69)),MAX($Q$1:Q68)+1,"") -> 68 | R69: =IFERROR(INDEX($A$2:$A$302,MATCH(ROWS($Q$2:Q69),$Q$2:$Q$302,0)),"") -> 2219 Egyéb gumitermék gyártása
A70: 2221 Műanyag lap, lemez, fólia, cső, profil gyártása | B70: 5 | C70: 4 | D70: 1 | E70: 5 | F70: 3 | G70: 1 | I70: =IF(ISNUMBER(SEARCH($H$2,'Tevékenység lista'!A70)),MAX($I$1:I69)+1,0) -> 69 | J70: Építőipari vas- és fémszerkezetek gyártása | L70: =IFERROR(VLOOKUP(ROWS($L$2:L70),I70:$J$302,2,FALSE),"") -> Építőipari vas- és fémszerkezetek gyártása | Q70: =IF(--ISNUMBER(SEARCH(Díjszámítás!$C$12,A70)),MAX($Q$1:Q69)+1,"") -> 69 | R70: =IFERROR(INDEX($A$2:$A$302,MATCH(ROWS($Q$2:Q70),$Q$2:$Q$302,0)),"") -> 2221 Műanyag lap, lemez, fólia, cső, profil gyártása
A71: 2222 Műanyag csomagolóeszköz gyártása | B71: 5 | C71: 4 | D71: 1 | E71: 5 | F71: 3 | G71: 1 | I71: =IF(ISNUMBER(SEARCH($H$2,'Tevékenység lista'!A71)),MAX($I$1:I70)+1,0) -> 70 | J71: Épület-, illetve gépjármű fóliázás | L71: =IFERROR(VLOOKUP(ROWS($L$2:L71),I71:$J$302,2,FALSE),"") -> Épület-, illetve gépjármű fóliázás | Q71: =IF(--ISNUMBER(SEARCH(Díjszámítás!$C$12,A71)),MAX($Q$1:Q70)+1,"") -> 70 | R71: =IFERROR(INDEX($A$2:$A$302,MATCH(ROWS($Q$2:Q71),$Q$2:$Q$302,0)),"") -> 2222 Műanyag csomagolóeszköz gyártása
A72: 2223 Műanyag építőanyag gyártása | B72: 5 | C72: 4 | D72: 1 | E72: 5 | F72: 3 | G72: 1 | I72: =IF(ISNUMBER(SEARCH($H$2,'Tevékenység lista'!A72)),MAX($I$1:I71)+1,0) -> 71 | J72: Épületács- és épületasztalosipari termékek gyártása | L72: =IFERROR(VLOOKUP(ROWS($L$2:L72),I72:$J$302,2,FALSE),"") -> Épületács- és épületasztalosipari termékek gyártása | Q72: =IF(--ISNUMBER(SEARCH(Díjszámítás!$C$12,A72)),MAX($Q$1:Q71)+1,"") -> 71 | R72: =IFERROR(INDEX($A$2:$A$302,MATCH(ROWS($Q$2:Q72),$Q$2:$Q$302,0)),"") -> 2223 Műanyag építőanyag gyártása
A73: 2229 Egyéb műanyag termék gyártása | B73: 5 | C73: 4 | D73: 1 | E73: 5 | F73: 3 | G73: 1 | I73: =IF(ISNUMBER(SEARCH($H$2,'Tevékenység lista'!A73)),MAX($I$1:I72)+1,0) -> 72 | J73: Épületasztalos | L73: =IFERROR(VLOOKUP(ROWS($L$2:L73),I73:$J$302,2,FALSE),"") -> Épületasztalos | Q73: =IF(--ISNUMBER(SEARCH(Díjszámítás!$C$12,A73)),MAX($Q$1:Q72)+1,"") -> 72 | R73: =IFERROR(INDEX($A$2:$A$302,MATCH(ROWS($Q$2:Q73),$Q$2:$Q$302,0)),"") -> 2229 Egyéb műanyag termék gyártása
A74: 2311 Síküveggyártás | B74: 5 | C74: 3 | D74: 1 | E74: 5 | F74: 3 | G74: 1 | I74: =IF(ISNUMBER(SEARCH($H$2,'Tevékenység lista'!A74)),MAX($I$1:I73)+1,0) -> 73 | J74: Épülettisztítás (takarítás, ablaktisztítás) | L74: =IFERROR(VLOOKUP(ROWS($L$2:L74),I74:$J$302,2,FALSE),"") -> Épülettisztítás (takarítás, ablaktisztítás) | Q74: =IF(--ISNUMBER(SEARCH(Díjszámítás!$C$12,A74)),MAX($Q$1:Q73)+1,"") -> 73 | R74: =IFERROR(INDEX($A$2:$A$302,MATCH(ROWS($Q$2:Q74),$Q$2:$Q$302,0)),"") -> 2311 Síküveggyártás
A75: 2312 Síküveg továbbfeldolgozása | B75: 3 | C75: 4 | D75: 1 | E75: 3 | F75: 1 | G75: 1 | I75: =IF(ISNUMBER(SEARCH($H$2,'Tevékenység lista'!A75)),MAX($I$1:I74)+1,0) -> 74 | J75: Épületüzemeltetés (kivéve társasház, lakásszövetkezet) | L75: =IFERROR(VLOOKUP(ROWS($L$2:L75),I75:$J$302,2,FALSE),"") -> Épületüzemeltetés (kivéve társasház, lakásszövetkezet) | Q75: =IF(--ISNUMBER(SEARCH(Díjszámítás!$C$12,A75)),MAX($Q$1:Q74)+1,"") -> 74 | R75: =IFERROR(INDEX($A$2:$A$302,MATCH(ROWS($Q$2:Q75),$Q$2:$Q$302,0)),"") -> 2312 Síküveg továbbfeldolgozása
A76: 2313 Öblösüveggyártás | B76: 5 | C76: 3 | D76: 1 | E76: 5 | F76: 3 | G76: 1 | I76: =IF(ISNUMBER(SEARCH($H$2,'Tevékenység lista'!A76)),MAX($I$1:I75)+1,0) -> 75 | J76: Erőművi és ipari kazángyártás | L76: =IFERROR(VLOOKUP(ROWS($L$2:L76),I76:$J$302,2,FALSE),"") -> Erőművi és ipari kazángyártás | Q76: =IF(--ISNUMBER(SEARCH(Díjszámítás!$C$12,A76)),MAX($Q$1:Q75)+1,"") -> 75 | R76: =IFERROR(INDEX($A$2:$A$302,MATCH(ROWS($Q$2:Q76),$Q$2:$Q$302,0)),"") -> 2313 Öblösüveggyártás
A77: 2319 Műszaki, egyéb üvegtermék gyártása | B77: 5 | C77: 3 | D77: 1 | E77: 5 | F77: 3 | G77: 1 | I77: =IF(ISNUMBER(SEARCH($H$2,'Tevékenység lista'!A77)),MAX($I$1:I76)+1,0) -> 76 | J77: Esküvőiruha-kölcsönző | L77: =IFERROR(VLOOKUP(ROWS($L$2:L77),I77:$J$302,2,FALSE),"") -> Esküvőiruha-kölcsönző | Q77: =IF(--ISNUMBER(SEARCH(Díjszámítás!$C$12,A77)),MAX($Q$1:Q76)+1,"") -> 76 | R77: =IFERROR(INDEX($A$2:$A$302,MATCH(ROWS($Q$2:Q77),$Q$2:$Q$302,0)),"") -> 2319 Műszaki, egyéb üvegtermék gyártása
A78: 2320 Tűzálló termék gyártása | B78: 4 | C78: 3 | D78: 1 | E78: 4 | F78: 3 | G78: 1 | I78: =IF(ISNUMBER(SEARCH($H$2,'Tevékenység lista'!A78)),MAX($I$1:I77)+1,0) -> 77 | J78: Étrendkiegészítő készítmények forgalmazása | L78: =IFERROR(VLOOKUP(ROWS($L$2:L78),I78:$J$302,2,FALSE),"") -> Étrendkiegészítő készítmények forgalmazása | Q78: =IF(--ISNUMBER(SEARCH(Díjszámítás!$C$12,A78)),MAX($Q$1:Q77)+1,"") -> 77 | R78: =IFERROR(INDEX($A$2:$A$302,MATCH(ROWS($Q$2:Q78),$Q$2:$Q$302,0)),"") -> 2320 Tűzálló termék gyártása
A79: 2331 Kerámiacsempe, -lap gyártása | B79: 4 | C79: 3 | D79: 2 | E79: 4 | F79: 3 | G79: 1 | I79: =IF(ISNUMBER(SEARCH($H$2,'Tevékenység lista'!A79)),MAX($I$1:I78)+1,0) -> 78 | J79: Éttermi vendéglátás | L79: =IFERROR(VLOOKUP(ROWS($L$2:L79),I79:$J$302,2,FALSE),"") -> Éttermi vendéglátás | Q79: =IF(--ISNUMBER(SEARCH(Díjszámítás!$C$12,A79)),MAX($Q$1:Q78)+1,"") -> 78 | R79: =IFERROR(INDEX($A$2:$A$302,MATCH(ROWS($Q$2:Q79),$Q$2:$Q$302,0)),"") -> 2331 Kerámiacsempe, -lap gyártása
A80: 2332 Égetett agyag építőanyag gyártása | B80: 3 | C80: 3 | D80: 1 | E80: 3 | F80: 3 | G80: 1 | I80: =IF(ISNUMBER(SEARCH($H$2,'Tevékenység lista'!A80)),MAX($I$1:I79)+1,0) -> 79 | J80: Faanyag- és barkácsáru kereskedelem | L80: =IFERROR(VLOOKUP(ROWS($L$2:L80),I80:$J$302,2,FALSE),"") -> Faanyag- és barkácsáru kereskedelem | Q80: =IF(--ISNUMBER(SEARCH(Díjszámítás!$C$12,A80)),MAX($Q$1:Q79)+1,"") -> 79 | R80: =IFERROR(INDEX($A$2:$A$302,MATCH(ROWS($Q$2:Q80),$Q$2:$Q$302,0)),"") -> 2332 Égetett agyag építőanyag gyártása
A81: 2341 Háztartási kerámia gyártása | B81: 4 | C81: 3 | D81: 1 | E81: 4 | F81: 3 | G81: 1 | I81: =IF(ISNUMBER(SEARCH($H$2,'Tevékenység lista'!A81)),MAX($I$1:I80)+1,0) -> 80 | J81: Fafeldolgozás | L81: =IFERROR(VLOOKUP(ROWS($L$2:L81),I81:$J$302,2,FALSE),"") -> Fafeldolgozás | Q81: =IF(--ISNUMBER(SEARCH(Díjszámítás!$C$12,A81)),MAX($Q$1:Q80)+1,"") -> 80 | R81: =IFERROR(INDEX($A$2:$A$302,MATCH(ROWS($Q$2:Q81),$Q$2:$Q$302,0)),"") -> 2341 Háztartási kerámia gyártása
A82: 2342 Egészségügyi kerámia gyártása | B82: 4 | C82: 3 | D82: 1 | E82: 4 | F82: 3 | G82: 1 | I82: =IF(ISNUMBER(SEARCH($H$2,'Tevékenység lista'!A82)),MAX($I$1:I81)+1,0) -> 81 | J82: Falusi turizmus - lovaglás | L82: =IFERROR(VLOOKUP(ROWS($L$2:L82),I82:$J$302,2,FALSE),"") -> Falusi turizmus - lovaglás | Q82: =IF(--ISNUMBER(SEARCH(Díjszámítás!$C$12,A82)),MAX($Q$1:Q81)+1,"") -> 81 | R82: =IFERROR(INDEX($A$2:$A$302,MATCH(ROWS($Q$2:Q82),$Q$2:$Q$302,0)),"") -> 2342 Egészségügyi kerámia gyártása
A83: 2343 Kerámia szigetelő gyártása | B83: 4 | C83: 3 | D83: 1 | E83: 4 | F83: 3 | G83: 1 | I83: =IF(ISNUMBER(SEARCH($H$2,'Tevékenység lista'!A83)),MAX($I$1:I82)+1,0) -> 82 | J83: Faragott kőtermékek előállítása | L83: =IFERROR(VLOOKUP(ROWS($L$2:L83),I83:$J$302,2,FALSE),"") -> Faragott kőtermékek előállítása | Q83: =IF(--ISNUMBER(SEARCH(Díjszámítás!$C$12,A83)),MAX($Q$1:Q82)+1,"") -> 82 | R83: =IFERROR(INDEX($A$2:$A$302,MATCH(ROWS($Q$2:Q83),$Q$2:$Q$302,0)),"") -> 2343 Kerámia szigetelő gyártása
A84: 2344 Műszaki kerámia gyártása | B84: 4 | C84: 3 | D84: 1 | E84: 4 | F84: 3 | G84: 1 | I84: =IF(ISNUMBER(SEARCH($H$2,'Tevékenység lista'!A84)),MAX($I$1:I83)+1,0) -> 83 | J84: Fatömegcikk gyártása | L84: =IFERROR(VLOOKUP(ROWS($L$2:L84),I84:$J$302,2,FALSE),"") -> Fatömegcikk gyártása | Q84: =IF(--ISNUMBER(SEARCH(Díjszámítás!$C$12,A84)),MAX($Q$1:Q83)+1,"") -> 83 | R84: =IFERROR(INDEX($A$2:$A$302,MATCH(ROWS($Q$2:Q84),$Q$2:$Q$302,0)),"") -> 2344 Műszaki kerámia gyártása
A85: 2349 Egyéb kerámiatermék gyártása | B85: 4 | C85: 3 | D85: 1 | E85: 4 | F85: 3 | G85: 1 | I85: =IF(ISNUMBER(SEARCH($H$2,'Tevékenység lista'!A85)),MAX($I$1:I84)+1,0) -> 84 | J85: Felnőtt- és egyéb oktatás | L85: =IFERROR(VLOOKUP(ROWS($L$2:L85),I85:$J$302,2,FALSE),"") -> Felnőtt- és egyéb oktatás | Q85: =IF(--ISNUMBER(SEARCH(Díjszámítás!$C$12,A85)),MAX($Q$1:Q84)+1,"") -> 84 | R85: =IFERROR(INDEX($A$2:$A$302,MATCH(ROWS($Q$2:Q85),$Q$2:$Q$302,0)),"") -> 2349 Egyéb kerámiatermék gyártása
A86: 2351 Cementgyártás | B86: 2 | C86: 3 | D86: 2 | E86: 2 | F86: 3 | G86: 1 | I86: =IF(ISNUMBER(SEARCH($H$2,'Tevékenység lista'!A86)),MAX($I$1:I85)+1,0) -> 85 | J86: Felsőfokú oktatás | L86: =IFERROR(VLOOKUP(ROWS($L$2:L86),I86:$J$302,2,FALSE),"") -> Felsőfokú oktatás | Q86: =IF(--ISNUMBER(SEARCH(Díjszámítás!$C$12,A86)),MAX($Q$1:Q85)+1,"") -> 85 | R86: =IFERROR(INDEX($A$2:$A$302,MATCH(ROWS($Q$2:Q86),$Q$2:$Q$302,0)),"") -> 2351 Cementgyártás
A87: 2352 Mész-, gipszgyártás | B87: 2 | C87: 3 | D87: 2 | E87: 2 | F87: 3 | G87: 1 | I87: =IF(ISNUMBER(SEARCH($H$2,'Tevékenység lista'!A87)),MAX($I$1:I86)+1,0) -> 86 | J87: Felvonó szerelés és javítás | L87: =IFERROR(VLOOKUP(ROWS($L$2:L87),I87:$J$302,2,FALSE),"") -> Felvonó szerelés és javítás | Q87: =IF(--ISNUMBER(SEARCH(Díjszámítás!$C$12,A87)),MAX($Q$1:Q86)+1,"") -> 86 | R87: =IFERROR(INDEX($A$2:$A$302,MATCH(ROWS($Q$2:Q87),$Q$2:$Q$302,0)),"") -> 2352 Mész-, gipszgyártás
A88: 2361 Építési betontermék gyártása | B88: 2 | C88: 3 | D88: 2 | E88: 2 | F88: 3 | G88: 1 | I88: =IF(ISNUMBER(SEARCH($H$2,'Tevékenység lista'!A88)),MAX($I$1:I87)+1,0) -> 87 | J88: Fémfeldolgozási termékek gyártása | L88: =IFERROR(VLOOKUP(ROWS($L$2:L88),I88:$J$302,2,FALSE),"") -> Fémfeldolgozási termékek gyártása | Q88: =IF(--ISNUMBER(SEARCH(Díjszámítás!$C$12,A88)),MAX($Q$1:Q87)+1,"") -> 87 | R88: =IFERROR(INDEX($A$2:$A$302,MATCH(ROWS($Q$2:Q88),$Q$2:$Q$302,0)),"") -> 2361 Építési betontermék gyártása
A89: 2362 Építési gipsztermék gyártása | B89: 2 | C89: 3 | D89: 2 | E89: 2 | F89: 3 | G89: 1 | I89: =IF(ISNUMBER(SEARCH($H$2,'Tevékenység lista'!A89)),MAX($I$1:I88)+1,0) -> 88 | J89: Fémmegmunkálás és felületkezelés | L89: =IFERROR(VLOOKUP(ROWS($L$2:L89),I89:$J$302,2,FALSE),"") -> Fémmegmunkálás és felületkezelés | Q89: =IF(--ISNUMBER(SEARCH(Díjszámítás!$C$12,A89)),MAX($Q$1:Q88)+1,"") -> 88 | R89: =IFERROR(INDEX($A$2:$A$302,MATCH(ROWS($Q$2:Q89),$Q$2:$Q$302,0)),"") -> 2362 Építési gipsztermék gyártása
A90: 2363 Előre kevert beton gyártása | B90: 2 | C90: 3 | D90: 2 | E90: 2 | F90: 3 | G90: 1 | I90: =IF(ISNUMBER(SEARCH($H$2,'Tevékenység lista'!A90)),MAX($I$1:I89)+1,0) -> 89 | J90: Fémszerkezetgyártás (hegesztés) | L90: =IFERROR(VLOOKUP(ROWS($L$2:L90),I90:$J$302,2,FALSE),"") -> Fémszerkezetgyártás (hegesztés) | Q90: =IF(--ISNUMBER(SEARCH(Díjszámítás!$C$12,A90)),MAX($Q$1:Q89)+1,"") -> 89 | R90: =IFERROR(INDEX($A$2:$A$302,MATCH(ROWS($Q$2:Q90),$Q$2:$Q$302,0)),"") -> 2363 Előre kevert beton gyártása
A91: 2364 Habarcsgyártás | B91: 2 | C91: 3 | D91: 2 | E91: 2 | F91: 3 | G91: 1 | I91: =IF(ISNUMBER(SEARCH($H$2,'Tevékenység lista'!A91)),MAX($I$1:I90)+1,0) -> 90 | J91: Fémtartály, szállítótartály gyártása (védőgázas hegesztés) | L91: =IFERROR(VLOOKUP(ROWS($L$2:L91),I91:$J$302,2,FALSE),"") -> Fémtartály, szállítótartály gyártása (védőgázas hegesztés) | Q91: =IF(--ISNUMBER(SEARCH(Díjszámítás!$C$12,A91)),MAX($Q$1:Q90)+1,"") -> 90 | R91: =IFERROR(INDEX($A$2:$A$302,MATCH(ROWS($Q$2:Q91),$Q$2:$Q$302,0)),"") -> 2364 Habarcsgyártás
A92: 2365 Szálerősítésű cement gyártása | B92: 2 | C92: 3 | D92: 2 | E92: 2 | F92: 3 | G92: 1 | I92: =IF(ISNUMBER(SEARCH($H$2,'Tevékenység lista'!A92)),MAX($I$1:I91)+1,0) -> 91 | J92: Fényforrás- és világítóberendezés-gyártás | L92: =IFERROR(VLOOKUP(ROWS($L$2:L92),I92:$J$302,2,FALSE),"") -> Fényforrás- és világítóberendezés-gyártás | Q92: =IF(--ISNUMBER(SEARCH(Díjszámítás!$C$12,A92)),MAX($Q$1:Q91)+1,"") -> 91 | R92: =IFERROR(INDEX($A$2:$A$302,MATCH(ROWS($Q$2:Q92),$Q$2:$Q$302,0)),"") -> 2365 Szálerősítésű cement gyártása
A93: 2369 Egyéb beton-, gipsz-, cementtermék gyártása | B93: 2 | C93: 3 | D93: 2 | E93: 2 | F93: 3 | G93: 1 | I93: =IF(ISNUMBER(SEARCH($H$2,'Tevékenység lista'!A93)),MAX($I$1:I92)+1,0) -> 92 | J93: Fényképészet, videofelvétel készítés | L93: =IFERROR(VLOOKUP(ROWS($L$2:L93),I93:$J$302,2,FALSE),"") -> Fényképészet, videofelvétel készítés | Q93: =IF(--ISNUMBER(SEARCH(Díjszámítás!$C$12,A93)),MAX($Q$1:Q92)+1,"") -> 92 | R93: =IFERROR(INDEX($A$2:$A$302,MATCH(ROWS($Q$2:Q93),$Q$2:$Q$302,0)),"") -> 2369 Egyéb beton-, gipsz-, cementtermék gyártása
A94: 2370 Kőmegmunkálás | B94: 2 | C94: 3 | D94: 1 | E94: 2 | F94: 3 | G94: 1 | I94: =IF(ISNUMBER(SEARCH($H$2,'Tevékenység lista'!A94)),MAX($I$1:I93)+1,0) -> 93 | J94: Fénymásolás, sokszorosítás, bélyegzőkészítés | L94: =IFERROR(VLOOKUP(ROWS($L$2:L94),I94:$J$302,2,FALSE),"") -> Fénymásolás, sokszorosítás, bélyegzőkészítés | Q94: =IF(--ISNUMBER(SEARCH(Díjszámítás!$C$12,A94)),MAX($Q$1:Q93)+1,"") -> 93 | R94: =IFERROR(INDEX($A$2:$A$302,MATCH(ROWS($Q$2:Q94),$Q$2:$Q$302,0)),"") -> 2370 Kőmegmunkálás
A95: 2511 Fémszerkezet gyártása | B95: 6 | C95: 4 | D95: 1 | E95: 6 | F95: 2 | G95: 1 | I95: =IF(ISNUMBER(SEARCH($H$2,'Tevékenység lista'!A95)),MAX($I$1:I94)+1,0) -> 94 | J95: Festék, lakk kereskedelem | L95: =IFERROR(VLOOKUP(ROWS($L$2:L95),I95:$J$302,2,FALSE),"") -> Festék, lakk kereskedelem | Q95: =IF(--ISNUMBER(SEARCH(Díjszámítás!$C$12,A95)),MAX($Q$1:Q94)+1,"") -> 94 | R95: =IFERROR(INDEX($A$2:$A$302,MATCH(ROWS($Q$2:Q95),$Q$2:$Q$302,0)),"") -> 2511 Fémszerkezet gyártása
A96: 2512 Fém épületelem gyártása | B96: 6 | C96: 4 | D96: 1 | E96: 6 | F96: 2 | G96: 1 | I96: =IF(ISNUMBER(SEARCH($H$2,'Tevékenység lista'!A96)),MAX($I$1:I95)+1,0) -> 95 | J96: Festés, mázolás, tapétázás | L96: =IFERROR(VLOOKUP(ROWS($L$2:L96),I96:$J$302,2,FALSE),"") -> Festés, mázolás, tapétázás | Q96: =IF(--ISNUMBER(SEARCH(Díjszámítás!$C$12,A96)),MAX($Q$1:Q95)+1,"") -> 95 | R96: =IFERROR(INDEX($A$2:$A$302,MATCH(ROWS($Q$2:Q96),$Q$2:$Q$302,0)),"") -> 2512 Fém épületelem gyártása
A97: 2521 Központi fűtési kazán, radiátor gyártása | B97: 4 | C97: 4 | D97: 2 | E97: 4 | F97: 4 | G97: 2 | I97: =IF(ISNUMBER(SEARCH($H$2,'Tevékenység lista'!A97)),MAX($I$1:I96)+1,0) -> 96 | J97: Filmvetítés (mozi) | L97: =IFERROR(VLOOKUP(ROWS($L$2:L97),I97:$J$302,2,FALSE),"") -> Filmvetítés (mozi) | Q97: =IF(--ISNUMBER(SEARCH(Díjszámítás!$C$12,A97)),MAX($Q$1:Q96)+1,"") -> 96 | R97: =IFERROR(INDEX($A$2:$A$302,MATCH(ROWS($Q$2:Q97),$Q$2:$Q$302,0)),"") -> 2521 Központi fűtési kazán, radiátor gyártása
A98: 2529 Fémtartály gyártása | B98: 5 | C98: 4 | D98: 1 | E98: 5 | F98: 2 | G98: 1 | I98: =IF(ISNUMBER(SEARCH($H$2,'Tevékenység lista'!A98)),MAX($I$1:I97)+1,0) -> 97 | J98: Fitnesz center | L98: =IFERROR(VLOOKUP(ROWS($L$2:L98),I98:$J$302,2,FALSE),"") -> Fitnesz center | Q98: =IF(--ISNUMBER(SEARCH(Díjszámítás!$C$12,A98)),MAX($Q$1:Q97)+1,"") -> 97 | R98: =IFERROR(INDEX($A$2:$A$302,MATCH(ROWS($Q$2:Q98),$Q$2:$Q$302,0)),"") -> 2529 Fémtartály gyártása
A99: 2561 Fémfelület-kezelés | B99: 3 | C99: 4 | D99: 1 | E99: 3 | F99: 3 | G99: 1 | I99: =IF(ISNUMBER(SEARCH($H$2,'Tevékenység lista'!A99)),MAX($I$1:I98)+1,0) -> 98 | J99: Fodrászat | L99: =IFERROR(VLOOKUP(ROWS($L$2:L99),I99:$J$302,2,FALSE),"") -> Fodrászat | Q99: =IF(--ISNUMBER(SEARCH(Díjszámítás!$C$12,A99)),MAX($Q$1:Q98)+1,"") -> 98 | R99: =IFERROR(INDEX($A$2:$A$302,MATCH(ROWS($Q$2:Q99),$Q$2:$Q$302,0)),"") -> 2561 Fémfelület-kezelés
A100: 2562 Fémmegmunkálás | B100: 3 | C100: 4 | D100: 1 | E100: 3 | F100: 3 | G100: 1 | I100: =IF(ISNUMBER(SEARCH($H$2,'Tevékenység lista'!A100)),MAX($I$1:I99)+1,0) -> 99 | J100: Fogorvosi ellátás | L100: =IFERROR(VLOOKUP(ROWS($L$2:L100),I100:$J$302,2,FALSE),"") -> Fogorvosi ellátás | Q100: =IF(--ISNUMBER(SEARCH(Díjszámítás!$C$12,A100)),MAX($Q$1:Q99)+1,"") -> 99 | R100: =IFERROR(INDEX($A$2:$A$302,MATCH(ROWS($Q$2:Q100),$Q$2:$Q$302,0)),"") -> 2562 Fémmegmunkálás
A101: 2571 Evőeszköz gyártása | B101: 4 | C101: 4 | D101: 1 | E101: 4 | F101: 2 | G101: 1 | I101: =IF(ISNUMBER(SEARCH($H$2,'Tevékenység lista'!A101)),MAX($I$1:I100)+1,0) -> 100 | J101: Fogtechnikus | L101: =IFERROR(VLOOKUP(ROWS($L$2:L101),I101:$J$302,2,FALSE),"") -> Fogtechnikus | Q101: =IF(--ISNUMBER(SEARCH(Díjszámítás!$C$12,A101)),MAX($Q$1:Q100)+1,"") -> 100 | R101: =IFERROR(INDEX($A$2:$A$302,MATCH(ROWS($Q$2:Q101),$Q$2:$Q$302,0)),"") -> 2571 Evőeszköz gyártása
A102: 2572 Lakat-, zárgyártás | B102: 4 | C102: 4 | D102: 1 | E102: 4 | F102: 2 | G102: 1 | I102: =IF(ISNUMBER(SEARCH($H$2,'Tevékenység lista'!A102)),MAX($I$1:I101)+1,0) -> 101 | J102: Fotócikkek kereskedelme | L102: =IFERROR(VLOOKUP(ROWS($L$2:L102),I102:$J$302,2,FALSE),"") -> Fotócikkek kereskedelme | Q102: =IF(--ISNUMBER(SEARCH(Díjszámítás!$C$12,A102)),MAX($Q$1:Q101)+1,"") -> 101 | R102: =IFERROR(INDEX($A$2:$A$302,MATCH(ROWS($Q$2:Q102),$Q$2:$Q$302,0)),"") -> 2572 Lakat-, zárgyártás
A103: 2573 Szerszámgyártás | B103: 3 | C103: 3 | D103: 2 | E103: 3 | F103: 2 | G103: 1 | I103: =IF(ISNUMBER(SEARCH($H$2,'Tevékenység lista'!A103)),MAX($I$1:I102)+1,0) -> 102 | J103: Fűrészárugyártás | L103: =IFERROR(VLOOKUP(ROWS($L$2:L103),I103:$J$302,2,FALSE),"") -> Fűrészárugyártás | Q103: =IF(--ISNUMBER(SEARCH(Díjszámítás!$C$12,A103)),MAX($Q$1:Q102)+1,"") -> 102 | R103: =IFERROR(INDEX($A$2:$A$302,MATCH(ROWS($Q$2:Q103),$Q$2:$Q$302,0)),"") -> 2573 Szerszámgyártás
A104: 2591 Acél tárolóeszköz gyártása | B104: 6 | C104: 4 | D104: 1 | E104: 6 | F104: 2 | G104: 1 | I104: =IF(ISNUMBER(SEARCH($H$2,'Tevékenység lista'!A104)),MAX($I$1:I103)+1,0) -> 103 | J104: Fűszerpaprika őrlése vagy egyéb feldolgozása | L104: =IFERROR(VLOOKUP(ROWS($L$2:L104),I104:$J$302,2,FALSE),"") -> Fűszerpaprika őrlése vagy egyéb feldolgozása | Q104: =IF(--ISNUMBER(SEARCH(Díjszámítás!$C$12,A104)),MAX($Q$1:Q103)+1,"") -> 103 | R104: =IFERROR(INDEX($A$2:$A$302,MATCH(ROWS($Q$2:Q104),$Q$2:$Q$302,0)),"") -> 2591 Acél tárolóeszköz gyártása
A105: 2594 Kötőelem, csavar gyártása | B105: 4 | C105: 4 | D105: 1 | E105: 4 | F105: 2 | G105: 1 | I105: =IF(ISNUMBER(SEARCH($H$2,'Tevékenység lista'!A105)),MAX($I$1:I104)+1,0) -> 104 | J105: Fűtő-hűtő berendezések szerelése | L105: =IFERROR(VLOOKUP(ROWS($L$2:L105),I105:$J$302,2,FALSE),"") -> Fűtő-hűtő berendezések szerelése | Q105: =IF(--ISNUMBER(SEARCH(Díjszámítás!$C$12,A105)),MAX($Q$1:Q104)+1,"") -> 104 | R105: =IFERROR(INDEX($A$2:$A$302,MATCH(ROWS($Q$2:Q105),$Q$2:$Q$302,0)),"") -> 2594 Kötőelem, csavar gyártása
A106: 2599 M.n.s. egyéb fémfeldolgozási termék gyártása | B106: 4 | C106: 4 | D106: 3 | E106: 4 | F106: 3 | G106: 1 | I106: =IF(ISNUMBER(SEARCH($H$2,'Tevékenység lista'!A106)),MAX($I$1:I105)+1,0) -> 105 | J106: Garázsszolgáltatás, parkolás és járműőrzés | L106: =IFERROR(VLOOKUP(ROWS($L$2:L106),I106:$J$302,2,FALSE),"") -> Garázsszolgáltatás, parkolás és járműőrzés | Q106: =IF(--ISNUMBER(SEARCH(Díjszámítás!$C$12,A106)),MAX($Q$1:Q105)+1,"") -> 105 | R106: =IFERROR(INDEX($A$2:$A$302,MATCH(ROWS($Q$2:Q106),$Q$2:$Q$302,0)),"") -> 2599 M.n.s. egyéb fémfeldolgozási termék gyártása
A107: 2611 Elektronikai alkatrész gyártása | B107: 3 | C107: 3 | D107: 2 | E107: 3 | F107: 3 | G107: 1 | I107: =IF(ISNUMBER(SEARCH($H$2,'Tevékenység lista'!A107)),MAX($I$1:I106)+1,0) -> 106 | J107: Gázcseretelep | L107: =IFERROR(VLOOKUP(ROWS($L$2:L107),I107:$J$302,2,FALSE),"") -> Gázcseretelep | Q107: =IF(--ISNUMBER(SEARCH(Díjszámítás!$C$12,A107)),MAX($Q$1:Q106)+1,"") -> 106 | R107: =IFERROR(INDEX($A$2:$A$302,MATCH(ROWS($Q$2:Q107),$Q$2:$Q$302,0)),"") -> 2611 Elektronikai alkatrész gyártása
A108: 2620 Számítógép, perifériás egység gyártása | B108: 3 | C108: 3 | D108: 3 | E108: 3 | F108: 3 | G108: 2 | I108: =IF(ISNUMBER(SEARCH($H$2,'Tevékenység lista'!A108)),MAX($I$1:I107)+1,0) -> 107 | J108: Gázkészülékek javítása | L108: =IFERROR(VLOOKUP(ROWS($L$2:L108),I108:$J$302,2,FALSE),"") -> Gázkészülékek javítása | Q108: =IF(--ISNUMBER(SEARCH(Díjszámítás!$C$12,A108)),MAX($Q$1:Q107)+1,"") -> 107 | R108: =IFERROR(INDEX($A$2:$A$302,MATCH(ROWS($Q$2:Q108),$Q$2:$Q$302,0)),"") -> 2620 Számítógép, perifériás egység gyártása
A109: 2630 Híradás-technikai berendezés gyártása | B109: 4 | C109: 3 | D109: 2 | E109: 4 | F109: 3 | G109: 1 | I109: =IF(ISNUMBER(SEARCH($H$2,'Tevékenység lista'!A109)),MAX($I$1:I108)+1,0) -> 108 | J109: Gáz-, víz-, villanyszerelés | L109: =IFERROR(VLOOKUP(ROWS($L$2:L109),I109:$J$302,2,FALSE),"") -> Gáz-, víz-, villanyszerelés | Q109: =IF(--ISNUMBER(SEARCH(Díjszámítás!$C$12,A109)),MAX($Q$1:Q108)+1,"") -> 108 | R109: =IFERROR(INDEX($A$2:$A$302,MATCH(ROWS($Q$2:Q109),$Q$2:$Q$302,0)),"") -> 2630 Híradás-technikai berendezés gyártása
A110: 2651 Mérőműszergyártás | B110: 4 | C110: 3 | D110: 2 | E110: 4 | F110: 3 | G110: 1 | I110: =IF(ISNUMBER(SEARCH($H$2,'Tevékenység lista'!A110)),MAX($I$1:I109)+1,0) -> 109 | J110: Gépállomás | L110: =IFERROR(VLOOKUP(ROWS($L$2:L110),I110:$J$302,2,FALSE),"") -> Gépállomás | Q110: =IF(--ISNUMBER(SEARCH(Díjszámítás!$C$12,A110)),MAX($Q$1:Q109)+1,"") -> 109 | R110: =IFERROR(INDEX($A$2:$A$302,MATCH(ROWS($Q$2:Q110),$Q$2:$Q$302,0)),"") -> 2651 Mérőműszergyártás
A111: 2660 Elektronikus orvosi berendezés gyártása | B111: 3 | C111: 3 | D111: 2 | E111: 3 | F111: 2 | G111: 1 | I111: =IF(ISNUMBER(SEARCH($H$2,'Tevékenység lista'!A111)),MAX($I$1:I110)+1,0) -> 110 | J111: Gépek, gépi berendezések kölcsönzése | L111: =IFERROR(VLOOKUP(ROWS($L$2:L111),I111:$J$302,2,FALSE),"") -> Gépek, gépi berendezések kölcsönzése | Q111: =IF(--ISNUMBER(SEARCH(Díjszámítás!$C$12,A111)),MAX($Q$1:Q110)+1,"") -> 110 | R111: =IFERROR(INDEX($A$2:$A$302,MATCH(ROWS($Q$2:Q111),$Q$2:$Q$302,0)),"") -> 2660 Elektronikus orvosi berendezés gyártása
A112: 2670 Optikai eszköz gyártása | B112: 3 | C112: 3 | D112: 1 | E112: 3 | F112: 3 | G112: 2 | I112: =IF(ISNUMBER(SEARCH($H$2,'Tevékenység lista'!A112)),MAX($I$1:I111)+1,0) -> 111 | J112: Gépek, gépi berendezések gyártása | L112: =IFERROR(VLOOKUP(ROWS($L$2:L112),I112:$J$302,2,FALSE),"") -> Gépek, gépi berendezések gyártása | Q112: =IF(--ISNUMBER(SEARCH(Díjszámítás!$C$12,A112)),MAX($Q$1:Q111)+1,"") -> 111 | R112: =IFERROR(INDEX($A$2:$A$302,MATCH(ROWS($Q$2:Q112),$Q$2:$Q$302,0)),"") -> 2670 Optikai eszköz gyártása
A113: 2711 Villamos motor, áramfejlesztő gyártása | B113: 3 | C113: 3 | D113: 1 | E113: 3 | F113: 3 | G113: 1 | I113: =IF(ISNUMBER(SEARCH($H$2,'Tevékenység lista'!A113)),MAX($I$1:I112)+1,0) -> 112 | J113: Gépészeti berendezések kereskedelme | L113: =IFERROR(VLOOKUP(ROWS($L$2:L113),I113:$J$302,2,FALSE),"") -> Gépészeti berendezések kereskedelme | Q113: =IF(--ISNUMBER(SEARCH(Díjszámítás!$C$12,A113)),MAX($Q$1:Q112)+1,"") -> 112 | R113: =IFERROR(INDEX($A$2:$A$302,MATCH(ROWS($Q$2:Q113),$Q$2:$Q$302,0)),"") -> 2711 Villamos motor, áramfejlesztő gyártása
A114: 2712 Áramelosztó, -szabályozó készülék gyártása | B114: 3 | C114: 3 | D114: 1 | E114: 3 | F114: 3 | G114: 1 | I114: =IF(ISNUMBER(SEARCH($H$2,'Tevékenység lista'!A114)),MAX($I$1:I113)+1,0) -> 113 | J114: Gépjárműbontó | L114: =IFERROR(VLOOKUP(ROWS($L$2:L114),I114:$J$302,2,FALSE),"") -> Gépjárműbontó | Q114: =IF(--ISNUMBER(SEARCH(Díjszámítás!$C$12,A114)),MAX($Q$1:Q113)+1,"") -> 113 | R114: =IFERROR(INDEX($A$2:$A$302,MATCH(ROWS($Q$2:Q114),$Q$2:$Q$302,0)),"") -> 2712 Áramelosztó, -szabályozó készülék gyártása
A115: 2720 Akkumulátor, szárazelem gyártása | B115: 6 | C115: 3 | D115: 2 | E115: 6 | F115: 3 | G115: 1 | I115: =IF(ISNUMBER(SEARCH($H$2,'Tevékenység lista'!A115)),MAX($I$1:I114)+1,0) -> 114 | J115: Gépjárműfelépítmény-gyártás | L115: =IFERROR(VLOOKUP(ROWS($L$2:L115),I115:$J$302,2,FALSE),"") -> Gépjárműfelépítmény-gyártás | Q115: =IF(--ISNUMBER(SEARCH(Díjszámítás!$C$12,A115)),MAX($Q$1:Q114)+1,"") -> 114 | R115: =IFERROR(INDEX($A$2:$A$302,MATCH(ROWS($Q$2:Q115),$Q$2:$Q$302,0)),"") -> 2720 Akkumulátor, szárazelem gyártása
A116: 2731 Száloptikai kábel gyártása | B116: 6 | C116: 3 | D116: 2 | E116: 6 | F116: 2 | G116: 1 | I116: =IF(ISNUMBER(SEARCH($H$2,'Tevékenység lista'!A116)),MAX($I$1:I115)+1,0) -> 115 | J116: Gépjármű-felszerelési cikk kereskedelem | L116: =IFERROR(VLOOKUP(ROWS($L$2:L116),I116:$J$302,2,FALSE),"") -> Gépjármű-felszerelési cikk kereskedelem | Q116: =IF(--ISNUMBER(SEARCH(Díjszámítás!$C$12,A116)),MAX($Q$1:Q115)+1,"") -> 115 | R116: =IFERROR(INDEX($A$2:$A$302,MATCH(ROWS($Q$2:Q116),$Q$2:$Q$302,0)),"") -> 2731 Száloptikai kábel gyártása
A117: 2732 Egyéb elektronikus, villamos vezeték, kábel gyártása | B117: 6 | C117: 3 | D117: 2 | E117: 6 | F117: 2 | G117: 1 | I117: =IF(ISNUMBER(SEARCH($H$2,'Tevékenység lista'!A117)),MAX($I$1:I116)+1,0) -> 116 | J117: Gépjárműjavítás és -karbantartás (szerviz) | L117: =IFERROR(VLOOKUP(ROWS($L$2:L117),I117:$J$302,2,FALSE),"") -> Gépjárműjavítás és -karbantartás (szerviz) | Q117: =IF(--ISNUMBER(SEARCH(Díjszámítás!$C$12,A117)),MAX($Q$1:Q116)+1,"") -> 116 | R117: =IFERROR(INDEX($A$2:$A$302,MATCH(ROWS($Q$2:Q117),$Q$2:$Q$302,0)),"") -> 2732 Egyéb elektronikus, villamos vezeték, kábel gyártása
A118: 2733 Szerelvény gyártása | B118: 4 | C118: 4 | D118: 1 | E118: 4 | F118: 2 | G118: 1 | I118: =IF(ISNUMBER(SEARCH($H$2,'Tevékenység lista'!A118)),MAX($I$1:I117)+1,0) -> 117 | J118: Gépjárműjavítás és -karbantartás (szerviz), és gépjárműalkatrész kereskedelem | L118: =IFERROR(VLOOKUP(ROWS($L$2:L118),I118:$J$302,2,FALSE),"") -> Gépjárműjavítás és -karbantartás (szerviz), és gépjárműalkatrész kereskedelem | Q118: =IF(--ISNUMBER(SEARCH(Díjszámítás!$C$12,A118)),MAX($Q$1:Q117)+1,"") -> 117 | R118: =IFERROR(INDEX($A$2:$A$302,MATCH(ROWS($Q$2:Q118),$Q$2:$Q$302,0)),"") -> 2733 Szerelvény gyártása
A119: 2740 Villamos világítóeszköz gyártása | B119: 4 | C119: 3 | D119: 1 | E119: 4 | F119: 2 | G119: 1 | I119: =IF(ISNUMBER(SEARCH($H$2,'Tevékenység lista'!A119)),MAX($I$1:I118)+1,0) -> 118 | J119: Gépjármű karosszériafényező | L119: =IFERROR(VLOOKUP(ROWS($L$2:L119),I119:$J$302,2,FALSE),"") -> Gépjármű karosszériafényező | Q119: =IF(--ISNUMBER(SEARCH(Díjszámítás!$C$12,A119)),MAX($Q$1:Q118)+1,"") -> 118 | R119: =IFERROR(INDEX($A$2:$A$302,MATCH(ROWS($Q$2:Q119),$Q$2:$Q$302,0)),"") -> 2740 Villamos világítóeszköz gyártása
A120: 2751 Háztartási villamos készülék gyártása | B120: 3 | C120: 3 | D120: 2 | E120: 3 | F120: 3 | G120: 1 | I120: =IF(ISNUMBER(SEARCH($H$2,'Tevékenység lista'!A120)),MAX($I$1:I119)+1,0) -> 119 | J120: Gépjármű karosszérialakatos | L120: =IFERROR(VLOOKUP(ROWS($L$2:L120),I120:$J$302,2,FALSE),"") -> Gépjármű karosszérialakatos | Q120: =IF(--ISNUMBER(SEARCH(Díjszámítás!$C$12,A120)),MAX($Q$1:Q119)+1,"") -> 119 | R120: =IFERROR(INDEX($A$2:$A$302,MATCH(ROWS($Q$2:Q120),$Q$2:$Q$302,0)),"") -> 2751 Háztartási villamos készülék gyártása
A121: 2752 Nem villamos háztartási készülék gyártása | B121: 3 | C121: 3 | D121: 2 | E121: 3 | F121: 3 | G121: 1 | I121: =IF(ISNUMBER(SEARCH($H$2,'Tevékenység lista'!A121)),MAX($I$1:I120)+1,0) -> 120 | J121: Gépjármű-villamossági javítás | L121: =IFERROR(VLOOKUP(ROWS($L$2:L121),I121:$J$302,2,FALSE),"") -> Gépjármű-villamossági javítás | Q121: =IF(--ISNUMBER(SEARCH(Díjszámítás!$C$12,A121)),MAX($Q$1:Q120)+1,"") -> 120 | R121: =IFERROR(INDEX($A$2:$A$302,MATCH(ROWS($Q$2:Q121),$Q$2:$Q$302,0)),"") -> 2752 Nem villamos háztartási készülék gyártása
A122: 2790 Egyéb villamos berendezés gyártása | B122: 3 | C122: 3 | D122: 2 | E122: 3 | F122: 3 | G122: 1 | I122: =IF(ISNUMBER(SEARCH($H$2,'Tevékenység lista'!A122)),MAX($I$1:I121)+1,0) -> 121 | J122: Gépjárműalkatrész kereskedelem | L122: =IFERROR(VLOOKUP(ROWS($L$2:L122),I122:$J$302,2,FALSE),"") -> Gépjárműalkatrész kereskedelem | Q122: =IF(--ISNUMBER(SEARCH(Díjszámítás!$C$12,A122)),MAX($Q$1:Q121)+1,"") -> 121 | R122: =IFERROR(INDEX($A$2:$A$302,MATCH(ROWS($Q$2:Q122),$Q$2:$Q$302,0)),"") -> 2790 Egyéb villamos berendezés gyártása
A123: 2814 Csap, szelep gyártása | B123: 4 | C123: 4 | D123: 1 | E123: 4 | F123: 2 | G123: 1 | I123: =IF(ISNUMBER(SEARCH($H$2,'Tevékenység lista'!A123)),MAX($I$1:I122)+1,0) -> 122 | J123: Gépjármű-üzemanyag és kenőanyag kereskedelem (benzinkút) | L123: =IFERROR(VLOOKUP(ROWS($L$2:L123),I123:$J$302,2,FALSE),"") -> Gépjármű-üzemanyag és kenőanyag kereskedelem (benzinkút) | Q123: =IF(--ISNUMBER(SEARCH(Díjszámítás!$C$12,A123)),MAX($Q$1:Q122)+1,"") -> 122 | R123: =IFERROR(INDEX($A$2:$A$302,MATCH(ROWS($Q$2:Q123),$Q$2:$Q$302,0)),"") -> 2814 Csap, szelep gyártása
A124: 2823 Irodagép gyártása (kivéve: számítógép és perifériái) | B124: 3 | C124: 3 | D124: 3 | E124: 3 | F124: 3 | G124: 2 | I124: =IF(ISNUMBER(SEARCH($H$2,'Tevékenység lista'!A124)),MAX($I$1:I123)+1,0) -> 123 | J124: GPS nyomkövető berendezések fejlesztése, gyártása, üzemeltetése | L124: =IFERROR(VLOOKUP(ROWS($L$2:L124),I124:$J$302,2,FALSE),"") -> GPS nyomkövető berendezések fejlesztése, gyártása, üzemeltetése | Q124: =IF(--ISNUMBER(SEARCH(Díjszámítás!$C$12,A124)),MAX($Q$1:Q123)+1,"") -> 123 | R124: =IFERROR(INDEX($A$2:$A$302,MATCH(ROWS($Q$2:Q124),$Q$2:$Q$302,0)),"") -> 2823 Irodagép gyártása (kivéve: számítógép és perifériái)
A125: 2824 Gépi meghajtású hordozható kézi szerszámgép gyártása | B125: 3 | C125: 3 | D125: 1 | E125: 3 | F125: 3 | G125: 1 | I125: =IF(ISNUMBER(SEARCH($H$2,'Tevékenység lista'!A125)),MAX($I$1:I124)+1,0) -> 124 | J125: Gumijavító | L125: =IFERROR(VLOOKUP(ROWS($L$2:L125),I125:$J$302,2,FALSE),"") -> Gumijavító | Q125: =IF(--ISNUMBER(SEARCH(Díjszámítás!$C$12,A125)),MAX($Q$1:Q124)+1,"") -> 124 | R125: =IFERROR(INDEX($A$2:$A$302,MATCH(ROWS($Q$2:Q125),$Q$2:$Q$302,0)),"") -> 2824 Gépi meghajtású hordozható kézi szerszámgép gyártása
A126: 2829 M.n.s. egyéb általános rendeltetésű gép gyártása | B126: 4 | C126: 3 | D126: 2 | E126: 4 | F126: 3 | G126: 3 | I126: =IF(ISNUMBER(SEARCH($H$2,'Tevékenység lista'!A126)),MAX($I$1:I125)+1,0) -> 125 | J126: Gumitermékek gyártása | L126: =IFERROR(VLOOKUP(ROWS($L$2:L126),I126:$J$302,2,FALSE),"") -> Gumitermékek gyártása | Q126: =IF(--ISNUMBER(SEARCH(Díjszámítás!$C$12,A126)),MAX($Q$1:Q125)+1,"") -> 125 | R126: =IFERROR(INDEX($A$2:$A$302,MATCH(ROWS($Q$2:Q126),$Q$2:$Q$302,0)),"") -> 2829 M.n.s. egyéb általános rendeltetésű gép gyártása
A127: 2830 Mezőgazdasági, erdészeti gép gyártása | B127: 3 | C127: 3 | D127: 1 | E127: 3 | F127: 3 | G127: 1 | I127: =IF(ISNUMBER(SEARCH($H$2,'Tevékenység lista'!A127)),MAX($I$1:I126)+1,0) -> 126 | J127: Gyapjúfonás, szövés | L127: =IFERROR(VLOOKUP(ROWS($L$2:L127),I127:$J$302,2,FALSE),"") -> Gyapjúfonás, szövés | Q127: =IF(--ISNUMBER(SEARCH(Díjszámítás!$C$12,A127)),MAX($Q$1:Q126)+1,"") -> 126 | R127: =IFERROR(INDEX($A$2:$A$302,MATCH(ROWS($Q$2:Q127),$Q$2:$Q$302,0)),"") -> 2830 Mezőgazdasági, erdészeti gép gyártása
A128: 2841 Fémmegmunkáló szerszámgép gyártása | B128: 3 | C128: 3 | D128: 1 | E128: 3 | F128: 3 | G128: 1 | I128: =IF(ISNUMBER(SEARCH($H$2,'Tevékenység lista'!A128)),MAX($I$1:I127)+1,0) -> 127 | J128: Gyermektápszergyártás | L128: =IFERROR(VLOOKUP(ROWS($L$2:L128),I128:$J$302,2,FALSE),"") -> Gyermektápszergyártás | Q128: =IF(--ISNUMBER(SEARCH(Díjszámítás!$C$12,A128)),MAX($Q$1:Q127)+1,"") -> 127 | R128: =IFERROR(INDEX($A$2:$A$302,MATCH(ROWS($Q$2:Q128),$Q$2:$Q$302,0)),"") -> 2841 Fémmegmunkáló szerszámgép gyártása
A129: 2849 Egyéb szerszámgép gyártása | B129: 3 | C129: 3 | D129: 1 | E129: 3 | F129: 3 | G129: 1 | I129: =IF(ISNUMBER(SEARCH($H$2,'Tevékenység lista'!A129)),MAX($I$1:I128)+1,0) -> 128 | J129: Gyógyászati segédeszközök gyártása | L129: =IFERROR(VLOOKUP(ROWS($L$2:L129),I129:$J$302,2,FALSE),"") -> Gyógyászati segédeszközök gyártása | Q129: =IF(--ISNUMBER(SEARCH(Díjszámítás!$C$12,A129)),MAX($Q$1:Q128)+1,"") -> 128 | R129: =IFERROR(INDEX($A$2:$A$302,MATCH(ROWS($Q$2:Q129),$Q$2:$Q$302,0)),"") -> 2849 Egyéb szerszámgép gyártása
A130: 2893 Élelmiszer-, dohányipari gép gyártása | B130: 3 | C130: 3 | D130: 2 | E130: 3 | F130: 3 | G130: 1 | I130: =IF(ISNUMBER(SEARCH($H$2,'Tevékenység lista'!A130)),MAX($I$1:I129)+1,0) -> 129 | J130: Gyógyászati segédeszközök kereskedelme | L130: =IFERROR(VLOOKUP(ROWS($L$2:L130),I130:$J$302,2,FALSE),"") -> Gyógyászati segédeszközök kereskedelme | Q130: =IF(--ISNUMBER(SEARCH(Díjszámítás!$C$12,A130)),MAX($Q$1:Q129)+1,"") -> 129 | R130: =IFERROR(INDEX($A$2:$A$302,MATCH(ROWS($Q$2:Q130),$Q$2:$Q$302,0)),"") -> 2893 Élelmiszer-, dohányipari gép gyártása
A131: 2894 Textil-, ruházati, bőripari gép gyártása | B131: 4 | C131: 3 | D131: 2 | E131: 4 | F131: 3 | G131: 1 | I131: =IF(ISNUMBER(SEARCH($H$2,'Tevékenység lista'!A131)),MAX($I$1:I130)+1,0) -> 130 | J131: Gyógynövény kereskedelem | L131: =IFERROR(VLOOKUP(ROWS($L$2:L131),I131:$J$302,2,FALSE),"") -> Gyógynövény kereskedelem | Q131: =IF(--ISNUMBER(SEARCH(Díjszámítás!$C$12,A131)),MAX($Q$1:Q130)+1,"") -> 130 | R131: =IFERROR(INDEX($A$2:$A$302,MATCH(ROWS($Q$2:Q131),$Q$2:$Q$302,0)),"") -> 2894 Textil-, ruházati, bőripari gép gyártása
A132: 2895 Papíripari gép gyártása | B132: 4 | C132: 3 | D132: 2 | E132: 4 | F132: 3 | G132: 1 | I132: =IF(ISNUMBER(SEARCH($H$2,'Tevékenység lista'!A132)),MAX($I$1:I131)+1,0) -> 131 | J132: Gyógynövények szárítása, feldolgozása és kiszerelése | L132: =IFERROR(VLOOKUP(ROWS($L$2:L132),I132:$J$302,2,FALSE),"") -> Gyógynövények szárítása, feldolgozása és kiszerelése | Q132: =IF(--ISNUMBER(SEARCH(Díjszámítás!$C$12,A132)),MAX($Q$1:Q131)+1,"") -> 131 | R132: =IFERROR(INDEX($A$2:$A$302,MATCH(ROWS($Q$2:Q132),$Q$2:$Q$302,0)),"") -> 2895 Papíripari gép gyártása
A133: 2896 Műanyag-, gumifeldolgozó gép gyártása | B133: 4 | C133: 3 | D133: 2 | E133: 4 | F133: 3 | G133: 1 | I133: =IF(ISNUMBER(SEARCH($H$2,'Tevékenység lista'!A133)),MAX($I$1:I132)+1,0) -> 132 | J133: Gyógyszer nagykereskedelem | L133: =IFERROR(VLOOKUP(ROWS($L$2:L133),I133:$J$302,2,FALSE),"") -> Gyógyszer nagykereskedelem | Q133: =IF(--ISNUMBER(SEARCH(Díjszámítás!$C$12,A133)),MAX($Q$1:Q132)+1,"") -> 132 | R133: =IFERROR(INDEX($A$2:$A$302,MATCH(ROWS($Q$2:Q133),$Q$2:$Q$302,0)),"") -> 2896 Műanyag-, gumifeldolgozó gép gyártása
A134: 2899 M.n.s. egyéb speciális gép gyártása | B134: 4 | C134: 3 | D134: 2 | E134: 4 | F134: 3 | G134: 1 | I134: =IF(ISNUMBER(SEARCH($H$2,'Tevékenység lista'!A134)),MAX($I$1:I133)+1,0) -> 133 | J134: Gyógyszertár | L134: =IFERROR(VLOOKUP(ROWS($L$2:L134),I134:$J$302,2,FALSE),"") -> Gyógyszertár | Q134: =IF(--ISNUMBER(SEARCH(Díjszámítás!$C$12,A134)),MAX($Q$1:Q133)+1,"") -> 133 | R134: =IFERROR(INDEX($A$2:$A$302,MATCH(ROWS($Q$2:Q134),$Q$2:$Q$302,0)),"") -> 2899 M.n.s. egyéb speciális gép gyártása
A135: 2931 Járművillamossági, -elektronikai készülékek gyártása | B135: 3 | C135: 3 | D135: 3 | E135: 3 | F135: 3 | G135: 3 | I135: =IF(ISNUMBER(SEARCH($H$2,'Tevékenység lista'!A135)),MAX($I$1:I134)+1,0) -> 134 | J135: Gyümölcs- és zöldségfeldolgozás | L135: =IFERROR(VLOOKUP(ROWS($L$2:L135),I135:$J$302,2,FALSE),"") -> Gyümölcs- és zöldségfeldolgozás | Q135: =IF(--ISNUMBER(SEARCH(Díjszámítás!$C$12,A135)),MAX($Q$1:Q134)+1,"") -> 134 | R135: =IFERROR(INDEX($A$2:$A$302,MATCH(ROWS($Q$2:Q135),$Q$2:$Q$302,0)),"") -> 2931 Járművillamossági, -elektronikai készülékek gyártása
A136: 2932 Közúti jármű, járműmotor alkatrészeinek gyártása | B136: 4 | C136: 3 | D136: 3 | E136: 4 | F136: 3 | G136: 3 | I136: =IF(ISNUMBER(SEARCH($H$2,'Tevékenység lista'!A136)),MAX($I$1:I135)+1,0) -> 135 | J136: Hangfelvétel készítés (hangstúdió) | L136: =IFERROR(VLOOKUP(ROWS($L$2:L136),I136:$J$302,2,FALSE),"") -> Hangfelvétel készítés (hangstúdió) | Q136: =IF(--ISNUMBER(SEARCH(Díjszámítás!$C$12,A136)),MAX($Q$1:Q135)+1,"") -> 135 | R136: =IFERROR(INDEX($A$2:$A$302,MATCH(ROWS($Q$2:Q136),$Q$2:$Q$302,0)),"") -> 2932 Közúti jármű, járműmotor alkatrészeinek gyártása
A137: 3091 Motorkerékpár gyártása | B137: 4 | C137: 3 | D137: 4 | E137: 4 | F137: 3 | G137: 1 | I137: =IF(ISNUMBER(SEARCH($H$2,'Tevékenység lista'!A137)),MAX($I$1:I136)+1,0) -> 136 | J137: Hangszerkereskedés | L137: =IFERROR(VLOOKUP(ROWS($L$2:L137),I137:$J$302,2,FALSE),"") -> Hangszerkereskedés | Q137: =IF(--ISNUMBER(SEARCH(Díjszámítás!$C$12,A137)),MAX($Q$1:Q136)+1,"") -> 136 | R137: =IFERROR(INDEX($A$2:$A$302,MATCH(ROWS($Q$2:Q137),$Q$2:$Q$302,0)),"") -> 3091 Motorkerékpár gyártása
A138: 3092 Kerékpár, mozgássérültkocsi gyártása | B138: 4 | C138: 3 | D138: 4 | E138: 4 | F138: 3 | G138: 1 | I138: =IF(ISNUMBER(SEARCH($H$2,'Tevékenység lista'!A138)),MAX($I$1:I137)+1,0) -> 137 | J138: Hangszergyártás | L138: =IFERROR(VLOOKUP(ROWS($L$2:L138),I138:$J$302,2,FALSE),"") -> Hangszergyártás | Q138: =IF(--ISNUMBER(SEARCH(Díjszámítás!$C$12,A138)),MAX($Q$1:Q137)+1,"") -> 137 | R138: =IFERROR(INDEX($A$2:$A$302,MATCH(ROWS($Q$2:Q138),$Q$2:$Q$302,0)),"") -> 3092 Kerékpár, mozgássérültkocsi gyártása
A139: 3101 Irodabútor gyártása | B139: 6 | C139: 3 | D139: 2 | E139: 6 | F139: 3 | G139: 2 | I139: =IF(ISNUMBER(SEARCH($H$2,'Tevékenység lista'!A139)),MAX($I$1:I138)+1,0) -> 138 | J139: Hangszerjavítás | L139: =IFERROR(VLOOKUP(ROWS($L$2:L139),I139:$J$302,2,FALSE),"") -> Hangszerjavítás | Q139: =IF(--ISNUMBER(SEARCH(Díjszámítás!$C$12,A139)),MAX($Q$1:Q138)+1,"") -> 138 | R139: =IFERROR(INDEX($A$2:$A$302,MATCH(ROWS($Q$2:Q139),$Q$2:$Q$302,0)),"") -> 3101 Irodabútor gyártása
A140: 3102 Konyhabútorgyártás | B140: 6 | C140: 3 | D140: 2 | E140: 6 | F140: 3 | G140: 2 | I140: =IF(ISNUMBER(SEARCH($H$2,'Tevékenység lista'!A140)),MAX($I$1:I139)+1,0) -> 139 | J140: Hangtechnikai kis- és nagykereskedelem | L140: =IFERROR(VLOOKUP(ROWS($L$2:L140),I140:$J$302,2,FALSE),"") -> Hangtechnikai kis- és nagykereskedelem | Q140: =IF(--ISNUMBER(SEARCH(Díjszámítás!$C$12,A140)),MAX($Q$1:Q139)+1,"") -> 139 | R140: =IFERROR(INDEX($A$2:$A$302,MATCH(ROWS($Q$2:Q140),$Q$2:$Q$302,0)),"") -> 3102 Konyhabútorgyártás
A141: 3103 Ágybetét gyártása | B141: 6 | C141: 3 | D141: 2 | E141: 6 | F141: 3 | G141: 2 | I141: =IF(ISNUMBER(SEARCH($H$2,'Tevékenység lista'!A141)),MAX($I$1:I140)+1,0) -> 140 | J141: Háztartási elektromos készülékek kereskedelme (hűtő, mosógép, bojler) | L141: =IFERROR(VLOOKUP(ROWS($L$2:L141),I141:$J$302,2,FALSE),"") -> Háztartási elektromos készülékek kereskedelme (hűtő, mosógép, bojler) | Q141: =IF(--ISNUMBER(SEARCH(Díjszámítás!$C$12,A141)),MAX($Q$1:Q140)+1,"") -> 140 | R141: =IFERROR(INDEX($A$2:$A$302,MATCH(ROWS($Q$2:Q141),$Q$2:$Q$302,0)),"") -> 3103 Ágybetét gyártása
A142: 3109 Egyéb bútor gyártása | B142: 6 | C142: 3 | D142: 2 | E142: 6 | F142: 3 | G142: 2 | I142: =IF(ISNUMBER(SEARCH($H$2,'Tevékenység lista'!A142)),MAX($I$1:I141)+1,0) -> 141 | J142: Háztartási- és egészségügyi papírtermékgyártás | L142: =IFERROR(VLOOKUP(ROWS($L$2:L142),I142:$J$302,2,FALSE),"") -> Háztartási- és egészségügyi papírtermékgyártás | Q142: =IF(--ISNUMBER(SEARCH(Díjszámítás!$C$12,A142)),MAX($Q$1:Q141)+1,"") -> 141 | R142: =IFERROR(INDEX($A$2:$A$302,MATCH(ROWS($Q$2:Q142),$Q$2:$Q$302,0)),"") -> 3109 Egyéb bútor gyártása
A143: 3220 Hangszergyártás | B143: 4 | C143: 3 | D143: 2 | E143: 4 | F143: 2 | G143: 1 | I143: =IF(ISNUMBER(SEARCH($H$2,'Tevékenység lista'!A143)),MAX($I$1:I142)+1,0) -> 142 | J143: Háztartási fémáru (finomacél áru, edény, étkészlet stb.) kereskedelem | L143: =IFERROR(VLOOKUP(ROWS($L$2:L143),I143:$J$302,2,FALSE),"") -> Háztartási fémáru (finomacél áru, edény, étkészlet stb.) kereskedelem | Q143: =IF(--ISNUMBER(SEARCH(Díjszámítás!$C$12,A143)),MAX($Q$1:Q142)+1,"") -> 142 | R143: =IFERROR(INDEX($A$2:$A$302,MATCH(ROWS($Q$2:Q143),$Q$2:$Q$302,0)),"") -> 3220 Hangszergyártás
A144: 3230 Sportszergyártás | B144: 5 | C144: 3 | D144: 2 | E144: 5 | F144: 3 | G144: 1 | I144: =IF(ISNUMBER(SEARCH($H$2,'Tevékenység lista'!A144)),MAX($I$1:I143)+1,0) -> 143 | J144: Háztartási főző-, fűtő- és vízmelegítő készülékek kereskedelme | L144: =IFERROR(VLOOKUP(ROWS($L$2:L144),I144:$J$302,2,FALSE),"") -> Háztartási főző-, fűtő- és vízmelegítő készülékek kereskedelme | Q144: =IF(--ISNUMBER(SEARCH(Díjszámítás!$C$12,A144)),MAX($Q$1:Q143)+1,"") -> 143 | R144: =IFERROR(INDEX($A$2:$A$302,MATCH(ROWS($Q$2:Q144),$Q$2:$Q$302,0)),"") -> 3230 Sportszergyártás
A145: 3240 Játékgyártás | B145: 5 | C145: 3 | D145: 2 | E145: 5 | F145: 3 | G145: 1 | I145: =IF(ISNUMBER(SEARCH($H$2,'Tevékenység lista'!A145)),MAX($I$1:I144)+1,0) -> 144 | J145: Háztartási gépek javítása (hűtő, mosógép, bojler) | L145: =IFERROR(VLOOKUP(ROWS($L$2:L145),I145:$J$302,2,FALSE),"") -> Háztartási gépek javítása (hűtő, mosógép, bojler) | Q145: =IF(--ISNUMBER(SEARCH(Díjszámítás!$C$12,A145)),MAX($Q$1:Q144)+1,"") -> 144 | R145: =IFERROR(INDEX($A$2:$A$302,MATCH(ROWS($Q$2:Q145),$Q$2:$Q$302,0)),"") -> 3240 Játékgyártás
A146: 3250 Orvosi eszköz gyártása | B146: 3 | C146: 3 | D146: 2 | E146: 3 | F146: 2 | G146: 1 | I146: =IF(ISNUMBER(SEARCH($H$2,'Tevékenység lista'!A146)),MAX($I$1:I145)+1,0) -> 145 | J146: Háztartási készülékek gyártása | L146: =IFERROR(VLOOKUP(ROWS($L$2:L146),I146:$J$302,2,FALSE),"") -> Háztartási készülékek gyártása | Q146: =IF(--ISNUMBER(SEARCH(Díjszámítás!$C$12,A146)),MAX($Q$1:Q145)+1,"") -> 145 | R146: =IFERROR(INDEX($A$2:$A$302,MATCH(ROWS($Q$2:Q146),$Q$2:$Q$302,0)),"") -> 3250 Orvosi eszköz gyártása
A147: 3291 Seprű-, kefegyártás | B147: 6 | C147: 3 | D147: 1 | E147: 6 | F147: 3 | G147: 1 | I147: =IF(ISNUMBER(SEARCH($H$2,'Tevékenység lista'!A147)),MAX($I$1:I146)+1,0) -> 146 | J147: Háztartási műanyagáru kereskedelem | L147: =IFERROR(VLOOKUP(ROWS($L$2:L147),I147:$J$302,2,FALSE),"") -> Háztartási műanyagáru kereskedelem | Q147: =IF(--ISNUMBER(SEARCH(Díjszámítás!$C$12,A147)),MAX($Q$1:Q146)+1,"") -> 146 | R147: =IFERROR(INDEX($A$2:$A$302,MATCH(ROWS($Q$2:Q147),$Q$2:$Q$302,0)),"") -> 3291 Seprű-, kefegyártás
A148: 3313 Elektronikus, optikai eszköz javítása | B148: 3 | C148: 4 | D148: 1 | E148: 3 | F148: 2 | G148: 2 | I148: =IF(ISNUMBER(SEARCH($H$2,'Tevékenység lista'!A148)),MAX($I$1:I147)+1,0) -> 147 | J148: Háztartási vegyiáru kereskedelem | L148: =IFERROR(VLOOKUP(ROWS($L$2:L148),I148:$J$302,2,FALSE),"") -> Háztartási vegyiáru kereskedelem | Q148: =IF(--ISNUMBER(SEARCH(Díjszámítás!$C$12,A148)),MAX($Q$1:Q147)+1,"") -> 147 | R148: =IFERROR(INDEX($A$2:$A$302,MATCH(ROWS($Q$2:Q148),$Q$2:$Q$302,0)),"") -> 3313 Elektronikus, optikai eszköz javítása
A149: 3314 Ipari villamos gép, berendezés javítása | B149: 3 | C149: 4 | D149: 3 | E149: 3 | F149: 1 | G149: 1 | I149: =IF(ISNUMBER(SEARCH($H$2,'Tevékenység lista'!A149)),MAX($I$1:I148)+1,0) -> 148 | J149: Hidegburkoló (kerámia padlólap, csempe stb.) | L149: =IFERROR(VLOOKUP(ROWS($L$2:L149),I149:$J$302,2,FALSE),"") -> Hidegburkoló (kerámia padlólap, csempe stb.) | Q149: =IF(--ISNUMBER(SEARCH(Díjszámítás!$C$12,A149)),MAX($Q$1:Q148)+1,"") -> 148 | R149: =IFERROR(INDEX($A$2:$A$302,MATCH(ROWS($Q$2:Q149),$Q$2:$Q$302,0)),"") -> 3314 Ipari villamos gép, berendezés javítása
A150: 3317 Egyéb közlekedési eszköz javítása | B150: 3 | C150: 4 | D150: 4 | E150: 3 | F150: 3 | G150: 3 | I150: =IF(ISNUMBER(SEARCH($H$2,'Tevékenység lista'!A150)),MAX($I$1:I149)+1,0) -> 149 | J150: Híradástechnikai berendezések, fotócikkek kölcsönzése | L150: =IFERROR(VLOOKUP(ROWS($L$2:L150),I150:$J$302,2,FALSE),"") -> Híradástechnikai berendezések, fotócikkek kölcsönzése | Q150: =IF(--ISNUMBER(SEARCH(Díjszámítás!$C$12,A150)),MAX($Q$1:Q149)+1,"") -> 149 | R150: =IFERROR(INDEX($A$2:$A$302,MATCH(ROWS($Q$2:Q150),$Q$2:$Q$302,0)),"") -> 3317 Egyéb közlekedési eszköz javítása
A151: 4120 Lakó- és nem lakó épület építése | B151: 5 | C151: 5 | D151: 2 | E151: 5 | F151: 2 | G151: 1 | I151: =IF(ISNUMBER(SEARCH($H$2,'Tevékenység lista'!A151)),MAX($I$1:I150)+1,0) -> 150 | J151: Híradástechnikai- és elektronikai alkatrészgyártás | L151: =IFERROR(VLOOKUP(ROWS($L$2:L151),I151:$J$302,2,FALSE),"") -> Híradástechnikai- és elektronikai alkatrészgyártás | Q151: =IF(--ISNUMBER(SEARCH(Díjszámítás!$C$12,A151)),MAX($Q$1:Q150)+1,"") -> 150 | R151: =IFERROR(INDEX($A$2:$A$302,MATCH(ROWS($Q$2:Q151),$Q$2:$Q$302,0)),"") -> 4120 Lakó- és nem lakó épület építése
A152: 4299 Egyéb m.n.s. építés | B152: 5 | C152: 5 | D152: 2 | E152: 5 | F152: 2 | G152: 1 | I152: =IF(ISNUMBER(SEARCH($H$2,'Tevékenység lista'!A152)),MAX($I$1:I151)+1,0) -> 151 | J152: Hiradástechnikai termékek gyártása | L152: =IFERROR(VLOOKUP(ROWS($L$2:L152),I152:$J$302,2,FALSE),"") -> Hiradástechnikai termékek gyártása | Q152: =IF(--ISNUMBER(SEARCH(Díjszámítás!$C$12,A152)),MAX($Q$1:Q151)+1,"") -> 151 | R152: =IFERROR(INDEX($A$2:$A$302,MATCH(ROWS($Q$2:Q152),$Q$2:$Q$302,0)),"") -> 4299 Egyéb m.n.s. építés
A153: 4321 Villanyszerelés | B153: 5 | C153: 5 | D153: 2 | E153: 5 | F153: 1 | G153: 1 | I153: =IF(ISNUMBER(SEARCH($H$2,'Tevékenység lista'!A153)),MAX($I$1:I152)+1,0) -> 152 | J153: Hirdetési tevékenység | L153: =IFERROR(VLOOKUP(ROWS($L$2:L153),I153:$J$302,2,FALSE),"") -> Hirdetési tevékenység | Q153: =IF(--ISNUMBER(SEARCH(Díjszámítás!$C$12,A153)),MAX($Q$1:Q152)+1,"") -> 152 | R153: =IFERROR(INDEX($A$2:$A$302,MATCH(ROWS($Q$2:Q153),$Q$2:$Q$302,0)),"") -> 4321 Villanyszerelés
A154: 4322 Víz-, gáz-, fűtés-, légkondicionáló-szerelés | B154: 5 | C154: 5 | D154: 2 | E154: 5 | F154: 1 | G154: 1 | I154: =IF(ISNUMBER(SEARCH($H$2,'Tevékenység lista'!A154)),MAX($I$1:I153)+1,0) -> 153 | J154: Hírlapárusítás | L154: =IFERROR(VLOOKUP(ROWS($L$2:L154),I154:$J$302,2,FALSE),"") -> Hírlapárusítás | Q154: =IF(--ISNUMBER(SEARCH(Díjszámítás!$C$12,A154)),MAX($Q$1:Q153)+1,"") -> 153 | R154: =IFERROR(INDEX($A$2:$A$302,MATCH(ROWS($Q$2:Q154),$Q$2:$Q$302,0)),"") -> 4322 Víz-, gáz-, fűtés-, légkondicionáló-szerelés
A155: 4329 Egyéb épületgépészeti szerelés | B155: 5 | C155: 5 | D155: 2 | E155: 5 | F155: 2 | G155: 1 | I155: =IF(ISNUMBER(SEARCH($H$2,'Tevékenység lista'!A155)),MAX($I$1:I154)+1,0) -> 154 | J155: Hordós vagy tartályos bortárolás | L155: =IFERROR(VLOOKUP(ROWS($L$2:L155),I155:$J$302,2,FALSE),"") -> Hordós vagy tartályos bortárolás | Q155: =IF(--ISNUMBER(SEARCH(Díjszámítás!$C$12,A155)),MAX($Q$1:Q154)+1,"") -> 154 | R155: =IFERROR(INDEX($A$2:$A$302,MATCH(ROWS($Q$2:Q155),$Q$2:$Q$302,0)),"") -> 4329 Egyéb épületgépészeti szerelés
A156: 4331 Vakolás | B156: 5 | C156: 5 | D156: 2 | E156: 5 | F156: 2 | G156: 1 | I156: =IF(ISNUMBER(SEARCH($H$2,'Tevékenység lista'!A156)),MAX($I$1:I155)+1,0) -> 155 | J156: Horgász, vadász szaküzlet (lőfegyverek nélkül) | L156: =IFERROR(VLOOKUP(ROWS($L$2:L156),I156:$J$302,2,FALSE),"") -> Horgász, vadász szaküzlet (lőfegyverek nélkül) | Q156: =IF(--ISNUMBER(SEARCH(Díjszámítás!$C$12,A156)),MAX($Q$1:Q155)+1,"") -> 155 | R156: =IFERROR(INDEX($A$2:$A$302,MATCH(ROWS($Q$2:Q156),$Q$2:$Q$302,0)),"") -> 4331 Vakolás
A157: 4332 Épületasztalos-szerkezet szerelése | B157: 8 | C157: 5 | D157: 2 | E157: 8 | F157: 3 | G157: 1 | I157: =IF(ISNUMBER(SEARCH($H$2,'Tevékenység lista'!A157)),MAX($I$1:I156)+1,0) -> 156 | J157: Hús- és halfeldogozás | L157: =IFERROR(VLOOKUP(ROWS($L$2:L157),I157:$J$302,2,FALSE),"") -> Hús- és halfeldogozás | Q157: =IF(--ISNUMBER(SEARCH(Díjszámítás!$C$12,A157)),MAX($Q$1:Q156)+1,"") -> 156 | R157: =IFERROR(INDEX($A$2:$A$302,MATCH(ROWS($Q$2:Q157),$Q$2:$Q$302,0)),"") -> 4332 Épületasztalos-szerkezet szerelése
A158: 4333 Padló-, falburkolás | B158: 6 | C158: 5 | D158: 2 | E158: 6 | F158: 1 | G158: 1 | I158: =IF(ISNUMBER(SEARCH($H$2,'Tevékenység lista'!A158)),MAX($I$1:I157)+1,0) -> 157 | J158: Hús-, hal-, baromfi kereskedelem | L158: =IFERROR(VLOOKUP(ROWS($L$2:L158),I158:$J$302,2,FALSE),"") -> Hús-, hal-, baromfi kereskedelem | Q158: =IF(--ISNUMBER(SEARCH(Díjszámítás!$C$12,A158)),MAX($Q$1:Q157)+1,"") -> 157 | R158: =IFERROR(INDEX($A$2:$A$302,MATCH(ROWS($Q$2:Q158),$Q$2:$Q$302,0)),"") -> 4333 Padló-, falburkolás
A159: 4334 Festés, üvegezés | B159: 5 | C159: 5 | D159: 2 | E159: 5 | F159: 1 | G159: 1 | I159: =IF(ISNUMBER(SEARCH($H$2,'Tevékenység lista'!A159)),MAX($I$1:I158)+1,0) -> 158 | J159: Ingóvagyon kölcsönzése | L159: =IFERROR(VLOOKUP(ROWS($L$2:L159),I159:$J$302,2,FALSE),"") -> Ingóvagyon kölcsönzése | Q159: =IF(--ISNUMBER(SEARCH(Díjszámítás!$C$12,A159)),MAX($Q$1:Q158)+1,"") -> 158 | R159: =IFERROR(INDEX($A$2:$A$302,MATCH(ROWS($Q$2:Q159),$Q$2:$Q$302,0)),"") -> 4334 Festés, üvegezés
A160: 4339 Egyéb befejező építés m.n.s. | B160: 5 | C160: 5 | D160: 2 | E160: 5 | F160: 2 | G160: 1 | I160: =IF(ISNUMBER(SEARCH($H$2,'Tevékenység lista'!A160)),MAX($I$1:I159)+1,0) -> 159 | J160: Ipari fémtömegcikkek gyártása (forgácsolás) | L160: =IFERROR(VLOOKUP(ROWS($L$2:L160),I160:$J$302,2,FALSE),"") -> Ipari fémtömegcikkek gyártása (forgácsolás) | Q160: =IF(--ISNUMBER(SEARCH(Díjszámítás!$C$12,A160)),MAX($Q$1:Q159)+1,"") -> 159 | R160: =IFERROR(INDEX($A$2:$A$302,MATCH(ROWS($Q$2:Q160),$Q$2:$Q$302,0)),"") -> 4339 Egyéb befejező építés m.n.s.
A161: 4391 Tetőfedés, tetőszerkezet-építés | B161: 5 | C161: 5 | D161: 3 | E161: 5 | F161: 2 | G161: 1 | I161: =IF(ISNUMBER(SEARCH($H$2,'Tevékenység lista'!A161)),MAX($I$1:I160)+1,0) -> 160 | J161: Ipari híradástechnikai termékek gyártása | L161: =IFERROR(VLOOKUP(ROWS($L$2:L161),I161:$J$302,2,FALSE),"") -> Ipari híradástechnikai termékek gyártása | Q161: =IF(--ISNUMBER(SEARCH(Díjszámítás!$C$12,A161)),MAX($Q$1:Q160)+1,"") -> 160 | R161: =IFERROR(INDEX($A$2:$A$302,MATCH(ROWS($Q$2:Q161),$Q$2:$Q$302,0)),"") -> 4391 Tetőfedés, tetőszerkezet-építés
A162: 4399 Egyéb speciális szaképítés m.n.s. | B162: 5 | C162: 5 | D162: 2 | E162: 5 | F162: 2 | G162: 1 | I162: =IF(ISNUMBER(SEARCH($H$2,'Tevékenység lista'!A162)),MAX($I$1:I161)+1,0) -> 161 | J162: Iparművészeti jellegű üveg- és porcelán kereskedelem | L162: =IFERROR(VLOOKUP(ROWS($L$2:L162),I162:$J$302,2,FALSE),"") -> Iparművészeti jellegű üveg- és porcelán kereskedelem | Q162: =IF(--ISNUMBER(SEARCH(Díjszámítás!$C$12,A162)),MAX($Q$1:Q161)+1,"") -> 161 | R162: =IFERROR(INDEX($A$2:$A$302,MATCH(ROWS($Q$2:Q162),$Q$2:$Q$302,0)),"") -> 4399 Egyéb speciális szaképítés m.n.s.
A163: 4520 Gépjárműjavítás, -karbantartás | B163: 3 | C163: 4 | D163: 4 | E163: 3 | F163: 3 | G163: 3 | I163: =IF(ISNUMBER(SEARCH($H$2,'Tevékenység lista'!A163)),MAX($I$1:I162)+1,0) -> 162 | J163: Iroda - irodaházban | L163: =IFERROR(VLOOKUP(ROWS($L$2:L163),I163:$J$302,2,FALSE),"") -> Iroda - irodaházban | Q163: =IF(--ISNUMBER(SEARCH(Díjszámítás!$C$12,A163)),MAX($Q$1:Q162)+1,"") -> 162 | R163: =IFERROR(INDEX($A$2:$A$302,MATCH(ROWS($Q$2:Q163),$Q$2:$Q$302,0)),"") -> 4520 Gépjárműjavítás, -karbantartás
A164: 4531 Gépjárműalkatrész-nagykereskedelem | B164: 3 | C164: 4 | D164: 4 | E164: 3 | F164: 1 | G164: 1 | I164: =IF(ISNUMBER(SEARCH($H$2,'Tevékenység lista'!A164)),MAX($I$1:I163)+1,0) -> 163 | J164: Iroda - telephelyen, lakóházban | L164: =IFERROR(VLOOKUP(ROWS($L$2:L164),I164:$J$302,2,FALSE),"") -> Iroda - telephelyen, lakóházban | Q164: =IF(--ISNUMBER(SEARCH(Díjszámítás!$C$12,A164)),MAX($Q$1:Q163)+1,"") -> 163 | R164: =IFERROR(INDEX($A$2:$A$302,MATCH(ROWS($Q$2:Q164),$Q$2:$Q$302,0)),"") -> 4531 Gépjárműalkatrész-nagykereskedelem
A165: 4532 Gépjárműalkatrész-kiskereskedelem | B165: 3 | C165: 4 | D165: 4 | E165: 3 | F165: 1 | G165: 1 | I165: =IF(ISNUMBER(SEARCH($H$2,'Tevékenység lista'!A165)),MAX($I$1:I164)+1,0) -> 164 | J165: Iroda- és számítógépjavítás és -karbantartás | L165: =IFERROR(VLOOKUP(ROWS($L$2:L165),I165:$J$302,2,FALSE),"") -> Iroda- és számítógépjavítás és -karbantartás | Q165: =IF(--ISNUMBER(SEARCH(Díjszámítás!$C$12,A165)),MAX($Q$1:Q164)+1,"") -> 164 | R165: =IFERROR(INDEX($A$2:$A$302,MATCH(ROWS($Q$2:Q165),$Q$2:$Q$302,0)),"") -> 4532 Gépjárműalkatrész-kiskereskedelem
A166: 4540 Motorkerékpár, -alkatrész kereskedelme, javítása | B166: 5 | C166: 4 | D166: 3 | E166: 5 | F166: 3 | G166: 3 | I166: =IF(ISNUMBER(SEARCH($H$2,'Tevékenység lista'!A166)),MAX($I$1:I165)+1,0) -> 165 | J166: Irodagép- és számítógépgyártás | L166: =IFERROR(VLOOKUP(ROWS($L$2:L166),I166:$J$302,2,FALSE),"") -> Irodagép- és számítógépgyártás | Q166: =IF(--ISNUMBER(SEARCH(Díjszámítás!$C$12,A166)),MAX($Q$1:Q165)+1,"") -> 165 | R166: =IFERROR(INDEX($A$2:$A$302,MATCH(ROWS($Q$2:Q166),$Q$2:$Q$302,0)),"") -> 4540 Motorkerékpár, -alkatrész kereskedelme, javítása
A167: 4711 Élelmiszer jellegű bolti vegyes kiskereskedelem | B167: 2 | C167: 2 | D167: 2 | E167: 2 | F167: 1 | G167: 1 | I167: =IF(ISNUMBER(SEARCH($H$2,'Tevékenység lista'!A167)),MAX($I$1:I166)+1,0) -> 166 | J167: Irodagépek és gépi berendezések, számítástechnikai eszközök kölcsönzése | L167: =IFERROR(VLOOKUP(ROWS($L$2:L167),I167:$J$302,2,FALSE),"") -> Irodagépek és gépi berendezések, számítástechnikai eszközök kölcsönzése | Q167: =IF(--ISNUMBER(SEARCH(Díjszámítás!$C$12,A167)),MAX($Q$1:Q166)+1,"") -> 166 | R167: =IFERROR(INDEX($A$2:$A$302,MATCH(ROWS($Q$2:Q167),$Q$2:$Q$302,0)),"") -> 4711 Élelmiszer jellegű bolti vegyes kiskereskedelem
A168: 4721 Zöldség, gyümölcs kiskereskedelme | B168: 3 | C168: 2 | D168: 1 | E168: 3 | F168: 1 | G168: 1 | I168: =IF(ISNUMBER(SEARCH($H$2,'Tevékenység lista'!A168)),MAX($I$1:I167)+1,0) -> 167 | J168: Italkereskedés (szeszesital) | L168: =IFERROR(VLOOKUP(ROWS($L$2:L168),I168:$J$302,2,FALSE),"") -> Italkereskedés (szeszesital) | Q168: =IF(--ISNUMBER(SEARCH(Díjszámítás!$C$12,A168)),MAX($Q$1:Q167)+1,"") -> 167 | R168: =IFERROR(INDEX($A$2:$A$302,MATCH(ROWS($Q$2:Q168),$Q$2:$Q$302,0)),"") -> 4721 Zöldség, gyümölcs kiskereskedelme
A169: 4722 Hús-, húsáru kiskereskedelme | B169: 3 | C169: 2 | D169: 1 | E169: 3 | F169: 1 | G169: 1 | I169: =IF(ISNUMBER(SEARCH($H$2,'Tevékenység lista'!A169)),MAX($I$1:I168)+1,0) -> 168 | J169: Italok raktározása, nagykereskedelem, palackozás | L169: =IFERROR(VLOOKUP(ROWS($L$2:L169),I169:$J$302,2,FALSE),"") -> Italok raktározása, nagykereskedelem, palackozás | Q169: =IF(--ISNUMBER(SEARCH(Díjszámítás!$C$12,A169)),MAX($Q$1:Q168)+1,"") -> 168 | R169: =IFERROR(INDEX($A$2:$A$302,MATCH(ROWS($Q$2:Q169),$Q$2:$Q$302,0)),"") -> 4722 Hús-, húsáru kiskereskedelme
A170: 4723 Hal kiskereskedelme | B170: 3 | C170: 2 | D170: 1 | E170: 3 | F170: 1 | G170: 1 | I170: =IF(ISNUMBER(SEARCH($H$2,'Tevékenység lista'!A170)),MAX($I$1:I169)+1,0) -> 169 | J170: Járművek, járműalkatrészek gyártása | L170: =IFERROR(VLOOKUP(ROWS($L$2:L170),I170:$J$302,2,FALSE),"") -> Járművek, járműalkatrészek gyártása | Q170: =IF(--ISNUMBER(SEARCH(Díjszámítás!$C$12,A170)),MAX($Q$1:Q169)+1,"") -> 169 | R170: =IFERROR(INDEX($A$2:$A$302,MATCH(ROWS($Q$2:Q170),$Q$2:$Q$302,0)),"") -> 4723 Hal kiskereskedelme
A171: 4724 Kenyér-, pékáru-, édesség-kiskereskedelem | B171: 3 | C171: 2 | D171: 1 | E171: 3 | F171: 1 | G171: 1 | I171: =IF(ISNUMBER(SEARCH($H$2,'Tevékenység lista'!A171)),MAX($I$1:I170)+1,0) -> 170 | J171: Járművillamossági készülékek gyártása | L171: =IFERROR(VLOOKUP(ROWS($L$2:L171),I171:$J$302,2,FALSE),"") -> Járművillamossági készülékek gyártása | Q171: =IF(--ISNUMBER(SEARCH(Díjszámítás!$C$12,A171)),MAX($Q$1:Q170)+1,"") -> 170 | R171: =IFERROR(INDEX($A$2:$A$302,MATCH(ROWS($Q$2:Q171),$Q$2:$Q$302,0)),"") -> 4724 Kenyér-, pékáru-, édesség-kiskereskedelem
A172: 4725 Ital-kiskereskedelem | B172: 3 | C172: 2 | D172: 2 | E172: 3 | F172: 1 | G172: 1 | I172: =IF(ISNUMBER(SEARCH($H$2,'Tevékenység lista'!A172)),MAX($I$1:I171)+1,0) -> 171 | J172: Játékkereskedés | L172: =IFERROR(VLOOKUP(ROWS($L$2:L172),I172:$J$302,2,FALSE),"") -> Játékkereskedés | Q172: =IF(--ISNUMBER(SEARCH(Díjszámítás!$C$12,A172)),MAX($Q$1:Q171)+1,"") -> 171 | R172: =IFERROR(INDEX($A$2:$A$302,MATCH(ROWS($Q$2:Q172),$Q$2:$Q$302,0)),"") -> 4725 Ital-kiskereskedelem
A173: 4726 Dohányáru-kiskereskedelem | B173: 4 | C173: 2 | D173: 3 | E173: 4 | F173: 1 | G173: 1 | I173: =IF(ISNUMBER(SEARCH($H$2,'Tevékenység lista'!A173)),MAX($I$1:I172)+1,0) -> 172 | J173: Játékgyártás | L173: =IFERROR(VLOOKUP(ROWS($L$2:L173),I173:$J$302,2,FALSE),"") -> Játékgyártás | Q173: =IF(--ISNUMBER(SEARCH(Díjszámítás!$C$12,A173)),MAX($Q$1:Q172)+1,"") -> 172 | R173: =IFERROR(INDEX($A$2:$A$302,MATCH(ROWS($Q$2:Q173),$Q$2:$Q$302,0)),"") -> 4726 Dohányáru-kiskereskedelem
A174: 4729 Egyéb élelmiszer-kiskereskedelem | B174: 2 | C174: 2 | D174: 2 | E174: 2 | F174: 1 | G174: 1 | I174: =IF(ISNUMBER(SEARCH($H$2,'Tevékenység lista'!A174)),MAX($I$1:I173)+1,0) -> 173 | J174: Szórakoztató-, illetve kulturális tevékenység | L174: =IFERROR(VLOOKUP(ROWS($L$2:L174),I174:$J$302,2,FALSE),"") -> Szórakoztató-, illetve kulturális tevékenység | Q174: =IF(--ISNUMBER(SEARCH(Díjszámítás!$C$12,A174)),MAX($Q$1:Q173)+1,"") -> 173 | R174: =IFERROR(INDEX($A$2:$A$302,MATCH(ROWS($Q$2:Q174),$Q$2:$Q$302,0)),"") -> 4729 Egyéb élelmiszer-kiskereskedelem
A175: 4730 Gépjárműüzemanyag-kiskereskedelem | B175: 3 | C175: 4 | D175: 4 | E175: 3 | F175: 3 | G175: 2 | I175: =IF(ISNUMBER(SEARCH($H$2,'Tevékenység lista'!A175)),MAX($I$1:I174)+1,0) -> 174 | J175: Kaputechnika, egyéb épületgépészeti szerelés | L175: =IFERROR(VLOOKUP(ROWS($L$2:L175),I175:$J$302,2,FALSE),"") -> Kaputechnika, egyéb épületgépészeti szerelés | Q175: =IF(--ISNUMBER(SEARCH(Díjszámítás!$C$12,A175)),MAX($Q$1:Q174)+1,"") -> 174 | R175: =IFERROR(INDEX($A$2:$A$302,MATCH(ROWS($Q$2:Q175),$Q$2:$Q$302,0)),"") -> 4730 Gépjárműüzemanyag-kiskereskedelem
A176: 4741 Számítógép, periféria, szoftver kiskereskedelme | B176: 3 | C176: 2 | D176: 3 | E176: 3 | F176: 1 | G176: 1 | I176: =IF(ISNUMBER(SEARCH($H$2,'Tevékenység lista'!A176)),MAX($I$1:I175)+1,0) -> 175 | J176: Kárpitos | L176: =IFERROR(VLOOKUP(ROWS($L$2:L176),I176:$J$302,2,FALSE),"") -> Kárpitos | Q176: =IF(--ISNUMBER(SEARCH(Díjszámítás!$C$12,A176)),MAX($Q$1:Q175)+1,"") -> 175 | R176: =IFERROR(INDEX($A$2:$A$302,MATCH(ROWS($Q$2:Q176),$Q$2:$Q$302,0)),"") -> 4741 Számítógép, periféria, szoftver kiskereskedelme
A177: 4742 Telekommunikációs termék kiskereskedelme | B177: 2 | C177: 2 | D177: 4 | E177: 2 | F177: 3 | G177: 3 | I177: =IF(ISNUMBER(SEARCH($H$2,'Tevékenység lista'!A177)),MAX($I$1:I176)+1,0) -> 176 | J177: Kávépörkölés, forgalmazás | L177: =IFERROR(VLOOKUP(ROWS($L$2:L177),I177:$J$302,2,FALSE),"") -> Kávépörkölés, forgalmazás | Q177: =IF(--ISNUMBER(SEARCH(Díjszámítás!$C$12,A177)),MAX($Q$1:Q176)+1,"") -> 176 | R177: =IFERROR(INDEX($A$2:$A$302,MATCH(ROWS($Q$2:Q177),$Q$2:$Q$302,0)),"") -> 4742 Telekommunikációs termék kiskereskedelme
A178: 4743 Audio-, videoberendezés kiskereskedelme | B178: 3 | C178: 2 | D178: 4 | E178: 3 | F178: 1 | G178: 1 | I178: =IF(ISNUMBER(SEARCH($H$2,'Tevékenység lista'!A178)),MAX($I$1:I177)+1,0) -> 177 | J178: Képkeretező | L178: =IFERROR(VLOOKUP(ROWS($L$2:L178),I178:$J$302,2,FALSE),"") -> Képkeretező | Q178: =IF(--ISNUMBER(SEARCH(Díjszámítás!$C$12,A178)),MAX($Q$1:Q177)+1,"") -> 177 | R178: =IFERROR(INDEX($A$2:$A$302,MATCH(ROWS($Q$2:Q178),$Q$2:$Q$302,0)),"") -> 4743 Audio-, videoberendezés kiskereskedelme
A179: 4751 Textil-kiskereskedelem | B179: 3 | C179: 2 | D179: 2 | E179: 3 | F179: 1 | G179: 1 | I179: =IF(ISNUMBER(SEARCH($H$2,'Tevékenység lista'!A179)),MAX($I$1:I178)+1,0) -> 178 | J179: Képző- és iparművészeti tárgyak kereskedelme | L179: =IFERROR(VLOOKUP(ROWS($L$2:L179),I179:$J$302,2,FALSE),"") -> Képző- és iparművészeti tárgyak kereskedelme | Q179: =IF(--ISNUMBER(SEARCH(Díjszámítás!$C$12,A179)),MAX($Q$1:Q178)+1,"") -> 178 | R179: =IFERROR(INDEX($A$2:$A$302,MATCH(ROWS($Q$2:Q179),$Q$2:$Q$302,0)),"") -> 4751 Textil-kiskereskedelem
A180: 4752 Vasáru-, festék-, üveg-kiskereskedelem | B180: 2 | C180: 2 | D180: 4 | E180: 2 | F180: 1 | G180: 1 | I180: =IF(ISNUMBER(SEARCH($H$2,'Tevékenység lista'!A180)),MAX($I$1:I179)+1,0) -> 179 | J180: Képzőművészeti tárgyak, festmények kereskedelme | L180: =IFERROR(VLOOKUP(ROWS($L$2:L180),I180:$J$302,2,FALSE),"") -> Képzőművészeti tárgyak, festmények kereskedelme | Q180: =IF(--ISNUMBER(SEARCH(Díjszámítás!$C$12,A180)),MAX($Q$1:Q179)+1,"") -> 179 | R180: =IFERROR(INDEX($A$2:$A$302,MATCH(ROWS($Q$2:Q180),$Q$2:$Q$302,0)),"") -> 4752 Vasáru-, festék-, üveg-kiskereskedelem
A181: 4753 Takaró, szőnyeg, fal-, padlóburkoló kiskereskedelme | B181: 4 | C181: 2 | D181: 2 | E181: 4 | F181: 1 | G181: 1 | I181: =IF(ISNUMBER(SEARCH($H$2,'Tevékenység lista'!A181)),MAX($I$1:I180)+1,0) -> 180 | J181: Kerámiacsempék és -lapok gyártása | L181: =IFERROR(VLOOKUP(ROWS($L$2:L181),I181:$J$302,2,FALSE),"") -> Kerámiacsempék és -lapok gyártása | Q181: =IF(--ISNUMBER(SEARCH(Díjszámítás!$C$12,A181)),MAX($Q$1:Q180)+1,"") -> 180 | R181: =IFERROR(INDEX($A$2:$A$302,MATCH(ROWS($Q$2:Q181),$Q$2:$Q$302,0)),"") -> 4753 Takaró, szőnyeg, fal-, padlóburkoló kiskereskedelme
A182: 4754 Villamos háztartási készülék kiskereskedelme | B182: 4 | C182: 2 | D182: 3 | E182: 4 | F182: 1 | G182: 1 | I182: =IF(ISNUMBER(SEARCH($H$2,'Tevékenység lista'!A182)),MAX($I$1:I181)+1,0) -> 181 | J182: Kerékpár és -alkatrész kereskedelem | L182: =IFERROR(VLOOKUP(ROWS($L$2:L182),I182:$J$302,2,FALSE),"") -> Kerékpár és -alkatrész kereskedelem | Q182: =IF(--ISNUMBER(SEARCH(Díjszámítás!$C$12,A182)),MAX($Q$1:Q181)+1,"") -> 181 | R182: =IFERROR(INDEX($A$2:$A$302,MATCH(ROWS($Q$2:Q182),$Q$2:$Q$302,0)),"") -> 4754 Villamos háztartási készülék kiskereskedelme
A183: 4759 Bútor, világítási eszköz, egyéb háztartási cikk kiskereskedelme | B183: 6 | C183: 2 | D183: 3 | E183: 6 | F183: 1 | G183: 1 | I183: =IF(ISNUMBER(SEARCH($H$2,'Tevékenység lista'!A183)),MAX($I$1:I182)+1,0) -> 182 | J183: Kerékpár és motorkerékpár gyártása | L183: =IFERROR(VLOOKUP(ROWS($L$2:L183),I183:$J$302,2,FALSE),"") -> Kerékpár és motorkerékpár gyártása | Q183: =IF(--ISNUMBER(SEARCH(Díjszámítás!$C$12,A183)),MAX($Q$1:Q182)+1,"") -> 182 | R183: =IFERROR(INDEX($A$2:$A$302,MATCH(ROWS($Q$2:Q183),$Q$2:$Q$302,0)),"") -> 4759 Bútor, világítási eszköz, egyéb háztartási cikk kiskereskedelme
A184: 4761 Könyv-kiskereskedelem | B184: 4 | C184: 2 | D184: 2 | E184: 4 | F184: 1 | G184: 1 | I184: =IF(ISNUMBER(SEARCH($H$2,'Tevékenység lista'!A184)),MAX($I$1:I183)+1,0) -> 183 | J184: Kert- és parképítés | L184: =IFERROR(VLOOKUP(ROWS($L$2:L184),I184:$J$302,2,FALSE),"") -> Kert- és parképítés | Q184: =IF(--ISNUMBER(SEARCH(Díjszámítás!$C$12,A184)),MAX($Q$1:Q183)+1,"") -> 183 | R184: =IFERROR(INDEX($A$2:$A$302,MATCH(ROWS($Q$2:Q184),$Q$2:$Q$302,0)),"") -> 4761 Könyv-kiskereskedelem
A185: 4762 Újság-, papíráru-kiskereskedelem | B185: 4 | C185: 2 | D185: 1 | E185: 4 | F185: 1 | G185: 1 | I185: =IF(ISNUMBER(SEARCH($H$2,'Tevékenység lista'!A185)),MAX($I$1:I184)+1,0) -> 184 | J185: Kézi- és gépszerszámgyártás | L185: =IFERROR(VLOOKUP(ROWS($L$2:L185),I185:$J$302,2,FALSE),"") -> Kézi- és gépszerszámgyártás | Q185: =IF(--ISNUMBER(SEARCH(Díjszámítás!$C$12,A185)),MAX($Q$1:Q184)+1,"") -> 184 | R185: =IFERROR(INDEX($A$2:$A$302,MATCH(ROWS($Q$2:Q185),$Q$2:$Q$302,0)),"") -> 4762 Újság-, papíráru-kiskereskedelem
A186: 4763 Zene-, videofelvétel kiskereskedelme | B186: 3 | C186: 2 | D186: 3 | E186: 3 | F186: 1 | G186: 1 | I186: =IF(ISNUMBER(SEARCH($H$2,'Tevékenység lista'!A186)),MAX($I$1:I185)+1,0) -> 185 | J186: Kézműipari textiláruk előállítása | L186: =IFERROR(VLOOKUP(ROWS($L$2:L186),I186:$J$302,2,FALSE),"") -> Kézműipari textiláruk előállítása | Q186: =IF(--ISNUMBER(SEARCH(Díjszámítás!$C$12,A186)),MAX($Q$1:Q185)+1,"") -> 185 | R186: =IFERROR(INDEX($A$2:$A$302,MATCH(ROWS($Q$2:Q186),$Q$2:$Q$302,0)),"") -> 4763 Zene-, videofelvétel kiskereskedelme
A187: 4764 Sportszer-kiskereskedelem | B187: 3 | C187: 2 | D187: 2 | E187: 3 | F187: 1 | G187: 1 | I187: =IF(ISNUMBER(SEARCH($H$2,'Tevékenység lista'!A187)),MAX($I$1:I186)+1,0) -> 186 | J187: Kisállatkozmetika | L187: =IFERROR(VLOOKUP(ROWS($L$2:L187),I187:$J$302,2,FALSE),"") -> Kisállatkozmetika | Q187: =IF(--ISNUMBER(SEARCH(Díjszámítás!$C$12,A187)),MAX($Q$1:Q186)+1,"") -> 186 | R187: =IFERROR(INDEX($A$2:$A$302,MATCH(ROWS($Q$2:Q187),$Q$2:$Q$302,0)),"") -> 4764 Sportszer-kiskereskedelem
A188: 4765 Játék-kiskereskedelem | B188: 3 | C188: 2 | D188: 2 | E188: 3 | F188: 1 | G188: 1 | I188: =IF(ISNUMBER(SEARCH($H$2,'Tevékenység lista'!A188)),MAX($I$1:I187)+1,0) -> 187 | J188: Kisállatkereskedés | L188: =IFERROR(VLOOKUP(ROWS($L$2:L188),I188:$J$302,2,FALSE),"") -> Kisállatkereskedés | Q188: =IF(--ISNUMBER(SEARCH(Díjszámítás!$C$12,A188)),MAX($Q$1:Q187)+1,"") -> 187 | R188: =IFERROR(INDEX($A$2:$A$302,MATCH(ROWS($Q$2:Q188),$Q$2:$Q$302,0)),"") -> 4765 Játék-kiskereskedelem
A189: 4771 Ruházat kiskereskedelem | B189: 3 | C189: 2 | D189: 2 | E189: 3 | F189: 1 | G189: 1 | I189: =IF(ISNUMBER(SEARCH($H$2,'Tevékenység lista'!A189)),MAX($I$1:I188)+1,0) -> 188 | J189: Klímaberendezések forgalmazása, telepítése | L189: =IFERROR(VLOOKUP(ROWS($L$2:L189),I189:$J$302,2,FALSE),"") -> Klímaberendezések forgalmazása, telepítése | Q189: =IF(--ISNUMBER(SEARCH(Díjszámítás!$C$12,A189)),MAX($Q$1:Q188)+1,"") -> 188 | R189: =IFERROR(INDEX($A$2:$A$302,MATCH(ROWS($Q$2:Q189),$Q$2:$Q$302,0)),"") -> 4771 Ruházat kiskereskedelem
A190: 4772 Lábbeli-, bőráru-kiskereskedelem | B190: 3 | C190: 2 | D190: 2 | E190: 3 | F190: 1 | G190: 1 | I190: =IF(ISNUMBER(SEARCH($H$2,'Tevékenység lista'!A190)),MAX($I$1:I189)+1,0) -> 189 | J190: Klímaberendezések gyártása | L190: =IFERROR(VLOOKUP(ROWS($L$2:L190),I190:$J$302,2,FALSE),"") -> Klímaberendezések gyártása | Q190: =IF(--ISNUMBER(SEARCH(Díjszámítás!$C$12,A190)),MAX($Q$1:Q189)+1,"") -> 189 | R190: =IFERROR(INDEX($A$2:$A$302,MATCH(ROWS($Q$2:Q190),$Q$2:$Q$302,0)),"") -> 4772 Lábbeli-, bőráru-kiskereskedelem
A191: 4773 Gyógyszer-kiskereskedelem | B191: 2 | C191: 2 | D191: 3 | E191: 2 | F191: 1 | G191: 1 | I191: =IF(ISNUMBER(SEARCH($H$2,'Tevékenység lista'!A191)),MAX($I$1:I190)+1,0) -> 190 | J191: Konfekció kereskedelem | L191: =IFERROR(VLOOKUP(ROWS($L$2:L191),I191:$J$302,2,FALSE),"") -> Konfekció kereskedelem | Q191: =IF(--ISNUMBER(SEARCH(Díjszámítás!$C$12,A191)),MAX($Q$1:Q190)+1,"") -> 190 | R191: =IFERROR(INDEX($A$2:$A$302,MATCH(ROWS($Q$2:Q191),$Q$2:$Q$302,0)),"") -> 4773 Gyógyszer-kiskereskedelem
A192: 4774 Gyógyászati termék kiskereskedelme | B192: 4 | C192: 2 | D192: 1 | E192: 4 | F192: 1 | G192: 1 | I192: =IF(ISNUMBER(SEARCH($H$2,'Tevékenység lista'!A192)),MAX($I$1:I191)+1,0) -> 191 | J192: Konfekcióáruk gyártása (textil) | L192: =IFERROR(VLOOKUP(ROWS($L$2:L192),I192:$J$302,2,FALSE),"") -> Konfekcióáruk gyártása (textil) | Q192: =IF(--ISNUMBER(SEARCH(Díjszámítás!$C$12,A192)),MAX($Q$1:Q191)+1,"") -> 191 | R192: =IFERROR(INDEX($A$2:$A$302,MATCH(ROWS($Q$2:Q192),$Q$2:$Q$302,0)),"") -> 4774 Gyógyászati termék kiskereskedelme
A193: 4775 Illatszer-kiskereskedelem | B193: 4 | C193: 4 | D193: 3 | E193: 4 | F193: 1 | G193: 1 | I193: =IF(ISNUMBER(SEARCH($H$2,'Tevékenység lista'!A193)),MAX($I$1:I192)+1,0) -> 192 | J193: Konzervgyártás és egyéb tartósított termékek előállítása | L193: =IFERROR(VLOOKUP(ROWS($L$2:L193),I193:$J$302,2,FALSE),"") -> Konzervgyártás és egyéb tartósított termékek előállítása | Q193: =IF(--ISNUMBER(SEARCH(Díjszámítás!$C$12,A193)),MAX($Q$1:Q192)+1,"") -> 192 | R193: =IFERROR(INDEX($A$2:$A$302,MATCH(ROWS($Q$2:Q193),$Q$2:$Q$302,0)),"") -> 4775 Illatszer-kiskereskedelem
A194: 4776 Dísznövény, vetőmag, műtrágya, hobbiállat-eledel kiskereskedelme | B194: 3 | C194: 2 | D194: 1 | E194: 3 | F194: 1 | G194: 1 | I194: =IF(ISNUMBER(SEARCH($H$2,'Tevékenység lista'!A194)),MAX($I$1:I193)+1,0) -> 193 | J194: Konyhabútor és konyhafelszerelési cikkek kereskedelme | L194: =IFERROR(VLOOKUP(ROWS($L$2:L194),I194:$J$302,2,FALSE),"") -> Konyhabútor és konyhafelszerelési cikkek kereskedelme | Q194: =IF(--ISNUMBER(SEARCH(Díjszámítás!$C$12,A194)),MAX($Q$1:Q193)+1,"") -> 193 | R194: =IFERROR(INDEX($A$2:$A$302,MATCH(ROWS($Q$2:Q194),$Q$2:$Q$302,0)),"") -> 4776 Dísznövény, vetőmag, műtrágya, hobbiállat-eledel kiskereskedelme
A195: 4782 Textil, ruházat, lábbeli piaci kiskereskedelme | B195: 3 | C195: 2 | D195: 2 | E195: 3 | F195: 1 | G195: 1 | I195: =IF(ISNUMBER(SEARCH($H$2,'Tevékenység lista'!A195)),MAX($I$1:I194)+1,0) -> 194 | J195: Kozmetikai cikk, illatszer kereskedelem (drogéria) | L195: =IFERROR(VLOOKUP(ROWS($L$2:L195),I195:$J$302,2,FALSE),"") -> Kozmetikai cikk, illatszer kereskedelem (drogéria) | Q195: =IF(--ISNUMBER(SEARCH(Díjszámítás!$C$12,A195)),MAX($Q$1:Q194)+1,"") -> 194 | R195: =IFERROR(INDEX($A$2:$A$302,MATCH(ROWS($Q$2:Q195),$Q$2:$Q$302,0)),"") -> 4782 Textil, ruházat, lábbeli piaci kiskereskedelme
A196: 5510 Szállodai szolgáltatás | B196: 2 | C196: 3 | D196: 2 | E196: 2 | F196: 2 | G196: 2 | I196: =IF(ISNUMBER(SEARCH($H$2,'Tevékenység lista'!A196)),MAX($I$1:I195)+1,0) -> 195 | J196: Kozmetikai szalon | L196: =IFERROR(VLOOKUP(ROWS($L$2:L196),I196:$J$302,2,FALSE),"") -> Kozmetikai szalon | Q196: =IF(--ISNUMBER(SEARCH(Díjszámítás!$C$12,A196)),MAX($Q$1:Q195)+1,"") -> 195 | R196: =IFERROR(INDEX($A$2:$A$302,MATCH(ROWS($Q$2:Q196),$Q$2:$Q$302,0)),"") -> 5510 Szállodai szolgáltatás
A197: 5520 Üdülési, egyéb átmeneti szálláshely-szolgáltatás | B197: 2 | C197: 3 | D197: 2 | E197: 2 | F197: 2 | G197: 2 | I197: =IF(ISNUMBER(SEARCH($H$2,'Tevékenység lista'!A197)),MAX($I$1:I196)+1,0) -> 196 | J197: Könyv- és lapnyomás | L197: =IFERROR(VLOOKUP(ROWS($L$2:L197),I197:$J$302,2,FALSE),"") -> Könyv- és lapnyomás | Q197: =IF(--ISNUMBER(SEARCH(Díjszámítás!$C$12,A197)),MAX($Q$1:Q196)+1,"") -> 196 | R197: =IFERROR(INDEX($A$2:$A$302,MATCH(ROWS($Q$2:Q197),$Q$2:$Q$302,0)),"") -> 5520 Üdülési, egyéb átmeneti szálláshely-szolgáltatás
A198: 5590 Egyéb szálláshely-szolgáltatás | B198: 2 | C198: 3 | D198: 2 | E198: 2 | F198: 2 | G198: 2 | I198: =IF(ISNUMBER(SEARCH($H$2,'Tevékenység lista'!A198)),MAX($I$1:I197)+1,0) -> 197 | J198: Könyvkereskedés | L198: =IFERROR(VLOOKUP(ROWS($L$2:L198),I198:$J$302,2,FALSE),"") -> Könyvkereskedés | Q198: =IF(--ISNUMBER(SEARCH(Díjszámítás!$C$12,A198)),MAX($Q$1:Q197)+1,"") -> 197 | R198: =IFERROR(INDEX($A$2:$A$302,MATCH(ROWS($Q$2:Q198),$Q$2:$Q$302,0)),"") -> 5590 Egyéb szálláshely-szolgáltatás
A199: 5610 Éttermi, mozgó vendéglátás | B199: 4 | C199: 3 | D199: 2 | E199: 4 | F199: 2 | G199: 1 | I199: =IF(ISNUMBER(SEARCH($H$2,'Tevékenység lista'!A199)),MAX($I$1:I198)+1,0) -> 198 | J199: Könyvkötés | L199: =IFERROR(VLOOKUP(ROWS($L$2:L199),I199:$J$302,2,FALSE),"") -> Könyvkötés | Q199: =IF(--ISNUMBER(SEARCH(Díjszámítás!$C$12,A199)),MAX($Q$1:Q198)+1,"") -> 198 | R199: =IFERROR(INDEX($A$2:$A$302,MATCH(ROWS($Q$2:Q199),$Q$2:$Q$302,0)),"") -> 5610 Éttermi, mozgó vendéglátás
A200: 5621 Rendezvényi étkeztetés | B200: 4 | C200: 3 | D200: 2 | E200: 4 | F200: 2 | G200: 1 | I200: =IF(ISNUMBER(SEARCH($H$2,'Tevékenység lista'!A200)),MAX($I$1:I199)+1,0) -> 199 | J200: Könyvtári tevékenység | L200: =IFERROR(VLOOKUP(ROWS($L$2:L200),I200:$J$302,2,FALSE),"") -> Könyvtári tevékenység | Q200: =IF(--ISNUMBER(SEARCH(Díjszámítás!$C$12,A200)),MAX($Q$1:Q199)+1,"") -> 199 | R200: =IFERROR(INDEX($A$2:$A$302,MATCH(ROWS($Q$2:Q200),$Q$2:$Q$302,0)),"") -> 5621 Rendezvényi étkeztetés
... 102 more rows

Sheet Tarifa táblák (hidden)
A2: Épület DÍJTÉTELEK ‰-ben
A3: Kockázati osztály | B3: Tűz+elemi kár+ vezetékes víz+üveg | E3: Ingóság | I3: DÍJTÉTELEK ‰-ben | L3: DÍJTÉTELEK ‰-ben | R3: DÍJTÉTELEK ‰-ben | X3: DÍJTÉTELEK ‰-ben | AD3: ÜVEG KIEGÉSZÍTŐ
A4: 1 | B4: 0.8 | E4: Kockázati osztály | F4: Tűz+elemi kár+ vezetékes víz+üveg | G4: Betöréses lopás rablás | I4: Kockázati osztály | J4: Üzemszünet | L4: Kockázati osztály | M4: Géptörés | R4: Kockázati osztály | S4: ELBER | X4: Kockázati osztály | Y4: Felelősség | AD4: Éves limit eFt | AE4: Normál üveg díj Ft | AF4: Normál és speciális üveg díj Ft
A5: 2 | B5: 0.91 | E5: 1 | F5: 1.12 | G5: 1.5 | I5: 1 | J5: 0.53 | L5: 1 | M5: 3.71 | R5: 1 | S5: 3.41 | X5: 1 | Y5: 0.24 | AD5: 50 | AE5: 6360 | AF5: 9540
A6: 3 | B6: 1.07 | E6: 2 | F6: 1.27 | G6: 1.92 | I6: 2 | J6: 0.63 | L6: 2 | M6: 4.61 | R6: 2 | S6: 4.24 | X6: 2 | Y6: 0.3 | AD6: 100 | AE6: 12720 | AF6: 19080
A7: 4 | B7: 1.19 | E7: 3 | F7: 1.46 | G7: 2.47 | I7: 3 | J7: 0.77 | L7: 3 | M7: 6.39 | R7: 3 | S7: 5.88 | X7: 3 | Y7: 0.33 | AD7: 150 | AE7: 18285 | AF7: 27425
A8: 5 | B8: 1.51 | E8: 4 | F8: 1.59 | G8: 3.02 | I8: 4 | J8: 0.89 | L8: 4 | M8: 9.88 | R8: 4 | S8: 9.09 | X8: 4 | Y8: 0.45 | AD8: 200 | AE8: 24380 | AF8: 34130
A9: 6 | B9: 1.99 | E9: 5 | F9: 1.98 | G9: 4.21 | I9: 5 | J9: 1.18 | L9: 5 | M9: 17.03 | R9: 5 | S9: 15.67 | X9: 5 | Y9: 0.84 | AD9: 250 | AE9: 30475 | AF9: 42665
A10: 7 | B10: 2.62 | E10: 6 | F10: 2.56 | G10: nincs | I10: 6 | J10: 1.61 | L10: 6 | R10: 6 | AD10: 300 | AE10: 34980 | AF10: 48970
A11: 8 | B11: 3.18 | E11: 7 | F11: 3.32 | G11: nincs | I11: 7 | J11: 2.21 | L11: 7 | R11: 7 | X11: Módozati szorzók | AD11: 350 | AE11: 40810 | AF11: 55095
A12: 9 | B12: 3.98 | E12: 8 | F12: 3.96 | G12: nincs | I12: 8 | J12: 2.79 | L12: 8 | R12: 8 | X12: Alap | Y12: 0.75 | AD12: 400 | AE12: 44520 | AF12: 60100
A13: 10 | B13: 5.57 | E13: 9 | F13: 4.86 | G13: nincs | I13: 9 | J13: 3.62 | L13: 9 | R13: 9 | X13: Teljes | Y13: 1 | AD13: 450 | AE13: 50085 | AF13: 67615
E14: 10 | F14: 6.68 | G14: nincs | I14: 10 | J14: 5.27 | L14: 10 | R14: 10 | X14: Extra | Y14: 1.3 | AD14: 500 | AE14: 53000 | AF14: 68900
A15: Épület Módozati szorzók | AD15: 600 | AE15: 63600 | AF15: 82680
A16: Alap | B16: 0.6 | E16: Módozati szorzók | F16: Bet. Loppal | G16: Bet nélkül | I16: Módozati szorzók | R16: Volumenszorzók Bizosítási összeg szerint ELBER | AD16: 700 | AE16: 70490 | AF16: 91635
A17: Teljes | B17: 0.8 | E17: Alap | F17: 0.6 | G17: 0.6 | I17: Alap | J17: 0.7 | L17: Volumenszorzók Bizosítási összeg szerint Géptörés | R17: 0 | S17: 10000000 | T17: 1.6 | X17: Önrészesedés szorzó | AD17: 800 | AE17: 80560 | AF17: 100700
A18: Extra | B18: 1 | E18: Teljes | F18: 0.8 | G18: 0.8 | I18: Teljes | J18: 1 | L18: 0 | M18: 10000000 | N18: 1.6 | R18: 10000001 | S18: 25000000 | T18: 1.5 | Y18: 25000 | Z18: 50000 | AA18: 100000 | AB18: 200000 | AD18: 900 | AE18: 85860 | AF18: 107325
A19: All Risks | B19: 1.1 | E19: Extra | F19: 1 | G19: 1 | I19: Extra | J19: 1.4 | L19: 10000001 | M19: 25000000 | N19: 1.5 | R19: 25000001 | S19: 50000000 | T19: 1.3 | X19: 0.1 | Y19: 1 | Z19: 0.95 | AA19: 0.85 | AB19: 0.7 | AD19: 1000 | AE19: 95400 | AF19: 119250
A20: Épület Volumenszorzók Bizosítási összeg szerint TEKVÜ | E20: All Risks | F20: 1.1 | G20: 1.1 | I20: All Risks | J20: 1.6 | L20: 25000001 | M20: 50000000 | N20: 1.3 | R20: 50000001 | S20: 100000000 | T20: 1 | X20: 0.2 | Y20: 0.92 | Z20: 0.87 | AA20: 0.78 | AB20: 0.64
A21: 0 | B21: 10000000 | C21: 2 | E21: Volumenszorzók Bizosítási összeg szerint TEKVÜ | H21: 50 felett | I21: Volumenszorzók Bizosítási összeg szerint TEKVÜ | L21: 50000001 | M21: 100000000 | N21: 1 | R21: 100000001 | S21: 200000000 | T21: 0.85
A22: 10000001 | B22: 25000000 | C22: 1.6 | E22: 0 | F22: 10000000 | G22: 2 | I22: 0 | J22: 10000000 | K22: 2 | L22: 100000001 | M22: 200000000 | N22: 0.85 | R22: 200000001 | S22: 500000000 | T22: 0.65 | X22: Pótdíjak
A23: 25000001 | B23: 50000000 | C23: 1.3 | E23: 10000001 | F23: 25000000 | G23: 1.6 | I23: 10000001 | J23: 25000000 | K23: 1.6 | L23: 200000001 | M23: 500000000 | N23: 0.65 | X23: Bérlői | Y23: 0.3
A24: 50000001 | B24: 100000000 | C24: 1 | E24: 25000001 | F24: 50000000 | G24: 1.3 | I24: 25000001 | J24: 50000000 | K24: 1.3 | X24: Bérbeadói | Y24: 0.3
A25: 100000001 | B25: 200000000 | C25: 0.8 | E25: 50000001 | F25: 100000000 | G25: 1 | H25: 0.4 | I25: 50000001 | J25: 100000000 | K25: 1 | R25: Átlagéletkor engedmény | X25: Kiterjesztett termék | Y25: 1
A26: 200000001 | B26: 500000000 | C26: 0.55 | E26: 100000001 | F26: 200000000 | G26: 0.8 | H26: 0.32 | I26: 100000001 | J26: 200000000 | K26: 0.8 | R26: 0-2 | S26: 0.65 | X26: Szálloda 1. (S,M,L) | Y26: 0.3
E27: 200000001 | F27: 500000000 | G27: 0.55 | H27: 0.22 | I27: 200000001 | J27: 500000000 | K27: 0.55 | L27: Átlagéletkor engedmény | R27: 2,01-3 | S27: 0.8 | X27: szálloda 2. (M,L) | Y27: 0.8
L28: 0-2 | M28: 0.5 | R28: 3,01-5 | S28: 0.9 | X28: Környezetszennyezés | Y28: 0.5
A29: Épület Önrészesedés szorzó | L29: 2,01-5 | M29: 0.65 | R29: 5,01- | S29: 1 | X29: EU kiterjesztés | Y29: 0.5
A30: 0 | B30: 1.45 | E30: Volumenszorzók Betlop 50 M Ft-ig) | I30: Önrészesedés szorzó | L30: 5,01-10 | M30: 0.75 | X30: Rakodás (M,L) | Y30: 0.4
A31: 5000 | B31: 1.25 | E31: Bizt. Öszeg ( eFt. ) | F31: Volumenszorzó | I31: 3 nap | J31: 1 | L31: 10,01-15 | M31: 0.9 | X31: Termék | Y31: 0.8
A32: 10000 | B32: 1.12 | E32: 250000 | F32: =4.1646*(E32/1000)^-0.348 -> 0.6096634674 | I32: 5 nap | J32: 0.9 | L32: 15 felett | M32: 1 | R32: Önrészesedés szorzó | X32: Üzemi | Y32: 0.6
A33: 25000 | B33: 1 | I33: 7 nap | J33: 0.8 | S33: 25000 | T33: 50000 | U33: 100000 | V33: 200000 | X33: Szolgáltatói | Y33: 0.8
A34: 50000 | B34: 0.92 | E34: Önrészesedés szorzó | L34: Önrészesedés szorzó | R34: 0.1 | S34: 1 | T34: 0.95 | U34: 0.85 | V34: 0.7 | X34: Oktatói | Y34: 0.2
A35: 100000 | B35: 0.82 | E35: 0 | F35: 1.45 | M35: 25000 | N35: 50000 | O35: 100000 | P35: 200000 | R35: 0.2 | S35: 0.92 | T35: 0.87 | U35: 0.78 | V35: 0.64 | X35: Szerviz | Y35: 0.6
A36: 200000 | B36: 0.7 | E36: 5000 | F36: 1.25 | L36: 0.1 | M36: 1 | N36: 0.95 | O36: 0.85 | P36: 0.7 | X36: Alvállalkozói kiterjesztés | Y36: 0.2
E37: 10000 | F37: 1.12 | L37: 0.2 | M37: 0.92 | N37: 0.87 | O37: 0.78 | P37: 0.64 | X37: Szolgáltatás tárgyában okozott károk | Y37: 0.4
A38: Volumenszorzók TEKV | E38: 25000 | F38: 1 | I38: Volumenszorzók TEKV | X38: Építés-Szerelés | Y38: 0.1
A39: Bizt. Összeg ( eFt. ) | B39: Volumenszorzó | E39: 50000 | F39: 0.92 | I39: Bizt. Összeg ( eFt. ) | J39: Volumenszorzó
A40: 250000 | B40: =4.1646*(A40/1000)^-0.348 -> 0.6096634674 | E40: 100000 | F40: 0.82 | I40: 1 | J40: =4.1646*(I40/1000)^-0.348 -> 46.08645411 | X40: Forgkorr. Szorzó | Y40: Vagyon alapú engedmény | Z40: Forgalom eFt
E41: 200000 | F41: 0.7 | X41: =-0.236*(LN(Z41/1000))+1.9136 -> 0.8267798361 | Y41: =IF((Díjszámítás!C27+Díjszámítás!C42)<11000,1,(1.0022*EXP(-0.002*(Díjszámítás!C27+Díjszámítás!C42)/10000)-0.3)) -> 1 | Z41: 100000 | AA41: =Z41*X41*Y41 -> 82677.98361

Sheet Vagyonbiztosítási adatközlő
K2: UNION-Business Class
K3: Biztosítási ajánlat
A5: Vagyonbiztosítási adatközlő
A7: Sorsz. | B7: Telephely címe | D7: Telephelyen folytatott tevékenységek | E7: BIZTOSÍTÁSI ÖSSZEG eFt | P7: Összesen eFt
E8: Épületek/Építmények | I8: Gépek, berendezések | K8: Egyéb nevesített vagyontárgyak | M8: Készlet | O8: Készpénz, értékkészletek
E9: Saját | G9: Idegen | I9: Saját | J9: Idegen | K9: Saját | L9: Idegen | M9: Saját | N9: Idegen
A10: =IF(B10>0,1,0) -> 0 | P10: =SUM(E10:O10) -> 0 | T10: =SUM(E10:H10) -> 0 | U10: =SUM(I10:O10) -> 0 | W10: =SUM(I10:J10) -> 0 | Y10: =B10 -> 0
A11: =IF(B11>0,(A10+1),0) -> 0 | P11: =SUM(E11:O11) -> 0 | T11: =SUM(E11:H11) -> 0 | U11: =SUM(I11:O11) -> 0 | W11: =SUM(I11:J11) -> 0 | Y11: =B11 -> 0
A12: =IF(B12>0,(A11+1),0) -> 0 | P12: 0 | T12: 0 | U12: 0 | W12: 0 | Y12: 0
A13: =IF(B13>0,(A12+1),0) -> 0 | P13: 0 | T13: 0 | U13: 0 | W13: 0 | Y13: 0
A14: 0 | P14: 0 | T14: 0 | U14: 0 | W14: 0 | Y14: 0
A15: 0 | P15: 0 | T15: 0 | U15: 0 | W15: 0 | Y15: 0
A16: 0 | P16: 0 | T16: 0 | U16: 0 | W16: 0 | Y16: 0
A17: 0 | P17: 0 | T17: 0 | U17: 0 | W17: 0 | Y17: 0
A18: 0 | P18: 0 | T18: 0 | U18: 0 | W18: 0 | Y18: 0
A19: 0 | P19: 0 | T19: 0 | U19: 0 | W19: 0 | Y19: 0
A20: 0 | P20: 0 | T20: 0 | U20: 0 | W20: 0 | Y20: 0
A21: 0 | P21: 0 | T21: 0 | U21: 0 | W21: 0 | Y21: 0
A22: 0 | P22: 0 | T22: 0 | U22: 0 | W22: 0 | Y22: 0
A23: 0 | P23: 0 | T23: 0 | U23: 0 | W23: 0 | Y23: 0
A24: 0 | P24: 0 | T24: 0 | U24: 0 | W24: 0 | Y24: 0
A25: 0 | P25: 0 | T25: 0 | U25: 0 | W25: 0 | Y25: 0
D26: Összesen | E26: =SUM(E10:F25) -> 0 | G26: =SUM(G10:H25) -> 0 | I26: =SUM(I10:I25) -> 0 | J26: =SUM(J10:J25) -> 0 | K26: 0 | L26: 0 | M26: 0 | N26: 0 | O26: 0 | P26: =SUM(P10:R25) -> 0 | T26: =SUM(T10:T25) -> 0 | U26: =SUM(U10:U25) -> 0 | W26: =SUM(W10:W25) -> 0
A27: Kelt.: | B27: =Ajánlat1!E112 -> 0
D28: =Ajánlat1!G112 -> 00:00:00
D31: biztosításközvetítő aláírása | I31: szerződő aláírása
A32: =Ajánlat1!B116 -> Verzió: 1.19
A33: =Ajánlat1!B117 -> UNION-Business Class Érvényes: 2021.12.31.-ig
G38: =SUM(E26,G26) -> 0

Sheet Gép,berendezés (hidden)
J2: UNION - BC
J3: Biztosítási ajánlat
A5: Vagyonbiztosítási adatközlő gép, berendezés, készlet biztosításhoz
A7: Sor-szám | B7: Telephely címe | D7: Telephelyen folytatott tevékenységek | E7: Gép berendezés eFt | G7: Egyéb nevesített eFt | I7: Készlet eFt | K7: Készpénz eFt | L7: Összesen eFt
E8: Saját | F8: Idegen | G8: Saját | H8: Idegen | I8: Saját | J8: Idegen
A9: =IF(B9>0,1,0) -> 0 | L9: =SUM(E9:K9) -> 0
A10: =IF(B10>0,(A9+1),0) -> 0 | L10: =SUM(E10:K10) -> 0
A11: =IF(B11>0,(A10+1),0) -> 0 | L11: 0
A12: 0 | L12: 0
A13: 0 | L13: 0
A14: 0 | L14: 0
A15: 0 | L15: 0
A16: 0 | L16: 0
A17: 0 | L17: 0
A18: 0 | L18: 0
A19: 0 | L19: 0
A20: 0 | L20: 0
A21: 0 | L21: 0
A22: 0 | L22: 0
A23: 0 | L23: 0
A24: 0 | L24: 0
A25: 0 | L25: 0
A26: 0 | L26: 0
A27: 0 | L27: 0
A28: 0 | L28: 0
A29: 0 | L29: 0
A30: 0 | L30: 0
A31: 0 | L31: 0
A32: 0 | L32: 0
D33: Összesen | E33: =SUM(E9:E32) -> 0 | F33: =SUM(F9:F32) -> 0 | G33: =SUM(G9:G32) -> 0 | H33: =SUM(H9:H32) -> 0 | I33: 0 | J33: 0 | K33: 0 | L33: 0 | N33: 0
A35: Dátum | B35: =Ajánlat1!C114 -> 0 | D35: =TODAY() -> 2021-07-05
B38: üzletkötő | H38: szerződő/biztosított

Sheet Géplista (hidden)
F2: UNION - BC
F3: Biztosítási ajánlat
A5: Géplista géptörés biztosításhoz
A7: Sor szám | B7: Gép neve | C7: Típusa | D7: Gyári száma | E7: Gyártási éve | F7: Értékelés módja | G7: Gép értéke eFt | I7: Gép kora | L7: =COUNTIF(E9:E35,">0") -> 0
G8: saját | H8: idegen
A9: =IF(B9>0,1,0) -> 0 | I9: =IF(E9=0,0,IF(E9=$K$10,0.25,SUM($K$10-E9))) -> 0 | J9: =I9*(G9+H9) -> 0 | K9: =TODAY() -> 2021-07-05 | L9: =COUNTIF(O9:O35,">0") -> 0 | M9: =IF(L9>L7,"Kitöltötte a gép értékét, de nem adta meg a gyártási évet",IF(L9=L7,0,IF(L9<L7,"Kitöltötte gyártási évet, de nem adta meg a gép értékét"))) -> 0 | O9: =SUM(G9:H9) -> 0
A10: =IF(B10>0,(A9+1),0) -> 0 | I10: =IF(E10=0,0,IF(E10=$K$10,0.25,SUM($K$10-E10))) -> 0 | J10: =I10*(G10+H10) -> 0 | K10: =YEAR(K9) -> 2021 | O10: =SUM(G10:H10) -> 0
A11: =IF(B11>0,(A10+1),0) -> 0 | I11: 0 | J11: 0 | O11: 0
A12: 0 | I12: 0 | J12: 0 | M12: Új érték | O12: 0
A13: 0 | I13: 0 | J13: 0 | M13: Avult érték | O13: 0
A14: 0 | I14: 0 | J14: 0 | O14: 0
A15: 0 | I15: 0 | J15: 0 | O15: 0
A16: 0 | I16: 0 | J16: 0 | O16: 0
A17: 0 | I17: 0 | J17: 0 | O17: 0
A18: 0 | I18: 0 | J18: 0 | O18: 0
A19: 0 | I19: 0 | J19: 0 | O19: 0
A20: 0 | I20: 0 | J20: 0 | O20: 0
A21: 0 | I21: 0 | J21: 0 | O21: 0
A22: 0 | I22: 0 | J22: 0 | O22: 0
A23: 0 | I23: 0 | J23: 0 | O23: 0
A24: 0 | I24: 0 | J24: 0 | O24: 0
A25: 0 | I25: 0 | J25: 0 | O25: 0
A26: 0 | I26: 0 | J26: 0 | O26: 0
A27: 0 | I27: 0 | J27: 0 | O27: 0
A28: 0 | I28: 0 | J28: 0 | O28: 0
A29: 0 | I29: 0 | J29: 0 | O29: 0
A30: 0 | I30: 0 | J30: 0 | O30: 0
A31: 0 | I31: 0 | J31: 0 | O31: 0
A32: 0 | I32: 0 | J32: 0 | O32: 0
A33: 0 | I33: 0 | J33: 0 | O33: 0
A34: 0 | I34: 0 | J34: 0 | O34: 0
A35: 0 | I35: 0 | J35: 0 | O35: 0
F36: Összesen | G36: =SUM(G9:G35) -> 0 | H36: =SUM(H9:H35) -> 0 | J36: =SUM(J9:J35) -> 0 | K36: =SUM(G36:H36) -> 0 | O36: =SUM(O9:O35) -> 0
D37: =M9 -> 0 | I37: =IF(OR(L9>L7,K36=0),"15 felett",J36/K36) -> 15 felett | J37: Átlagéletkor
A38: Dátum | B38: =Ajánlat1!E112 -> 0 | C38: =Dátum -> 00:00:00
B41: üzletkötő | E41: szerződő/biztosított

Sheet Munka10 (hidden)

Sheet GéptörésELBER
E2: UNION-Business Class
E3: Biztosítási ajánlat
A5: Elektromos berendezések biztosítása
A7: Sor szám | B7: Informatikai eszközök | E7: Átlagélet-kora | F7: Értékelés módja | G7: Biztosítási összeg eFt | I7: Gép kora | L7: =COUNTIF(E9:E22,">0") -> 0 | R7: =YEAR(TODAY())-10 -> 2011
G8: saját | H8: idegen | R8: =YEAR(TODAY())-9 -> 2012
A9: 0 | B9: Számítógépek, monitorok, központi egységek, terminálok, perifériák, lap-topok, adathordozók | I9: =IF(E9=0,0,E9) -> 0 | J9: =I9*(G9+H9) -> 0 | K9: =TODAY() -> 2021-07-05 | L9: =COUNTIF(O9:O22,">0") -> 0 | M9: =IF(L9>L5,"Kitöltötte a gép értékét, de nem adta meg a gyártási évet",IF(L9=L5,0,IF(L9<L5,"Kitöltötte gyártási évet, de nem adta meg a gép értékét"))) -> 0 | O9: =SUM(G9:H9) -> 0 | R9: =YEAR(TODAY())-8 -> 2013
A10: Sor szám | B10: Elektromos és elektronikus gépek, berendezések neve | C10: Típusa | D10: Gyári száma | E10: Gyártási éve | F10: Értékelés módja | G10: Biztosítási összeg eFt | I10: Gép kora | K10: =YEAR(K9) -> 2021 | L10: =COUNTIF(E9:E22,">0") -> 0 | R10: =YEAR(TODAY())-7 -> 2014
G11: saját | H11: idegen | R11: =YEAR(TODAY())-6 -> 2015
A12: =IF(B12>0,1,0) -> 0 | I12: =IF(E12=0,0,IF(E12=$K$13,0.25,SUM($K$13-E12))) -> 0 | J12: =I12*(G12+H12) -> 0 | K12: =TODAY() -> 2021-07-05 | L12: =COUNTIF(O9:O22,">0") -> 0 | M12: =IF(L12>L7,"Kitöltötte a gép értékét, de nem adta meg a gyártási évet",IF(L12=L7,0,IF(L12<L7,"Kitöltötte gyártási évet, de nem adta meg a gép értékét"))) -> 0 | O12: =SUM(G12:H12) -> 0 | R12: =YEAR(TODAY())-5 -> 2016
A13: =IF(B13>0,(A12+1),0) -> 0 | I13: =IF(E13=0,0,IF(E13=$K$13,0.25,SUM($K$13-E13))) -> 0 | J13: =I13*(G13+H13) -> 0 | K13: =YEAR(K12) -> 2021 | O13: =SUM(G13:H13) -> 0 | R13: =YEAR(TODAY())-4 -> 2017
A14: =IF(B14>0,(A13+1),0) -> 0 | I14: 0 | J14: 0 | O14: 0 | R14: =YEAR(TODAY())-3 -> 2018
A15: 0 | I15: 0 | J15: 0 | M15: Új érték | O15: 0 | R15: =YEAR(TODAY())-2 -> 2019
A16: 0 | I16: 0 | J16: 0 | M16: Avult érték | O16: 0 | R16: =YEAR(TODAY())-1 -> 2020
A17: 0 | I17: 0 | J17: 0 | O17: 0 | R17: =YEAR(TODAY())-0 -> 2021
A18: 0 | I18: 0 | J18: 0 | O18: 0
A19: 0 | I19: 0 | J19: 0 | O19: 0
A20: 0 | I20: 0 | J20: 0 | O20: 0
A21: 0 | I21: 0 | J21: 0 | O21: 0
A22: 0 | I22: 0 | J22: 0 | O22: 0
A23: Számítógépek és számítógép vezérlésű elektromos berendezések összesen | G23: =SUM(G9,G12:G22) -> 0 | H23: =SUM(H9,H12:H22) -> 0 | J23: =SUM(J9,J12:J22) -> 0 | O23: 0
I24: =IF(K24>5,"5 felett",K24) -> 5 felett | J24: Átlagéletkor | K24: =IF(OR(L12>L10,J23=0),"5 felett",J23/O24) -> 5 felett | O24: =SUM(O9,O12:O22) -> 0
A25: Géplista géptörés biztosításhoz
A27: Sor szám | B27: Gép neve | C27: Típusa | D27: Gyári száma | E27: Gyártási éve | F27: Értékelés módja | G27: Gép értéke eFt | I27: Gép kora | L27: =COUNTIF(E29:E39,">0") -> 0
G28: saját | H28: idegen
A29: =IF(B29>0,1,0) -> 0 | I29: =IF(E29=0,0,IF(E29=$K$10,0.25,SUM($K$10-E29))) -> 0 | J29: =I29*(G29+H29) -> 0 | K29: =TODAY() -> 2021-07-05 | L29: =COUNTIF(O29:O39,">0") -> 0 | M29: =IF(L29>L27,"Kitöltötte a gép értékét, de nem adta meg a gyártási évet",IF(L29=L27,0,IF(L29<L27,"Kitöltötte gyártási évet, de nem adta meg a gép értékét"))) -> 0 | O29: =SUM(G29:H29) -> 0
A30: =IF(B30>0,(A29+1),0) -> 0 | I30: =IF(E30=0,0,IF(E30=$K$10,0.25,SUM($K$10-E30))) -> 0 | J30: =I30*(G30+H30) -> 0 | K30: =YEAR(K29) -> 2021 | O30: =SUM(G30:H30) -> 0
A31: =IF(B31>0,(A30+1),0) -> 0 | I31: =IF(E31=0,0,IF(E31=$K$10,0.25,SUM($K$10-E31))) -> 0 | J31: =I31*(G31+H31) -> 0 | O31: =SUM(G31:H31) -> 0
A32: =IF(B32>0,(A31+1),0) -> 0 | I32: =IF(E32=0,0,IF(E32=$K$10,0.25,SUM($K$10-E32))) -> 0 | J32: =I32*(G32+H32) -> 0 | M32: Új érték | O32: =SUM(G32:H32) -> 0
A33: =IF(B33>0,(A32+1),0) -> 0 | I33: =IF(E33=0,0,IF(E33=$K$10,0.25,SUM($K$10-E33))) -> 0 | J33: =I33*(G33+H33) -> 0 | M33: Avult érték | O33: =SUM(G33:H33) -> 0
A34: 0 | I34: 0 | J34: 0 | O34: 0
A35: 0 | I35: 0 | J35: 0 | O35: 0
A36: 0 | I36: 0 | J36: 0 | O36: 0
A37: 0 | I37: 0 | J37: 0 | O37: 0
A38: 0 | I38: 0 | J38: 0 | O38: 0
A39: 0 | I39: 0 | J39: 0 | O39: 0
A40: Gépek összesen | G40: =SUM(G29:G39) -> 0 | H40: =SUM(H29:H39) -> 0 | J40: =SUM(J29:J39) -> 0 | O40: =SUM(O29:O39) -> 0
I41: =IF(OR(J40=0,L29>L27),"15 felett",J40/O40) -> 15 felett | J41: Átlagéletkor
A42: Kelt.: | B42: =Ajánlat1!E112 -> 0 | C42: =Dátum -> 00:00:00
C45: biztosításközvetítő aláírása | E45: szerződő aláírása
A46: =Ajánlat1!B116 -> Verzió: 1.19
A47: =Ajánlat1!B117 -> UNION-Business Class Érvényes: 2021.12.31.-ig

Sheet Kiegészítők (hidden)
H2: UNION - BC
H3: Biztosítási ajánlat
Q4: Tevkor
A6: Üzemszünetbiztosítás | O6: Épület | P6: Gép, ber
A8: Választott önrész | C8: 3 nap | F8: Kártérítési limit | H8: =IF(A11=0,0,IF(A11="Small",A71,IF(A11="Medium",A72,IF(A11="Large",A73)))) -> 12 hónap, max 100 MFt | M8: =IF(C8="3 nap",1,IF(C8="5 nap",2,IF(C8="7 nap",3))) -> 1 | O8: =IF(Díjszámítás!M27=1,1,IF(Díjszámítás!M27=2,2,IF(Díjszámítás!M27=3,3,0))) -> 0 | P8: =IF(Díjszámítás!M42=1,1,IF(Díjszámítás!M42=2,2,IF(Díjszámítás!M42=3,3,0))) -> 0
A10: Választott módozat | C10: Díjszámítás alapja | E10: Kockázati osztály | F10: Díjtétel | G10: Módozati szorzó | H10: Volumen-szorzó | I10: Önrész szorzó | J10: Éves díj | M10: Mód | N10: Vol | P10: =IF(P8=0,0,IF(OR(O8=1,P8=1),1,IF(P8>1,2))) -> 0
A11: Large | C11: =IF(A11=0,0,Díjszámítás!N27) -> 0 | E11: =IF(OR(A11=0,C11=0,C8=0),0,IF(Díjszámítás!C12="","",VLOOKUP(Díjszámítás!$C12,'Tevékenység lista'!$A$2:$H$304,5,FALSE))) -> 0 | F11: =IF(OR(A11=0,C11=0,C8=0),0,IF(E11="vig",0,IF(E11="k",0,INDEX(Üzem,E11)))) -> 0 | G11: =IF(OR(A11=0,C11=0,C8=0),0,INDEX(Ümód,M11)) -> 0 | H11: =IF(OR(A11=0,C11=0,C8=0),0,INDEX(Üvol,O11)) -> 0 | I11: =IF(OR(A11=0,C11=0,C8=0),0,INDEX(Üönr,M8,)) -> 0 | J11: =IF(Díjszámítás!J45=0,0,IF(AND(C8=0,A11=0),0,(C11*F11*G11*H11*I11))) -> 0 | M11: =IF(A11="Small",1,IF(A11="Medium",2,IF(A11="Large",3))) -> 3 | N11: =Díjszámítás!N27 -> 0 | O11: =IF(N11<=10000,1,IF(AND(N11<=25000,N11>10),2,IF(AND(N11<=50000,N11>25),3,IF(AND(N11<=100000,N11>50),4,IF(AND(N11<=200000,N11>100),5,IF(AND(N11<=500000,N11>200),6)))))) -> 1
A12: =IF(E11="vig","Üzemszünet biztosítás csak a vagyonigazgatóság engedélyével köthető",IF(E11="k","Kizárt kockázat",IF(AND(Díjszámítás!J45=0,C8>0,A11>0),"Az üzemszünetbiztosítás csak a vagyonbiztosítás kiegészítőjeként köthető",0))) -> Az üzemszünetbiztosítás csak a vagyonbiztosítás kiegészítőjeként köthető
A13: Géptörés biztosítás
A15: Választott önrész | C15: 10%, de minimum 25.000 Ft | G15: Gépek átlagéletkora | I15: =Géplista!I37 -> 15 felett | M15: =IF(C15="","",VLOOKUP($C15,Összesítő!$E$63:$H$70,4,FALSE)) -> 1 | N15: =IF(I15<=2,1,IF(AND(I15<=5,I15>2),2,IF(AND(I15<=10,I15>5),3,IF(AND(I15<=15,I15>10),4,IF(OR(I15>15,I15="15 felett"),5))))) -> 5
A17: Választott módozat | C17: Biztosítási összeg | E17: Kockázati osztály | F17: Díjtétel | G17: Átlagélet-kor eng. | H17: Volumen-szorzó | I17: Önrész szorzó | J17: Éves díj | M17: =INDEX(Gkor,N15) -> 1 | O17: =IF(C18<=10000,1,IF(AND(C18<=25000,C18>10),2,IF(AND(C18<=50000,C18>25),3,IF(AND(C18<=100000,C18>50),4,IF(AND(C18<=200000,C18>100),5,IF(AND(C18<=500000,C18>200),6)))))) -> 1
A18: Géptörés | C18: =IF(Díjszámítás!J45=0,0,Géplista!O36) -> 0 | E18: =IF(OR(C18=0,C15=0),0,IF(Díjszámítás!C12="","",VLOOKUP(Díjszámítás!$C12,'Tevékenység lista'!$A$2:$H$304,6,FALSE))) -> 0 | F18: =IF(OR(C18=0,C15=0),0,IF(E18="vig",0,IF(E18="k",0,INDEX(Gép,E18)))) -> 0 | G18: =IF(OR(C18=0,C15=0),0,M17) -> 0 | H18: =IF(OR(C18=0,C15=0),0,INDEX(Gvol,O17)) -> 0 | I18: =IF(OR(C15=0,C18=0),0,INDEX(Gönr,M15)) -> 0 | J18: =IF(Díjszámítás!J45=0,0,IF(OR(C15=0,A18=0),0,(C18*F18*G18*H18*I18))) -> 0 | M18: =IF(A18="Small",1,IF(A18="Medium",2,IF(A18="Large",3))) -> FALSE
A19: =IF(E18="vig","Géptörésbiztosítás csak a vagyonigazgatóság engedélyével köthető",IF(E18="k","Kizárt kockázat",IF(AND(Díjszámítás!J45=0,C15>0),"A géptörésbiztosítás csak a vagyonbiztosítás kiegészítőjeként köthető",0))) -> A géptörésbiztosítás csak a vagyonbiztosítás kiegészítőjeként köthető
A21: Elektromos berendezések biztosítása
A23: Választott önrész | C23: 10%, de minimum 25.000 Ft | G23: Gépek átlagéletkora | I23: =GéptörésELBER!I24 -> 5 felett | M23: =IF(C23="","",VLOOKUP($C23,Összesítő!$E$63:$H$70,4,FALSE)) -> 1 | N23: =IF(I23<=2,1,IF(AND(I23<=3,I23>2),2,IF(AND(I23<=5,I23>3),3,IF(OR(I23>5,I23="5 felett"),4)))) -> 4
A25: Választott módozat | C25: Biztosítási összeg | E25: Kockázati osztály | F25: Díjtétel | G25: Átlagélet-kor eng. | H25: Volumen-szorzó | I25: Önrész szorzó | J25: Éves díj | M25: =INDEX(Ekor,N23) -> 1 | O25: =IF(C26<=10000,1,IF(AND(C26<=25000,C26>10),2,IF(AND(C26<=50000,C26>25),3,IF(AND(C26<=100000,C26>50),4,IF(AND(C26<=200000,C26>100),5,IF(AND(C26<=500000,C26>200),6)))))) -> 1
A26: ELBER | C26: =IF(Díjszámítás!J45=0,0,GéptörésELBER!O24) -> 0 | E26: =IF(OR(C26=0,C23=0),0,IF(Díjszámítás!C12="","",VLOOKUP(Díjszámítás!$C12,'Tevékenység lista'!$A$2:$H$304,7,FALSE))) -> 0 | F26: =IF(OR(C26=0,C23=0),0,IF(E26="vig",0,IF(E26="k",0,INDEX(ELBER,E26)))) -> 0 | G26: =IF(OR(C26=0,C23=0),0,M25) -> 0 | H26: =IF(OR(C26=0,C23=0),0,INDEX(Evol,O25)) -> 0 | I26: =IF(OR(C23=0,A26=0),0,INDEX(Eönr,M23)) -> 1 | J26: =IF(Díjszámítás!J45=0,0,IF(AND(C23=0,A26=0),0,(C26*F26*G26*H26*I26))) -> 0
A27: =IF(E26="vig","Elektromos berendezések biztosítása csak a vagyonigazgatóság engedélyével köthető",IF(E26="k","Kizárt kockázat",IF(AND(Díjszámítás!J45=0,C23>0),"Elektromos berendezések biztosítása csak a vagyonbiztosítás kiegészítőjeként köthető",0))) -> Elektromos berendezések biztosítása csak a vagyonbiztosítás kiegészítőjeként köthető
A28: Felelősségbiztosítás
A30: Választott önrész | C30: 20%, de minimum 50.000 Ft | M30: =IF(C30="","",VLOOKUP($C30,Összesítő!$E$63:$H$70,4,FALSE)) -> 6
A32: Választott módozat | C32: Kártérítési limit MFt/kár/év | E32: Kockázati osztály | F32: Díjtétel | G32: Módozati szorzó | I32: Önrész szorzó | J32: Éves díj
A33: Small | C33: =IF(Díjszámítás!J45=0,0,IF(A33=0,0,IF(A33="Small","5/15",IF(A33="Medium","15/45",IF(A33="Large","50/100"))))) -> 0 | E33: =IF(OR(A33=0,C33=0,C30=0),0,IF(Díjszámítás!C12="","",VLOOKUP(Díjszámítás!$C12,'Tevékenység lista'!$A$2:$H$304,3,FALSE))) -> 0 | F33: =IF(OR(A33=0,C33=0,C30=0),0,IF(E33="vig",0,IF(E33="k",0,INDEX(Fel,E33)))) -> 0 | G33: =IF(OR(A33=0,C33=0,C30=0),0,INDEX(Felmód,M33)) -> 0 | I33: =IF(OR(A33=0,C33=0,C30=0),0,INDEX(Felönr,M30)) -> 0 | J33: =F33*G33*I33 -> 0 | M33: =IF(A33="Small",1,IF(A33="Medium",2,IF(A33="Large",3))) -> 1
A34: Kiegészítő felelősségbiztosítások
A35: Bérlői felelősség | J35: =IF(I35=0,0,IF(J33=0,0,IF(AND(J33>0,I35="kérem"),(J33*0.1),IF(AND(J33>0,I35="nem kérem"),0)))) -> 0
A36: Bérbeadói felelősség | J36: =IF(I36=0,0,IF(J33=0,0,IF(AND(J33>0,I36="kérem"),(J33*0.1),IF(AND(J33>0,I36="nem kérem"),0)))) -> 0
A37: Kiterjesztett termék | J37: =IF(I37=0,0,IF(J33=0,0,IF(AND(J33>0,I37="kérem"),(J33*0.35),IF(AND(J33>0,I37="nem kérem"),0)))) -> 0
A38: Szálloda 1 (S;M;L) | J38: =IF(I38=0,0,IF(J33=0,0,IF(AND(J33>0,I38="kérem"),(J33*0.3),IF(AND(J33>0,I38="nem kérem"),0)))) -> 0
A39: Szálloda 2 (M;L) | J39: =IF(A33="Small",0,IF(I39=0,0,IF(J33=0,0,IF(AND(J33>0,I39="kérem"),(J33*0.4),IF(I39="Nem köthető",0,IF(AND(J33>0,I39="nem kérem"),0)))))) -> 0
A40: Környezetszennyezés | J40: =IF(I40=0,0,IF(J33=0,0,IF(AND(J33>0,I40="kérem"),(J33*0.15),IF(AND(J33>0,I40="nem kérem"),0)))) -> 0
A41: EU Kiterjesztés | J41: =IF(I41=0,0,IF(J33=0,0,IF(AND(J33>0,I41="kérem"),(J33*0.15),IF(AND(J33>0,I41="nem kérem"),0)))) -> 0
A42: Rakodás (M;L) | J42: =IF(A33="Small",0,IF(I42=0,0,IF(J33=0,0,IF(I42="Nem köthető",0,IF(AND(J33>0,I42="kérem"),(J33*0.15),IF(AND(J33>0,I42="nem kérem"),0)))))) -> 0
A43: Felelősségbiztosítás összesen | J43: =IF(Díjszámítás!J45=0,0,IF(AND(C30=0,A33=0),0,SUM(J35:K42,J33))) -> 0
A44: =IF(E33="vig","Felelősségbiztosítás csak a vagyonigazgatóság engedélyével köthető",IF(E33="k","Kizárt kockázat",IF(AND(Díjszámítás!J45=0,C30>0,A33>0),"Felelősségbiztosítás csak a vagyonbiztosítás kiegészítőjeként köthető",0))) -> Felelősségbiztosítás csak a vagyonbiztosítás kiegészítőjeként köthető
A47: Dátum | B47: =Ajánlat1!E112 -> 0 | D47: =TODAY() -> 2021-07-05
B51: üzletkötő | H51: szerződő/biztosított
A57: 0 | C57: 3 nap | E57: 10%, de minimum 25.000 Ft | H57: 1 | I57: 1 | K57: 1
A58: 5000 | C58: 5 nap | E58: 10%, de minimum 50.000 Ft | H58: 2 | I58: 0.95 | K58: 0.95
A59: 10000 | C59: 7 nap | E59: 10%, de minimum 100.000 Ft | H59: 3 | I59: 0.85 | K59: 0.85
A60: 25000 | E60: 10%, de minimum 200.000 Ft | H60: 4 | I60: 0.7 | K60: 0.7
A61: 50000 | E61: 20%, de minimum 25.000 Ft | H61: 5 | I61: 0.92 | K61: 0.92
A62: 100000 | E62: 20%, de minimum 50.000 Ft | H62: 6 | I62: 0.87 | K62: 0.87
A63: 200000 | E63: 20%, de minimum 100.000 Ft | H63: 7 | I63: 0.78 | K63: 0.78
E64: 20%, de minimum 200.000 Ft | H64: 8 | I64: 0.64 | K64: 0.64
A65: Small | B65: Small
A66: Medium | D66: 0-2 | F66: kérem | H66: éves | J66: Nem köthető
A67: Large | D67: 2,01-3 | F67: nem kérem | H67: féléves
D68: 3,01-5 | H68: negyedéves
D69: 5,01- | F69: üzleti
F70: üzletpolitikai
A71: 3 hónap, max. 25 MFt
A72: 6 hónap, max. 50 MFt
A73: 12 hónap, max 100 MFt

Sheet Összesítő (hidden)
I2: UNION - BC
I3: Biztosítási ajánlat
Q4: Tevkor
A9: Biztosítási díjösszesítő | N9: =(100-5)/100 -> 0.95
J12: Éves díj
A13: Vagyonbiztosítás összesen | J13: =Díjszámítás!J45 -> 0
A14: Épületbiztosítás | J14: =Díjszámítás!J27 -> 0
A15: Gép, berendezés biztosítás | J15: =Díjszámítás!J42 -> 0 | M15: =COUNTIF(J14:K19,">0") -> 0
A16: Üzemszünetbiztosítás | J16: =Kiegészítők!J11 -> 0
A17: Géptörés biztosítás | J17: =Kiegészítők!J18 -> 0
A18: Elektromos gépek, berendezések biztosítása | J18: =Kiegészítők!J26 -> 0
A19: Felelősségbiztosítás | J19: =Kiegészítők!J43 -> 0
A21: Éves díj | J21: =J13+J16+J17+J18+J19 -> 0
A22: Pótdíjak
A23: Engedmények | F23: Csomag engedmény | J23: =IF(M15<4,0,IF(M15=4,0.95,IF(OR(M15=5,M15=6),0.9))) -> 0
F24: Üzleti engedmények | H24: üzleti | I24: 5 | J24: =IF(J21=0,0,M24) -> 0 | M24: =IF(H24=0,0,IF(H24="üzleti",(100-I24)/100,IF(H24="üzletpolitikai",0.84))) -> 0.95
F25: Tartamengedmény | J25: =IF(Ajánlat1!E37="Felmondási jog 3 évre kizárva",0.9,0) -> 0 | N25: =IF(AND(J23=0,J24=0,J25=0,J26=0),0,IF(AND(J23>0,J24>0,J25>0,J26>0),(J23*J24*J25*J26),IF(AND(J23>0,J24=0,J25=0,J26=0),J23,IF(AND(J23>0,J24>0,J25=0,J26=0),(J23*J24),IF(AND(J23>0,J24>0,J25>0,J26=0),(J23*J24*J25),IF(AND(J23=0,J24>0,J25>0,J26>0),(J24*J25*J26),IF(AND(J23=0,J24=0,J25>0,J26>0),(J25*J26),0))))))) -> 0
F26: Egyedi engedmény | M26: =IF(Ajánlat1!J37>0,1,0) -> 0 | N26: =IF(AND(J23=0,J24=0,J25=0,J26>0),J26,IF(AND(J23=0,J24>0,J25=0,J26=0),J24,IF(AND(J23=0,J24=0,J25>0,J26=0),J25,IF(AND(J23=0,J24>0,J25>0,J26=0),(J24*J25),IF(AND(J23>0,J24=0,J25=0,J26>0),(J23*J26),IF(AND(J23>0,J24=0,J25>0,J26=0),(J23*J25),0)))))) -> 0
A27: Éves díj összesen | J27: =IF(J21=0,0,MAX(20000,IF(N28=0,J21,IF(N28>0,(J21*N28))))) -> 0 | M27: =J27/365 -> 0 | N27: =IF(AND(J23>0,J24=0,J25>0,J26>0),(J23*J25*J26),IF(AND(J23>0,J24>0,J25=0,J26>0),(J23*J24*J26),0)) -> 0
A28: Gyakorisági díj | F28: Díjfizetés gyakorisága | H28: féléves | J28: =IF(H28=0,0,IF(H28="éves",J27*0.92,IF(H28="féléves",(J27/2)*0.96,IF(H28="negyedéves",J27/4)))) -> 0 | M28: =IF(H28="negyedéves",J28*4,IF(H28="féléves",J28*2,IF(H28="éves",J28))) -> 0 | N28: =IF(AND(N25=0,N26=0,N27=0),0,IF(AND(N25>0,N26=0,N27=0),N25,IF(AND(N25=0,N26>0,N27=0),N26,IF(AND(N25=0,N26=0,N27>0),N27)))) -> 0
A29: Fizetendő első díj | J29: =J30 -> 0 | M29: =M28/365 -> 0
A30: Fizetendő díj | C30: =Ajánlat1!E39 -> 2021-07-06 | E30: =IF(OR(Ajánlat1!J37="",Ajánlat1!N37>364),DATEVALUE(CONCATENATE(YEAR(Ajánlat1!E39),".",MONTH(Ajánlat1!E39)+1,".01")),"") -> 2021-08-01 | G30: =IF(OR(MOD(YEAR(Ajánlat1!E35)-2000,4)=0,Ajánlat1!J37=""),365,IF(Ajánlat1!J37-Ajánlat1!E35=364,365,Ajánlat1!J37-Ajánlat1!E35+1)) -> 365 | H30: =SUM(E31-C30) -> 26 | J30: =IF(Ajánlat1!J37>0,((G30*M27)+(M27*30)),(M29*H30)+J28) -> 0
E31: =DATEVALUE(CONCATENATE(YEAR(Ajánlat1!E39),".",MONTH(Ajánlat1!E39)+1,".01")) -> 2021-08-01
A35: Dátum | B35: =Ajánlat1!E112 -> 0 | D35: =TODAY() -> 2021-07-05
B38: üzletkötő | H38: szerződő/biztosított
A63: 0 | C63: 3 nap | E63: 10%, de minimum 25.000 Ft | H63: 1 | I63: 1
A64: 5000 | C64: 5 nap | E64: 10%, de minimum 50.000 Ft | H64: 2 | I64: 0.95
A65: 10000 | C65: 7 nap | E65: 10%, de minimum 100.000 Ft | H65: 3 | I65: 0.85
A66: 25000 | E66: 10%, de minimum 200.000 Ft | H66: 4 | I66: 0.7
A67: 50000 | E67: 20%, de minimum 25.000 Ft | H67: 5 | I67: 0.92
A68: 100000 | E68: 20%, de minimum 50.000 Ft | H68: 6 | I68: 0.87
A69: 200000 | E69: 20%, de minimum 100.000 Ft | H69: 7 | I69: 0.78
E70: 20%, de minimum 200.000 Ft | H70: 8 | I70: 0.64
A71: Small
A72: Medium | D72: 0-2 | F72: kérem | H72: éves
A73: Large | D73: 2,01-5 | F73: nem kérem | H73: féléves
D74: 5,01-10 | H74: negyedéves
D75: 10,01-15 | F75: üzleti
D76: 15 felett | F76: üzletpolitikai

Sheet Kockázatfelmérő
M2: UNION-Business Class
M3: Kockázatfelmérő adatlap
B6: Szerződő/Biztosított neve: | E6: =Ajánlat1!E16 -> 0
B8: Szerződő/biztosítottként nyilatkozom, hogy a jelen biztosítási ajánlatban részletezett telephelyek megfelelnek az alábbiaknak:
B10: 1. Az épületek falazata szilárd anyagból készült (tégla, kő, vasbeton): | L10: igen | O10: =IF(L10="igen",1,IF(AND(L10="nem",B16>0,L16>0),1,IF(L10=0,0,IF(AND(L10="nem",B16=0,L16=0),2)))) -> 1
B12: 2. A nem szilárd anyagból készült épületek (vályog, könnyűszerkezet, fa) az alábbi telephelyeken találhatók:
B14: Telephely címe: | D14: =IF(O10=2,"Kérjük adja meg az épületek címét és a funkciókat",0) -> 0 | L14: Épület funkciója:
B24: 3. Az épületek héjalása (tetőzete) szilárd anyagból készült (cserép, pala, beton): | L24: igen | O24: =IF(L24="igen",1,IF(AND(L24="nem",B30>0,L30>0),1,IF(L24=0,0,IF(AND(L24="nem",B30=0,L30=0),2)))) -> 1
B26: 4. A nem szilárd anyagból készült (nád, fa) héjalású épületek az alábbi telephelyeken találhatók:
B28: Telephely címe: | D28: =IF(O24=2,"Kérjük adja meg az épületek címét és a funkciókat",0) -> 0 | L28: Épület funkciója:
B38: 5. A telephelyek épületeinek állaga: | L38: jó | O38: =IF(L38=0,0,IF(L38>0,1)) -> 1
B40: 6. A telephelyek tűzvédelmi berendezéssel ellátottak (hagyományos kézi oltókészülékek,
B41: kiépített hálózat, a tüzivíz ellátása megoldott): | L41: igen | O41: =IF(L41=0,0,IF(L41>0,1)) -> 1
B43: 7. A telephelyeken automata tűz, füst, hőérzékelő működik: | L43: nem | O43: =IF(L43=0,0,IF(L43>0,1)) -> 1
B45: 8. A tűzoltó készülékek, tűzjelző berendezések ellenőrzése rendszeres: | L45: igen | O45: =IF(L45=0,0,IF(L45>0,1)) -> 1
B47: 9. Használnak-e lobbanékony folyadékokat/gázokat: | I47: nem | J47: Ha igen, milyet: | O47: =IF(I47=0,0,IF(AND(I47="igen",L47=0),2,IF(AND(I47="igen",L47>0),1,IF(I47="nem",1)))) -> 1
B49: 10. Fennállnak-e külső veszélyforrások: | I49: nem | J49: Ha igen milyen: | O49: =IF(I49=0,0,IF(AND(I49="igen",L49=0),2,IF(AND(I49="igen",L49>0),1,IF(I49="nem",1)))) -> 1
B51: 11. Az elektromos hálózat állapota megfelelő (szigeteltek a kábelek, trafóházak): | L51: igen | O51: =IF(L51=0,0,IF(L51>0,1)) -> 1
B53: 12. A telephelyeken talajszint alatti padozatú helyiségek találhatók-e: | L53: igen | O53: =IF(L53=0,0,IF(L53>0,1)) -> 1
B55: 13. Ha igen a szerződést kezelő biztosító társaság neve:
G57: Biztosítás kötvényszám
B59: 13. Kárelőzmények (az előző két év káreseményei): | I59: nem volt károm | O59: =IF(I59=0,0,IF(I59="nem volt károm",1,IF(AND(I59="volt károm",B63=0,F63=0,I63=0,L63=0),2,IF(AND(I59="volt károm",B63>0,F63>0,I63>0,L63>0),1)))) -> 1
B61: 14. Telephely címe: | F61: Kár időpontja: | I61: Kár oka: | L61: Kár összege: | O61: =IF(AND(O10=0,O24=0,O38=0,O41=0,O43=0,O45=0,O47=0,O49=0,O51=0,O53=0,O59=0),0,IF(AND(O10=1,O24=1,O38=1,O41=1,O43=1,O45=1,O47=1,O49=1,O51=1,O53=1,O59=1),1,IF(OR(O10>1,O10=0,O24>1,O24=0,O38>1,O24=0,O41>1,O41=0,O43>1,O43=0,O45>1,O45=0,O47>1,O47=0,O49>1,O49=0,O51>1,O51=0,O53>1,O53=0,O59>1,O59=0),2))) -> 1
O63: HA(ÉS(
B73: Megjegyzések: | O73: =IF(O61=11,0,IF(O61<11,1,IF(O61>11,2))) -> 1
O75: =VLOOKUP(1,O10:O59,1,FALSE) -> 1
E78: =Ajánlat1!G112 -> 00:00:00
B79: =IF(O61=0,"Kérjük, töltse ki a kockázatfelmérő adatlapot!",IF(O61=1,0,IF(O61=2,"Kérjük, töltse ki a hiányzó adatokat!"))) -> 0
B80: Kelt.: | C80: =Ajánlat1!E112 -> 0
I81: szerződő/biztosított | S81: =IFERROR('Vagyonbiztosítási adatközlő'!B10, ) -> 0
S82: =IFERROR('Vagyonbiztosítási adatközlő'!B11, ) -> 0
S83: =IFERROR('Vagyonbiztosítási adatközlő'!B12, ) -> 0
B84: =Ajánlat1!B116 -> Verzió: 1.19 | O84: =O10 -> 1 | S84: =IFERROR('Vagyonbiztosítási adatközlő'!B13, ) -> 0
B85: =Ajánlat1!B117 -> UNION-Business Class Érvényes: 2021.12.31.-ig | O85: =O24 -> 1 | S85: =IFERROR('Vagyonbiztosítási adatközlő'!B14, ) -> 0
O86: =O38 -> 1 | S86: =IFERROR('Vagyonbiztosítási adatközlő'!B15, ) -> 0
O87: =O41 -> 1 | S87: =IFERROR('Vagyonbiztosítási adatközlő'!B16, ) -> 0
O88: =O43 -> 1 | S88: =IFERROR('Vagyonbiztosítási adatközlő'!B17, ) -> 0
O89: =O45 -> 1 | S89: =IFERROR('Vagyonbiztosítási adatközlő'!B18, ) -> 0
B90: igen | C90: üzemcsarnok | F90: jó | I90: volt károm | O90: =O47 -> 1 | S90: =IFERROR('Vagyonbiztosítási adatközlő'!B19, ) -> 0
B91: nem | C91: raktár | F91: közepes | I91: nem volt károm | O91: =O49 -> 1 | S91: =IFERROR('Vagyonbiztosítási adatközlő'!B20, ) -> 0
C92: műhely | F92: rossz | O92: =O51 -> 1 | S92: =IFERROR('Vagyonbiztosítási adatközlő'!B21, ) -> 0
C93: iroda | O93: =O53 -> 1 | S93: =IFERROR('Vagyonbiztosítási adatközlő'!B22, ) -> 0
C94: üzlet | O94: =O59 -> 1 | S94: =IFERROR('Vagyonbiztosítási adatközlő'!B23, ) -> 0
C95: szociális létesítmény | O95: =IF(AND(O84:O94)=0,1,IF(AND(O84:O94)=1,0,IF(OR(O84:O94)=2,2,IF(OR(O84:O94)=0,2)))) -> FALSE | S95: =IFERROR('Vagyonbiztosítási adatközlő'!B24, ) -> 0
S96: =IFERROR('Vagyonbiztosítási adatközlő'!B25, ) -> 0

Sheet Díjszámítás
H2: UNION-Business Class
H3: Biztosítási ajánlat
A5: UNION-Business Class
A6: DÍJKALKULÁCIÓS PROGRAM, NEM MINŐSÜL BIZTOSÍTÁSI AJÁNLATNAK!!
A8: Kockázatviselés helye: | D8: =Ajánlat1!B33 -> 0 | E8: =Ajánlat1!D33 -> 0 | H8: =Ajánlat1!G33 -> 0 | J8: =Ajánlat1!J33 -> 0
A10: Telephelyen folytatott tevékenységek
A12: Jellemző tevékenység: | O12: =IF(C12="Önkormányzat",1,0) -> 0
A13: =IF(C12=0,"Kérjük, válasszon tevékenységet!",IF(OR(D14="vig",I14="vig"),"Vagyonbiztosítás csak a vagyonigazgatóság engedélyével köthető",0)) -> 0 | M13: -1
A14: Kockázati osztály tűz | D14: =IF(C12="","",VLOOKUP($C12,'Tevékenység lista'!$A$2:$G$304,2,FALSE)) ->  | F14: Kockázati osztály betörés | I14: =IF(C12="","",VLOOKUP($C12,'Tevékenység lista'!$A$2:$G$304,4,FALSE)) -> 
A16: Épületbiztosítás | O16: =IF(H27>0,1,0) -> 0
A17: =IF(AND(C24>0,A27>0,'Vagyonbiztosítási adatközlő'!P26=0),"Kérjük töltse ki az Épület munkalapot!",0) -> 0
A18: Biztosított vagyontárgyak | D18: Biztosítási összeg eFt | J18: Összesen
D19: Saját tulajdon | G19: Idegen tulajdon
A20: Épület | D20: ='Vagyonbiztosítási adatközlő'!E26 -> 0 | G20: ='Vagyonbiztosítási adatközlő'!G26 -> 0 | J20: =SUM(D20:I20) -> 0
A21: Építmény | D21: ='Vagyonbiztosítási adatközlő'!I26 -> 0 | G21: ='Vagyonbiztosítási adatközlő'!K26 -> 0 | J21: =SUM(D21:I21) -> 0
A22: Összesen | D22: =SUM(D20:F21) -> 0 | G22: =SUM(G20:I21) -> 0 | J22: =C27 -> 0
M23: Önr
A24: Választott önrész | E24: Ft | H24: Ft | M24: =IF(C24="0",1,IF(C24=5000,2,IF(C24=10000,3,IF(C24=25000,4,IF(C24=50000,5,IF(C24=100000,6,IF(C24=200000,7))))))) -> FALSE | AA24: Hibakezelés
A26: Választott módozat | C26: Biztosítási összeg eFt | E26: Kockázati osztály | F26: Díjtétel | G26: Módozati szorzó | H26: Éves díj Ft | M26: Mód | N26: Vol | R26: Kockázati osztály | S26: Díjtétel | T26: Módozati szorzó | U26: Volumen-szorzó | V26: Önrész szorzó | W26: =IF(H27>0,1,0) -> 0
A27: 0 | C27: ='Vagyonbiztosítási adatközlő'!T26 -> 0 | H27: =SUM(C27*S27*T27*U27*V27) -> 0 | M27: =IF(A27="Alap",1,IF(A27="Teljes",2,IF(A27="Extra",3,IF(A27="All Risks",4)))) -> FALSE | N27: =SUM(C27,C42) -> 0 | O27: =IF(N27<=10000,1,IF(AND(N27<=25000,N27>10),2,IF(AND(N27<=50000,N27>25),3,IF(AND(N27<=100000,N27>50),4,IF(AND(N27<=200000,N27>100),5,IF(AND(N27<=500000,N27>200),6)))))) -> 1 | R27: =IF(OR(A27=0,C27=0,C24=0),0,D14) -> 0 | S27: =IF(OR(A27=0,C27=0,C24=0),0,INDEX(Tűz,R27)) -> 0 | T27: =IF(OR(A27=0,C27=0,C24=0),0,INDEX(Tmód,M27)) -> 0 | U27: =IF(OR(A27=0,C27=0,C24=0),0,4.1646*(N27/1000)^-0.348) -> 0 | V27: =IF(OR(A27=0,C27=0,C24=0),0,INDEX(Tönr,M24)) -> 0 | W27: =IF(H42>0,1,0) -> 0 | AA27: Épület Hibakód
A28: =IF(AA28=2,"Kérjük töltse ki a Vagyonbiztosítási adatközlő munkalapot!",IF(AA28=1,"Kérjük, válasszon módozatot!",IF(AA28=3,"Kérjük, válasszon önrészt!",0))) -> 0 | N28: =IF(A42=0,0,INDEX(tvol,$O$27)) -> 0 | O28: =IF(O27=4,1,IF(O27=5,2,IF(O27=6,3))) -> FALSE | P28: =IF(O28=0,1,INDEX(bvol,O28)) ->  | W28: =IF(H49>0,1,0) -> 0 | AA28: =IF(AND(OR(C27>0,C24>0),A27=0),1,IF(AND(OR(C24>0,A27>0),C27=0),2,IF(AND(OR(C27>0,A27>0),C24=0),3,0))) -> 0
A29: Ingóság (Gép, berendezés, készlet biztosítás) | N29: =C42-50000 -> -50000 | W29: =IF(H55>0,1,1) -> 1
A30: =IF(AND(C39>0,A42>0,'Gép,berendezés'!L33=0),"Kérjük töltse ki a Gép, berendezés munkalapot!",0) -> 0
A31: Biztosított vagyontárgyak | D31: Biztosítási összeg | J31: Összesen
D32: Saját tulajdon | G32: Idegen tulajdon | N32: =INDEX(Itűz,D14) ->  | O32: =INDEX(Bet,I14) -> 
A33: Gép, berendezés | D33: ='Gép,berendezés'!E33 -> 0 | G33: ='Gép,berendezés'!F33 -> 0 | J33: =SUM(D33:I33) -> 0 | N33: =C42*N32*T42*N28*V42 ->  | O33: =IF(C42<=50000,(C42*O32*T42*V42*N28),IF(C42>50000,O34+O35)) ->  | P33: =SUM(N33:O33) -> 
A34: Egyéb nevesített vagyontárgy | D34: ='Gép,berendezés'!G33 -> 0 | G34: ='Gép,berendezés'!H33 -> 0 | J34: =SUM(D34:I34) -> 0 | O34: =50000*O32*T42*N28*V42 -> 
A35: Készlet | D35: ='Gép,berendezés'!I33 -> 0 | G35: ='Gép,berendezés'!J33 -> 0 | J35: =SUM(D35:I35) -> 0 | O35: =N29*O32*T42*P28*V42 -> 
A36: Készpénz | D36: ='Gép,berendezés'!K33 -> 0 | J36: =SUM(D36:I36) -> 0 | O36: =SUM(O34:O35) -> 
A37: Összesen | D37: =SUM(D33:F36) -> 0 | G37: =SUM(G33:I36) -> 0 | J37: =C42 -> 0 | O37: =O36+N33 -> 
A39: Választott önrész | H39: Ft | M39: =IF(C39="0",1,IF(C39=5000,2,IF(C39=10000,3,IF(C39=25000,4,IF(C39=50000,5,IF(C39=100000,6,IF(C39=200000,7))))))) -> FALSE | W39: =IF(H62>0,1,0) -> 0
A41: Választott módozat | C41: Biztosítási összeg eFt | E41: Kockázati osztály | F41: Díjtétel | G41: Módozati szorzó | H41: Éves díj Ft | R41: Kockázati osztály | S41: Díjtétel | T41: Módozati szorzó | U41: Volumen-szorzó | V41: Önrész szorzó | W41: =IF(H70>0,1,0) -> 0
A42: 0 | C42: ='Vagyonbiztosítási adatközlő'!U26 -> 0 | H42: =IF(A43<>0,0,IF(AND(N29>0,N42<>7),T42*V42*(C42*S44*U42+50000*S45*U42+N29*S45*U44),C42*S42*T42*U42*V42)) -> 0 | M42: =IF(A42="Alap csomag betöréses lopással",1,IF(A42="Teljes csomag betöréses lopással",2,IF(A42="Extra csomag betöréses lopással",3,IF(A42="All Risks csomag betöréses lopással",4,IF(A42="Alap csomag betöréses lopás nélkül",5,IF(A42="Teljes csomag betöréses lopás nélkül",6,IF(A42="Extra csomag betöréses lopás nélkül",7,IF(A42="All Risks csomag betöréses lopás nélkül",8)))))))) -> FALSE | N42: =IF(M42=1,1,IF(M42=2,2,IF(M42=3,3,IF(M42=4,4,7)))) -> 7 | R42: =IF(OR(A42=0,C42=0,C39=0),0,D14) -> 0 | S42: =IF(OR(A42=0,C42=0,C39=0),0,IF(N42=7,INDEX(Itűz,D14),IF(N42<7,SUM(INDEX(Itűz,D14),INDEX(Bet,I14))))) -> 0 | T42: =IF(OR(A42=0,C42=0,C39=0),0,IF(M42=0,0,IF(M42<=4,INDEX(Bmód,M42),IF(M42>4,INDEX(Tmód,(M42-4)),)))) -> 0 | U42: =IF(A42=0,0,4.1646*(N27/1000)^-0.348) -> 0 | V42: =IF(OR(A42=0,C42=0,C39=0),0,INDEX(Tönr,M39)) -> 0 | AA42: Ingóság Hibakód
A43: =IF(AA43=2,"Kérjük töltse ki a Vagyonbiztosítási adatközlő munkalapot!",IF(AA43=1,"Kérjük, válasszon módozatot!",IF(AA43=3,"Kérjük, válasszon önrészt!",0))) -> 0 | AA43: =IF(AND(OR(C42>0,C39>0),A42=0),1,IF(AND(OR(C39>0,A42>0),C42=0),2,IF(AND(OR(C42>0,A42>0),C39=0),3,0))) -> 0
A44: Vagyonbiztosítás összesen | S44: =INDEX(Itűz,D14) ->  | U44: =IF(C42<=50000,"50MFt feletti bet. Lop. volumen szorzó kerül ide, ha van!",VLOOKUP(C42*1000,'Tarifa táblák'!E25:H27,4,TRUE)) -> 50MFt feletti bet. Lop. volumen szorzó kerül ide, ha van!
A45: Épület és Ingóság biztosítás éves díja összesen | H45: =IF(OR(A46<>"",M45<0),0,IF(AND(M45>0,M45<15000),15000,M45)) -> 0 | M45: =SUM(H27+H42) -> 0 | S45: =INDEX(Bet,I14) ->  | AA45: 1000000 fölötti összeg
A46: =IF(AA46=2,"Kérjük, töltse ki a Forgalom adatot az Ajánlat1 oldalán!",IF(AA46=1,"1.000.000 eFt vagyonérték felett nem köthető Business Class biztosítás","")) -> Kérjük, töltse ki a Forgalom adatot az Ajánlat1 oldalán! | AA46: =IF(J74<1,2,IF(N27>1000000,1,0)) -> 2
A47: Kiegészítő üvegbiztosítás | H47: Önrész: 2000 Ft
A48: Választott módozat | C48: Limit eFt | H48: Éves díj Ft
H49: =IF(H45=0,0,IF(A49=0,0,IF(C49=0,0,IF(A49="Normál üveg",VLOOKUP(C49,'Tarifa táblák'!AD5:AF19,2,FALSE),IF(A49="Normál és speciális üveg",VLOOKUP(C49,'Tarifa táblák'!AD5:AF19,3,FALSE)))))) -> 0 | AA49: Üveg Hibakód
A50: =IF(AA50=3,"A Kiegészítő üvegbiztosítás csak a vagyonbiztosítás kiegészítőjeként köthető",IF(AA50=2,"Kérjük, válasszon limitet!",IF(AA50=1,"Kérjük, válasszon módozatot!",0))) -> 0 | AA50: =IF(AND(C49>0,A49=0),1,IF(AND(A49>0,C49=0),2,0)) -> 0
A51: Üzemszünetbiztosítás | O51: Épületcsomag | P51: ingóságcsomag
A52: Választott önrész | H52: Limit | I52: =IF(A55=0,0,IF(A55="Alap csomag: 3 hó, max. 25 M Ft",A157,IF(A55="Bővített csomag: 6 hó, max. 50 M Ft",A158,IF(A55="Bővített csomag: 12 hó, max. 100 M Ft",A159,IF(A55="Bővített csomag: 12 hó, max. 150 M Ft",A160,0))))) -> 0 | M52: =IF(C52="3 nap",1,IF(C52="5 nap",2,IF(C52="7 nap",3))) -> FALSE | O52: =IF(Díjszámítás!M27=1,1,IF(Díjszámítás!M27=2,2,IF(Díjszámítás!M27=3,3,0))) -> 0 | P52: =IF(OR(M42=5,M42=1),1,IF(OR(M42=6,M42=2),2,IF(OR(M42=7,M42=3),3,IF(OR(M42=8,M42=4),4,0)))) -> 0
A54: Választott módozat | C54: Díjszámítás alapja | E54: Kockázati osztály | F54: Díjtétel | G54: Módozati szorzó | H54: Éves díj Ft | M54: Mód | N54: Vol | P54: =IF(AND(O52>0,P52>O52),O52,P52) -> 0 | R54: Kockázati osztály | S54: Díjtétel | T54: Módozati szorzó | U54: Volumen-szorzó | V54: Önrész szorzó
A55: 0 | C55: =IF(OR(A42=0,A55=0),0,IF(AND(M42=1,M55>1),0,IF(AND(M27=1,M55>1),0,Díjszámítás!N27))) -> 0 | H55: =IF(A56<>0,0,IF(H42=0,0,IF(AND(C52=0,A55=0),0,(C55*S55*T55*U55*V55)))) -> 0 | M55: =IF(A55="Alap csomag: 3 hó, max. 25 M Ft",1,IF(A55="Bővített csomag: 6 hó, max. 50 M Ft",2,IF(A55="Bővített csomag: 12 hó, max. 100 M Ft",3,IF(A55="Bővített csomag: 12 hó, max. 150 M Ft",4)))) -> FALSE | N55: =Díjszámítás!N27 -> 0 | O55: =IF(N55<=10000,1,IF(AND(N55<=25000,N55>10),2,IF(AND(N55<=50000,N55>25),3,IF(AND(N55<=100000,N55>50),4,IF(AND(N55<=200000,N55>100),5,IF(AND(N55<=500000,N55>200),6)))))) -> 1 | R55: =IF(OR(A55=0,C55=0,C52=0),0,IF(Díjszámítás!C12="","",VLOOKUP(Díjszámítás!C12,'Tevékenység lista'!$A$2:$G$304,5,FALSE))) -> 0 | S55: =IF(OR(A55=0,C55=0,C52=0),0,IF(R55="vig",0,INDEX(Üzem,R55))) -> 0 | T55: =IF(OR(A55=0,C55=0,C52=0),0,INDEX(Ümód,M55)) -> 0 | U55: =IF(OR(A55=0,C55=0,C52=0),0,4.1646*(N55/1000)^-0.348) -> 0 | V55: =IF(OR(A55=0,C55=0,C52=0),0,INDEX(Üönr,M52,)) -> 0 | AA55: Üzemszünet Hibakód
A56: =IF(AA56=4,"Üzemszünetbiztosítás csak a vagyonigazgatóság engedélyével köthető",IF(AA56=5,"Az Üzemszünetbiztosítás csak a vagyonbiztosítás kiegészítőjeként köthető",IF(AA56=6,"Üzemszünet biztosítás csak az Ingóságbiztosítás kiegészítőjeként köthető",IF(AA56=1,"Kérjük, válasszon módozatot!",IF(AA56=2,"Kérjük, válasszon ki önrészt!",IF(AA56=7,"A választott üzemszünet csomag nem engedélyezett a megjelölt vagyonbiztosítási módozathoz!",0)))))) -> 0 | AA56: =IF(AND(C52>0,A55=0),1,IF(AND(C52=0,A55>0),2,IF(AND(H45>0,H42>0,R55="vig"),4,IF(AND(H45=0,C52>0,A55>0),5,IF(AND(A55>0,H42=0),6,IF(AND(M55,M55>P54),7,0)))))) -> 0
A57: Géptörés biztosítás
A59: Önrész | H59: Gépek átlagéletkora | J59: =IF(C62>0,GéptörésELBER!I41,0) -> 0 | M59: =IF(B59="","",VLOOKUP($B59,Összesítő!$E$63:$H$70,4,FALSE)) ->  | N59: =IF(J59<=2,1,IF(AND(J59<=5,J59>2),2,IF(AND(J59<=10,J59>5),3,IF(AND(J59<=15,J59>10),4,IF(OR(J59>15,J59="15 felett"),5))))) -> 1 | O59: =IF(J59=0,0,IF(J59="0-2",1,IF(J59="2,01-5",2,IF(J59="5,01-10",3,IF(J59="10,01-15",4,IF(J59="15 felett",5)))))) -> 0
A61: Választott módozat | C61: Biztosítási összeg eFt | E61: Kockázati osztály | F61: Díjtétel | G61: Átlagélet-kor eng. | H61: Éves díj Ft | M61: =INDEX(Gkor,N59) -> 0.5 | O61: =IF(C62<=10000,1,IF(AND(C62<=25000,C62>10),2,IF(AND(C62<=50000,C62>25),3,IF(AND(C62<=100000,C62>50),4,IF(AND(C62<=200000,C62>100),5,IF(AND(C62<=500000,C62>200),6)))))) -> 1 | R61: Kockázati osztály | S61: Díjtétel | T61: Átlagélet-kor eng. | U61: Volumen-szorzó | V61: Önrész szorzó
A62: Géptörés | C62: =GéptörésELBER!O40 -> 0 | H62: =IF(OR(H42=0,H45=0),0,IF(C42<C62,0,IF(B59=0,0,(C62*S62*T62*U62*V62)))) -> 0 | M62: =IF(A62="Alap",1,IF(A62="Teljes",2,IF(A62="Extra",3))) -> FALSE | R62: =IF(OR(C62=0,B59=0),0,IF(Díjszámítás!C12="","",VLOOKUP(Díjszámítás!$C12,'Tevékenység lista'!$A$2:$G$304,6,FALSE))) -> 0 | S62: =IF(OR(C62=0,B59=0,R62=0),0,IF(R62="vig",0,INDEX(Gép,R62))) -> 0 | T62: =IF(OR(C62=0,B59=0,J59=0),0,M61) -> 0 | U62: =IF(OR(C62=0,B59=0),0,INDEX(Gvol,O61)) -> 0 | V62: =IF(OR(B59=0,C62=0),0,INDEX(Gönr,M59)) -> 0 | AA62: Géptörés Hibakód
A63: =IF(AA63=1,"Kérjük töltse ki az Géptörés/ELBER munkalapot!",IF(AA63=2,"Kérjük, válasszon önrészt!",IF(AA63=3,"Géptörésbiztosítás csak a vagyonigazgatóság engedélyével köthető",IF(AA63=4,"A géptörésbiztosítás csak az ingóságbiztosítás kiegészítőjeként köthető",IF(AA63=5,"A géptörésbiztosítási összeg nem lehet magasabb, mint a gépek berendezések biztosítási összege",0))))) -> 0 | AA63: =IF(AND(B59>0,C62=0),1,IF(AND(B59=0,C62>0),2,IF(R62="vig",3,IF(AND(H42=0,C62>0),4,IF(C62>'Vagyonbiztosítási adatközlő'!W26,5,0))))) -> 0
A65: Elektromos berendezések biztosítása
A67: Önrész | H67: Gépek átlagéletkora | J67: =IF(C70>0,GéptörésELBER!I24,0) -> 0 | M67: =IF(B67="","",VLOOKUP($B67,Összesítő!$E$63:$H$70,4,FALSE)) ->  | N67: =IF(J67<=2,1,IF(AND(J67<=3,J67>2),2,IF(AND(J67<=5,J67>3),3,IF(OR(J67>5,J67="5 felett"),4)))) -> 1 | O67: =IF(J67="0-2",1,IF(J67="2,01-3",2,IF(J67="3,01-5",3,IF(J67="5,01-",4)))) -> FALSE
A69: Választott módozat | C69: Biztosítási összeg eFt | E69: Kockázati osztály | F69: Díjtétel | G69: Átlagélet-kor eng. | H69: Éves díj Ft | M69: =INDEX(Ekor,N67) -> 0.65 | O69: =IF(C70<=10000,1,IF(AND(C70<=25000,C70>10),2,IF(AND(C70<=50000,C70>25),3,IF(AND(C70<=100000,C70>50),4,IF(AND(C70<=200000,C70>100),5,IF(AND(C70<=500000,C70>200),6)))))) -> 1 | R69: Kockázati osztály | S69: Díjtétel | T69: Átlagélet-kor eng. | U69: Volumen-szorzó | V69: Önrész szorzó
A70: ELBER | C70: =GéptörésELBER!O24 -> 0 | H70: =IF(OR(H42=0,H45=0),0,IF(C42<C70,0,IF(AND(B67=0,A70=0),0,(C70*S70*T70*U70*V70)))) -> 0 | R70: =IF(OR(C70=0,B67=0),0,IF(Díjszámítás!C12="","",VLOOKUP(Díjszámítás!$C12,'Tevékenység lista'!$A$2:$G$304,7,FALSE))) -> 0 | S70: =IF(OR(C70=0,B67=0),0,IF(R70="vig",0,INDEX(ELBER,R70))) -> 0 | T70: =IF(OR(C70=0,B67=0,J67=0),0,M69) -> 0 | U70: =IF(OR(C70=0,B67=0),0,INDEX(Evol,O69)) -> 0 | V70: =IF(OR(B67=0,A70=0),0,INDEX(Eönr,M67)) -> 0 | AA70: ELBER Hibakód
A71: =IF(AA71=1,"Kérjük töltse ki az ELBER/Géptörés munkalapot!",IF(AA71=2,"Kérjük, válasszon önrészt!",IF(AA71=3,"Elektromos berendezések biztosítása csak a vagyonigazgatóság engedélyével köthető",IF(AA71=4,"Elektromos berendezések biztosítása csak az ingóság kiegészítőjeként köthető",IF(AA71=5,"Az elektromos berendezések biztosítási összege nem lehet magasabb, mint a gép, berendezés biztosítási összege",0))))) -> 0 | AA71: =IF(AND(B67>0,C70=0),1,IF(AND(B67=0,C70>0),2,IF(R70="vig",3,IF(AND(H42=0,C62>0),4,IF(C70>'Vagyonbiztosítási adatközlő'!W26,5,0))))) -> 0
A72: Felelősségbiztosítás
A74: Önrész | I74: Forgalom: | J74: =Ajánlat1!J35 -> 0 | K74: M Ft | M74: =IF(B74="","",VLOOKUP($B74,Összesítő!$E$63:$H$70,4,FALSE)) -> 
A76: Választott módozat | C76: Kártérítési limit MFt/kár/év | E76: Kockázati osztály | F76: Díjtétel | G76: Módozati szorzó | I76: Éves díj Ft | O76: Ha 5. kockázat a minimum felelősség | R76: Kockázati osztály | S76: Díjtétel | T76: Módozati szorzó | V76: Önrész szorzó
A77: Általános felelősségbiztosítás | I77: =IF(OR(H45=0,J74=0,B74=0,C77=0,J74>1000),0,IF(U80*S77*T77*V77<O77,O77,U80*S77*T77*V77)) -> 0 | M77: =IF(C77="5 MFt/kár; 15 MFt/év",1,IF(C77="15 MFt/kár; 45 MFt/év",2,IF(C77="50 MFt/kár; 100 MFt/év",3))) -> FALSE | O77: =IF(R77=5,67500,15000) -> 15000 | R77: =IF(OR(A77=0,C77=0,B74=0),0,IF(Díjszámítás!C12="","",VLOOKUP(Díjszámítás!$C12,'Tevékenység lista'!$A$2:$G$304,3,FALSE))) -> 0 | S77: =IF(OR(A77=0,C77=0,B74=0),0,IF(R77="vig",0,INDEX(Fel,R77))) -> 0 | T77: =IF(OR(A77=0,C77=0,B74=0),0,INDEX(Felmód,M77)) -> 0 | V77: =IF(OR(A77=0,C77=0,B74=0),0,INDEX(Felönr,M74)) -> 0
A78: Kiegészítő felelősségbiztosítások
A79: Munkáltatói felelősségbiztosítás | I79: =IF(H79=0,0,IF(I77=0,0,IF(AND(I77>0,H79="kérem"),(I77*0.6),IF(AND(I77>0,H79="nem kérem"),0)))) -> 0 | O79: Csak akkor törlöm az épszerfelt ha előtte 5 volt | R79: Forgkorr. Szorzó | S79: Vagyon alapú engedmény | T79: Forgalom eFt
A80: Termékfelelősség-biztosítás | I80: =IF(H80=0,0,IF(I77=0,0,IF(AND(I77>0,H80="kérem"),(I77*0.8),IF(AND(I77>0,H80="nem kérem"),0)))) -> 0 | M80: =IF(I80=0,1,IF(I80>0,2)) -> 1 | O80: 0 | R80: =-0.262*(LN(J74))+2.2125 ->  | S80: =IF((C27+C42)<S83,1,(1.0022*EXP(-0.002*(C27+C42)/10000)-0.3)) -> 1 | T80: =J74*1000 -> 0 | U80: =T80*R80*S80 -> 
A81: Szolgáltatói felelősségbiztosítás | I81: =IF(H81=0,0,IF(I77=0,0,IF(AND(I77>0,H81="kérem"),(I77*0.8),IF(AND(I77>0,H81="nem kérem"),0)))) -> 0 | M81: =IF(I81=0,1,IF(I81>0,2)) -> 1
A82: Ingatlan-bérlői felelősségbiztosítás | I82: =IF(H82=0,0,IF(I77=0,0,IF(AND(I77>0,H82="kérem"),(I77*0.3),IF(AND(I77>0,H82="nem kérem"),0)))) -> 0 | S82: Ha 5. kockázat akkor 100 millió min
A83: Ingatlan-bérbeadói felelősségbiztosítás | I83: =IF(H83=0,0,IF(I77=0,0,IF(AND(I77>0,H83="kérem"),(I77*0.3),IF(AND(I77>0,H83="nem kérem"),0)))) -> 0 | S83: =IF(R77=5,100000,11000) -> 11000
A84: Kiterjesztett termékfelelősség-biztosítás | I84: =IF(H84=0,0,IF(OR(I77=0,I80=0,H84="Nem köthető"),0,IF(AND(I77>0,H84="kérem"),(I77*1),IF(AND(I77>0,H84="nem kérem"),0)))) -> 0
A85: Szállodai szolgáltatók felelősségbiztosítása | I85: =IF(H85=0,0,IF(I77=0,0,IF(AND(I77>0,H85="kérem"),(I77*0.3),IF(AND(I77>0,H85="nem kérem"),0)))) -> 0 | M85: =IF(I85=0,1,IF(I85>0,2)) -> 1
A86: Szállodai szolg. fel.bizt. kiterjesztése gépjárművek őrzésére | I86: =IF(H86=0,0,IF(OR(I77=0,I85=0,H86="Nem köthető"),0,IF(AND(I77>0,H86="kérem"),(I77*0.8),IF(AND(I77>0,H86="nem kérem"),0)))) -> 0
A87: Környezetszennyezési felelősségbiztosítás | I87: =IF(H87=0,0,IF(I77=0,0,IF(AND(I77>0,H87="kérem"),(I77*0.5),IF(AND(I77>0,H87="nem kérem"),0)))) -> 0
A88: Fel.biztosítások területi hatályának kiterjesztése az EU-ra | I88: =IF(H88=0,0,IF(I77=0,0,IF(AND(I77>0,H88="kérem"),(I77*0.5),IF(AND(I77>0,H88="nem kérem"),0)))) -> 0
A89: Szolgáltatói fel.bizt. kiterjesztése idegen jármű rakodására | I89: =IF(H89=0,0,IF(OR(I77=0,I81=0,H89="Nem köthető"),0,IF(AND(I77>0,H89="kérem"),(I77*0.4),IF(AND(I77>0,H89="nem kérem"),0)))) -> 0
A90: Oktatói, gyakorlati képzést szervezők felelősségbiztosítása | I90: =IF(H90=0,0,IF(I77=0,0,IF(AND(I77>0,H90="kérem"),(I77*0.2),IF(AND(I77>0,H90="nem kérem"),0)))) -> 0
A91: Gépjárműszerviz üzemeltetői felelősségbiztosítás | I91: =IF(H91=0,0,IF(I77=0,0,IF(AND(I77>0,H91="kérem"),(I77*0.6),IF(AND(I77>0,H91="nem kérem"),0)))) -> 0 | N91: =78665*1.03*0.9 -> 72922.455
A92: Szolgáltatói fel.bizt. kiterjesztése alvállalkozókra | I92: =IF(AND($I$81>0,$I$77>0,H92="kérem"),$I$77*0.2,0) -> 0
A93: Szolgáltatói fel.bizt. kiterj. a szolg. tárgyában okozott károkra | I93: =IF(AND($I$81>0,$I$77>0,H93="kérem"),$I$77*0.4,0) -> 0
A94: Szolgáltatói fel.bizt. kiterjesztése építés-szerelési tevékenységre | I94: =IF(AND($I$81>0,$I$77>0,H94="kérem"),$I$77*0.1,0) -> 0
A95: Felelősségbiztosítás összesen | I95: =IF(H45=0,0,IF(AND(B74=0,C77=0),0,SUM(I79:K94,I77))) -> 0 | AA95: Felelőség Hibakód
A96: =IF(AA96=1,"Kérjük, töltse ki a Forgalom adatot az Ajánlat1 oldalán!",IF(AA96=2,"Kérjük, válasszon önrészt!",IF(AA96=3,"Kérjük, válasszon limitet!",IF(AA96=5,"Felelősség biztosítás csak a vagyonigazgatóság engedélyével köthető",IF(AA96=6,"Felelősség biztosítás csak a vagyonbiztosítás kiegészítőjeként köthető",IF(AA96=7,"A megadott adatok alapján az ajánlat nem tarifális kategóriába tartozik, ajánlatkérésével kérjük forduljon bizalommal UNION-os kapcsolattartójához.",0)))))) -> 0 | AA96: =IF(AND(J74=0,OR(B74>0,C77>0)),1,IF(AND(B74=0,OR(C77>0)),2,IF(AND(C77=0,OR(B74>0)),3,IF(E77="vig",5,IF(AND(H45=0,C77>0),6,IF(J74>1000,7,0)))))) -> 0
A97: Vagyonbiztosítás összesen | H97: =H45 -> 0 | N97: =H27 -> 0
A98: Épületbiztosítás | H98: =H27 -> 0 | N98: =H42 -> 0
A99: Gép, berendezés biztosítás | H99: =H42 -> 0 | M99: =COUNTIF(N97:N102,">0") -> 0 | N99: =H55 -> 0
A100: Üzemszünetbiztosítás | H100: =H55 -> 0 | N100: =H62 -> 0
A101: Géptörés biztosítás | H101: =H62 -> 0 | N101: =H70 -> 0
A102: Elektromos gépek, berendezések biztosítása | H102: =H70 -> 0 | N102: =I95 -> 0
A103: Felelősségbiztosítás | H103: =I95 -> 0
A105: Éves díj | B105: =IF(Kockázatfelmérő!O61=0,"Kérjük, töltse ki a kockázatfelmérő adatlapot!",IF(Kockázatfelmérő!O61=1,0,IF(Kockázatfelmérő!O61=2,"A kockázatfelmérő adatlap kitöltése hiányos, ellenőrizze az adatokat!"))) -> 0 | J105: =IF(B105>0,0,IF(AA108=0,SUM(I95,H70,H62,H55,H49,H45),0)) -> 0
A106: Záradékok Pótdíjak | J106: =O123 -> 1
A107: Engedmények | C107: Csomag engedmény | J107: =IF(OR(J105=0,M99<4),0,IF(M99=4,0.95,IF(OR(M99=5,M99=6),0.9))) -> 0 | AA107: Hibakódok vannak?
A108: =IF(N108=0,0,IF(AND(N108=1,I108=0),0,IF(AND(N108=1,I108>0),"Törölje a speciális engedmény mértékét!",IF(AND(N108=2,I108=0),"Adja meg a speciális engedmény mértékét!",IF(AND(N108=2,I108>0),0))))) -> 0 | C108: Üzleti engedmények | J108: =IF(J105=0,0,M108) -> 0 | M108: =IF(H108=0,0,IF(H108="speciális",(100-I108)/100,IF(H108="üzleti",0.8))) -> 0 | N108: =IF(H108=0,0,IF(H108="üzleti",1,IF(H108="speciális",2))) -> 0 | AA108: =SUM(AA96,AA71,AA63,AA56,AA50,AA46,AA43,AA28) -> 2
C109: Tartamengedmény | J109: =IF(J105=0,0,IF(R110=1,0.9,0)) -> 0 | N109: =IF(AND(J107=0,J108=0,J109=0,J110=0),0,IF(AND(J107>0,J108>0,J109>0,J110>0),(J107*J108*J109*J110),IF(AND(J107>0,J108=0,J109=0,J110=0),J107,IF(AND(J107>0,J108>0,J109=0,J110=0),(J107*J108),IF(AND(J107>0,J108>0,J109>0,J110=0),(J107*J108*J109),IF(AND(J107=0,J108>0,J109>0,J110>0),(J108*J109*J110),IF(AND(J107=0,J108=0,J109>0,J110>0),(J109*J110),0))))))) -> 0 | P109: =Ajánlat1!E37 -> határozatlan | R109: =IF(P109="1 évnél rövidebb",1,0) -> 0
C110: Egyedi engedmény | J110: =IF(OR('Tevékenység lista'!AB2=0,J105=0),0,0.8) -> 0 | M110: =IF(H112>0,1,0) -> 0 | N110: =IF(AND(J107=0,J108=0,J109=0,J110>0),J110,IF(AND(J107=0,J108>0,J109=0,J110=0),J108,IF(AND(J107=0,J108=0,J109>0,J110=0),J109,IF(AND(J107=0,J108>0,J109>0,J110=0),(J108*J109),IF(AND(J107>0,J108=0,J109=0,J110>0),(J107*J110),IF(AND(J107>0,J108=0,J109>0,J110=0),(J107*J109),0)))))) -> 0 | P110: =Ajánlat1!E37 -> határozatlan | R110: =IF(P110="Felmondási jog 3 évre kizárva",1,0) -> 0
A111: Éves díj összesen | J111: =IF(J105=0,0,MAX(15000,IF(N113=0,(J105*J106),IF(N113>0,(J105*N113*J106))))) -> 0 | M111: =J111/360 -> 0 | N111: =IF(AND(J107>0,J108=0,J109>0,J110>0),(J107*J109*J110),IF(AND(J107>0,J108>0,J109=0,J110>0),(J107*J108*J110),IF(AND(J107=0,J108>0,J109=0,J110>0),(J108*J110),0))) -> 0 | R111: =IF(OR(R109>0,R110>0),1,0) -> 0
A112: Lejárat, ha a tartam rövidebb mint 1 év | H112: =Ajánlat1!J37 -> 00:00:00 | J112: =IF(OR(H113=0,R109>0,H113="egyszeri"),0,IF(AND(J111>15000,H113="éves"),J111*0.95,IF(AND(J111>15000,H113="féléves"),(J111/2)*0.975,IF(AND(J111>15000,H113="negyedéves"),J111/4,IF(AND(J111=15000,H113="éves"),J111,IF(AND(J111=15000,H113="féléves"),J111/2,IF(AND(J111=15000,H113="negyedéves"),J111/4,))))))) -> 0
A113: Gyakorisági díj | B113: =IF(R109>0,0,IF(AND(R109=0,H113="éves"),"5% engedmény",IF(AND(R109=0,H113="féléves"),"2,5% engedmény",0))) -> 5% engedmény | C113: Díjfizetés gyakorisága | H113: éves | J113: =IF(OR(J105=0,R109>0,H113=0,H113="egyszeri"),0,IF(AND(J112<=15000,H113="éves"),15000,IF(AND(J112<=7500,H113="féléves"),7500,IF(AND(J112<=3750,H113="negyedéves"),3750,J112)))) -> 0 | M113: =IF(H113="negyedéves",J113*4,IF(H113="féléves",J113*2,IF(H113="éves",J113,IF(H113="egyszeri",0)))) -> 0 | N113: =IF(AND(N109=0,N110=0,N111=0),0,IF(AND(N109>0,N110=0,N111=0),N109,IF(AND(N109=0,N110>0,N111=0),N110,IF(AND(N109=0,N110=0,N111>0),N111)))) -> 0
A114: Fizetendő első díj / Tartamdíj | C114: =IF(AND(R109>0,H113="egyszeri"),IF(Ajánlat1!J37,0,"Az Ajánlat1 oldalon a lejárati dátum nincs kitöltve!"),IF(AND(R109>0,M115=1),"A díjfizetés gyakorisága csak egyszeri lehet!",IF(AND(R109>0,H113=0),"A gyakoriság csak egyszeri lehet!",IF(AND(R109=0,H113="egyszeri"),"Kérjük, válasszon más gyakoriságot!",IF(AND(R109=0,H113=0),"Kérjük, válasszon gyakoriságot!",IF(AND(R109=0,M115=1),0)))))) -> 0 | J114: =IF(AND(H112=0,DAY(P123)=1),J113,IF(C114=0,J115,0)) -> 0 | M114: =M113/360 -> 0
A115: Fizetendő díj | C115: =IF(DAY(kockviskezd)=1,kockviskezd,IF(MONTH(kockviskezd)=12,DATE(YEAR(kockviskezd)+1,1,1),DATE(YEAR(kockviskezd),MONTH(kockviskezd)+1,1))) -> 2021-08-01 | E115: =IF(OR(H112="",G115>364),DATEVALUE(CONCATENATE(YEAR(C115),".",MONTH(C115)+1,".01")),"") -> 2021-09-01 | G115: =IF(OR(MOD(YEAR(C117)-2000,4)=0,H112=""),365,IF(H112-C117=364,365,H112-C117+1)) -> 365 | H115: =SUM(C115-C117) -> 44409 | I115: =Ajánlat1!J37-kockviskezd -> -44383 | J115: =IF(AND(R109>0,I115<91),((I115*M111)+(M111*30*3)),IF(AND(R109>0,I115>90,I115<241),((I115*M111)+(M111*30)),IF(AND(R109>0,I115>240),J111,((M114*P124)+J113)))) -> 0 | M115: =IF(OR(H113="éves",H113="féléves",H113="negyedéves"),1,0) -> 1
A116: Fizetendő éves díj | J116: =IF(J113=0,0,IF(H113="negyedéves",(J113*4),IF(H113="féléves",(J113*2),IF(H113="éves",J113,IF(H113="egyszeri",0))))) -> 0
A117: ="Kelt.: "&kelt -> Kelt.: 0 | C117: =Dátum -> 00:00:00
N118: =IF(B106=0,0,VALUE(LEFT(B106,1))) -> 0 | O118: =IF(N118=0,1,IF(N118=1,1.03)) -> 1
A119: biztosításközvetítő aláírása | D119: szerződő aláírása | N119: =IF(C106=0,0,VALUE(LEFT(C106,1))) -> 0 | O119: =IF(N119=0,1,IF(N119=2,1.03)) -> 1
A120: =Ajánlat1!B116 -> Verzió: 1.19 | N120: =IF(D106=0,0,VALUE(LEFT(D106,1))) -> 0 | O120: =IF(N120=0,1,IF(N120=3,1.05)) -> 1
A121: =Ajánlat1!B117 -> UNION-Business Class Érvényes: 2021.12.31.-ig | N121: =IF(H106=0,0,VALUE(LEFT(H106,1))) -> 0 | O121: =IF(N121=0,1,IF(N121=4,1.05)) -> 1
N122: =IF(I106=0,0,VALUE(LEFT(I106,1))) -> 0 | O122: =IF(N122=0,1,IF(N122=5,1.05)) -> 1
O123: =O118*O119*O120*O121*O122 -> 1 | P123: =Ajánlat1!E35 -> 2021-07-06
P124: =SUM(1+(30-DAY(P123))) -> 25
C126: =IF(DAY(P123)=1,P123,IF(MONTH(P123)=12,DATE(YEAR(P123)+1,1,1),DATE(YEAR(P123),MONTH(P123)+1,1))) -> 2021-08-01 | H126: speciális
H127: üzleti
A128: =IF(AND(M27=1,M42>1,M55>1),"Az üzemszünet biztosítás csak Small módozat lehet",IF(AND(M27>1,M42=1,M55>1),"Az üzemszünet biztosítás csak Small lehet",IF(AND(M27=1,M42=1,M55=1),0,IF(AND(M27>1,M42>1,M55>1),0,IF(AND(M27=1,M42=1,M55>0),"Az üzemszünet biztosítás csak Small módozat lehet",IF(OR(M27>1,M42>1,M55=1),0,IF(AND(M27>1,M42>1,M55=1),0))))))) -> 0
A129: 10 | B129: 1.sz.Záradék /Hűtőtt árúk/
B130: 2.sz.Záradék /Vandalizmus/
B131: 3.sz.Záradék /Alvállalkozói/
B132: 4.sz.Záradék /Szolgált. tárgya/
B133: 5.sz.Záradék /Építőipari tev./
A143: 0 | C143: 3 nap | E143: 10%, de minimum 25.000 Ft | H143: 1 | I143: 1 | K143: 1
A144: 5000 | C144: 5 nap | E144: 10%, de minimum 50.000 Ft | H144: 2 | I144: 0.95 | K144: 0.95
A145: 10000 | C145: 7 nap | E145: 10%, de minimum 100.000 Ft | H145: 3 | I145: 0.85 | K145: 0.85
A146: 25000 | E146: 10%, de minimum 200.000 Ft | H146: 4 | I146: 0.7 | K146: 0.7
A147: 50000 | E147: 20%, de minimum 25.000 Ft | H147: 5 | I147: 0.92 | K147: 0.92
A148: 100000 | E148: 20%, de minimum 50.000 Ft | H148: 6 | I148: 0.87 | K148: 0.87
A149: 200000 | E149: 20%, de minimum 100.000 Ft | H149: 7 | I149: 0.78 | K149: 0.78
E150: 20%, de minimum 200.000 Ft | H150: 8 | I150: 0.64 | K150: 0.64
A151: Alap | B151: Alap
A152: Teljes | D152: 0-2 | F152: kérem | H152: éves | J152: Nem köthető
A153: Extra | D153: 2,01-3 | F153: nem kérem | H153: féléves
A154: All Risks | D154: 3,01-5 | H154: negyedéves
D155: 5,01- | F155: üzleti | H155: egyszeri
F156: üzletpolitikai | H156: igen
A157: 3 hónap, max. 25 MFt | H157: nem
A158: 6 hónap, max. 50 MFt | C158: 5 MFt/kár; 15 MFt/év | F158: 0-2
A159: 12 hónap, max 100 MFt | C159: 15 MFt/kár; 45 MFt/év | F159: 2,01-5
A160: 12 hónap, max 150 MFt | C160: 50 MFt/kár; 100 MFt/év | F160: 5,01-10
F161: 10,01-15
F162: 15 felett
A166: Alap csomag: 3 hó, max. 25 M Ft
A167: Bővített csomag: 6 hó, max. 50 M Ft
A168: Bővített csomag: 12 hó, max. 100 M Ft
A169: Bővített csomag: 12 hó, max. 150 M Ft
A190: 0
A191: 5000 | B191: Normál üveg | H191: 50 | I191: 50
A192: 10000 | B192: Normál és speciális üveg | H192: 100 | I192: 100
A193: 25000 | H193: 150 | I193: 150
A194: 50000 | H194: 200 | I194: 200
A195: 100000 | H195: 250
A196: 200000 | H196: 300
H197: 350
A198: Alap | H198: 400
A199: Teljes | H199: 450
A200: Extra | H200: 500
H201: 600
A202: Alap csomag betöréses lopással | H202: 700
A203: Alap csomag betöréses lopás nélkül | H203: 800
A204: Teljes csomag betöréses lopással | H204: 900
A205: Teljes csomag betöréses lopás nélkül | H205: 1000
A206: Extra csomag betöréses lopással
A207: Extra csomag betöréses lopás nélkül
A208: All Risks csomag betöréses lopással
A209: All Risks csomag betöréses lopás nélkül

Sheet Nyilatkozat
F2: UNION-Business Class
G3: Nyilatkozat
B5: Szerződő neve: | D5: =Ajánlat1!E16 -> 0
B6: Adószáma: | D6: =Ajánlat1!D18 -> 0
B7: Biztosított neve: | D7: =Ajánlat1!E16 -> 0
B8: Adószáma: | D8: =Ajánlat1!D18 -> 0
C11: A biztosított három alábbi mutatója közül legalább kettő meghaladja-e a következő értékeket:
C12: Mérleg főösszege az 1,5 mrd. Ft-ot
C13: Nettó üzleti forgalma a 3 mrd. Ft-ot
C14: Átlagos alkalmazotti létszám az 1.000 főt
C15: Szerződőként ezúton nyilatkozom, hogy Társaságunk :
C20: minősül.
B22: Alulírott szerződő ajánlatot teszek az előző oldalakon részletezett biztosítási szerződés megkötésére, amelynek alapján az Union Vienna Insurance Group Biztosító Zrt. azt a kötelezettséget vállalja, hogy díjfizetés ellenében készpénzben megtéríti a különös feltételekben felsorolt biztosítási események során bekövetkező azon károkat, amelyekre a biztosítási szerződés kiterjed.
B24: Tudomásul veszem, hogy: | E24: jelen ajánlat a biztosító kockázatelbírálásának alapja, továbbá, hogy a biztosítónak az ajánlat beérkezésétől számított 15 nap áll rendelkezésére a kockázat elbírálására,
E25: a biztosító a kockázatelbírálás eredményeként az ajánlatot jogosult elutasítani, az elutasítást nem köteles megindokolni,
E26: a biztosító kártérítése - betöréses lopás esetén - a kár időpontjában fennálló vagyonvédelmi színvonal függvényében történik,
E27: a biztosító a tényleges adatoktól való eltérés esetén az alul- és túlbiztosítottságot vizsgálja.
B29: Kijelentem, hogy: | E29: az Általános Feltételekben, a Különös Feltételekben, a Vagyonvédelmi Feltételekben, a Különös Felelősségbiztosítási Feltételekben foglaltakat az ajánlat aláírása előtt átvettem és megismertem,
E30: a közölt adatok a valóságnak megfelelnek,
E31: jelen ajánlatomban minden biztosítási szándékommal kapcsolatos igényemet rögzítettek, más szóbeli megállapodás nem történt.
B33: Alulírott szerződő ajánlatot teszek UNION-Business Class biztosítási szerződés megkötésére.
B34: Mint szerződő kijelentem, hogy az UNION Vienna Insurance Group Biztosító Zrt. /továbbiakban biztosító/ részére átadott UNION-Business Class biztosítási ajánlatom megtétele előtt biztosítási igényem felmérése nyomán a vonatkozó termékismertetőt (IPID) átvettem, áttanulmányoztam és megértettem, majd a jogszabályban előírt tájékoztatást megkaptam, az általam megjelölt biztosítások feltételeit átvettem, azok tartalmát megismertem, az eljárt biztosításközvetítőtől a biztosító főbb adatairól, valamint a biztosítási termékről tájékoztatást kaptam.
B35: Kijelentem, hogy az Adatkezelési tájékoztató a biztosítási ajánlat aláírását megelőzően részemre átadásra került, és tudomással bírok arról, hogy ezen dokumentum a biztosító honlapján (www.union.hu) bármikor megtekinthető.
B36: Átvett mellékletek:
B37: =IF(Díjszámítás!H45>0,"X",0) -> 0 | C37: U52201/8 UNION-Business Class Általános Biztosítási Feltételek Vagyonbiztosítás
B38: =IF(Díjszámítás!H27>0,"X",0) -> 0 | C38: U52202/3 UNION-Business Class Különös Biztosítási Feltételek Épületbiztosítás
B39: =IF(Díjszámítás!H42>0,"X",0) -> 0 | C39: U52203/3 UNION-Business Class Különös Biztosítási Feltételek Ingóságbiztosítás
B40: =IF(Díjszámítás!H70>0,"X",0) -> 0 | C40: U52204/2 UNION-Business Class Különös Biztosítási Feltételek Elektromos és elektronikus gépek és berendezések biztosítása
B41: =IF(Díjszámítás!H62>0,"X",0) -> 0 | C41: U52205/2 UNION-Business Class Különös Biztosítási Feltételek Géptörés-biztosítás
B42: =IF(Díjszámítás!H55>0,"X",0) -> 0 | C42: U52206/2 UNION-Business Class Különös Biztosítási Feltételek Üzemszünet-biztosítás
B43: =IF(AND(Díjszámítás!H42>0,Díjszámítás!M42<=3),"X",0) -> 0 | C43: U52207/3 UNION-Business Class Védelmi Feltételek
B44: =IF(Díjszámítás!I77>0,"X",0) -> 0 | C44: U52208/3 UNION-Business Class Általános Biztosítási Feltételek Felelősségbiztosítás
B45: =IF(Díjszámítás!I83>0,"X",0) -> 0 | C45: U52209/2 UNION-Business Class Különös Biztosítási Feltételek Ingatlan-bérbeadói felelősségbiztosítás
B46: =IF(Díjszámítás!I82>0,"X",0) -> 0 | C46: U52210/2 UNION-Business Class Különös Biztosítási Feltételek Ingatlan-bérlői felelősségbiztosítás
B47: =IF(Díjszámítás!I84>0,"X",0) -> 0 | C47: U52211/2 UNION-Business Class Kiegészítő Biztosítási Feltételek Kiterjesztett termékfelelősség-biztosítás
B48: =IF(Díjszámítás!I87>0,"X",0) -> 0 | C48: U52212/2 UNION-Business Class Különös Biztosítási Feltételek Környezetszennyezési felelősségbiztosítás
B49: =IF(Díjszámítás!I85>0,"X",0) -> 0 | C49: U52213/2 UNION-Business Class Különös Biztosítási Feltételek Szállodai szolgáltatók felelősségbiztosítása
B50: =IF(Díjszámítás!I86>0,"X",0) -> 0 | C50: U52214/2 UNION-Business Class Kiegészítő Biztosítási Feltételek Szállodai szolgáltatók felelősségbiztosításának kiterjesztése gépjárművek őrzésére
B51: =IF(Díjszámítás!I88>0,"X",0) -> 0 | C51: U52215/1 UNION-Business Class Különös Biztosítási Feltételek Felelősségbiztosítási fedezet területi hatályának kiterjesztése az Európai Unióra és egyes európai államokra
B52: =IF(Díjszámítás!I89>0,"X",0) -> 0 | C52: U52216/1 UNION-Business Class Kiegészítő Biztosítási Feltételek Szolgáltatói felelősségbiztosítási fedezet kiterjesztése idegen jármű rakodására
B53: =IF(Díjszámítás!I91>0,"X",0) -> 0 | C53: U52217/1 UNION-Business Class Különös Biztosítási Feltételek Gépjárműszerviz üzemeltetői felelősségbiztosítás
B54: =IF(Díjszámítás!I90>0,"X",0) -> 0 | C54: U52218/2 UNION-Business Class Különös Biztosítási Feltételek Oktatási, nevelési, gyermekellátási tevékenységet folytatók, ill. gyakorlati képzést szervezők felelősségbiztosítása
B55: =IF(Díjszámítás!H49>0,"X",0) -> 0 | C55: U52219/1 UNION-Business Class Kiegészítő Biztosítási Feltételek Üvegtörés biztosítás épület vagy ingóságbiztosításhoz
B56: =IF(Díjszámítás!I79>0,"X",0) -> 0 | C56: U52220/2 UNION-Business Class Különös Biztosítási Feltételek Munkáltatói Felelősségbiztosítás
B57: =IF(Díjszámítás!I80>0,"X",0) -> 0 | C57: U52221/1 UNION-Business Class Különös Biztosítási Feltételek Termékfelelősség-biztosítás
B58: =IF(Díjszámítás!I81>0,"X",0) -> 0 | C58: U52222 UNION-Business Class Különös Biztosítási Feltételek Szolgáltatói felelősségbiztosítás
B59: =IF(Díjszámítás!I77>0,"X",0) -> 0 | C59: U52223/6 UNION-Business Class Felelősségbiztosítások Szerződési Feltételei
B60: =IF(Díjszámítás!H92>0,"X",0) -> 0 | C60: U52224 UNION-Business Class Különös Biztosítási Feltételek Szolgáltatói Felelősségbiztosítási fedezet kiterjesztése az alvállalkozókra
B61: =IF(Díjszámítás!H94>0,"X",0) -> 0 | C61: U52225 UNION-Business Class Különös Biztosítási Feltételek Szolgáltatói Felelősségbiztosítási fedezet kiterjesztése építés-szerelési tevékenységre
B62: =IF(Díjszámítás!H93>0,"X",0) -> 0 | C62: U52226 UNION-Business Class Különös Biztosítási Feltételek Szolgáltatói Felelősségbiztosítási fedezet kiterjesztése a szolgáltatás tárgyában okozott károkra
B63: =IF(Díjszámítás!H45>0,"X",0) -> 0 | C63: UNION-Business Class biztosítás kockázati és limit táblázatok
B65: Kelt.: | C65: =Ajánlat1!E112 -> 0 | E65: =Dátum -> 00:00:00
H66: szerződő aláírása
A69: 6. oldal, összesen: 7
B71: Tudomásul veszem, hogy a Biztosító nem nyújt fedezetet, nem teljesít kárkifizetést, valamint nem nyújt szolgáltatást, amennyiben ezen fedezet nyújtásával, illetve kár kifizetésével a Biztosító sértené az Egyesült Nemzetek Szervezetének határozata szerinti bármely szankcióit, rendelkezéseit, vagy rendeleteit, valamint Magyarország, az Európai Unió, illetve az Egyesült Államok kereskedelmi, pénzügyi embargóit vagy gazdasági szankcióit, törvényeit vagy rendeleteit, (feltéve, hogy ezek nem sértik az biztosítóra alkalmazandó szabályozásokat vagy nemzeti jogszabályokat). Tudomásul veszem, hogy nem terjed ki a biztosítás azokra a károkra, amelyek bármilyen (bakteriális, vírusos, stb.) kórokozói eredetű járványos megbetegedéssel, betegséggel, vagy fertőzéssel összefüggésben következnek be, és amelyek a kórokozó bármely fajtájától, mutációjától, illetve variánsától származnak.
B72: Kelt.: | C72: =Ajánlat1!E112 -> 0 | E72: =Dátum -> 00:00:00
H73: szerződő aláírása
B77: Nyilatkozat a szokásostól eltérő szerződési gyakorlat elfogadásáról
B78: Kijelentem, hogy tájékoztatást kaptam arra vonatkozóan, hogy az UNION-Business Class biztosítási feltételek alábbi rendelkezései lényegesen eltérnek a szokásos szerződési gyakorlattól:
B79: - A biztosítási érdek megszűnéséhez fűződő jogkövetkezményeket alkalmazni kell arra az esetre is, ha az érdekmúlás kizárólag a biztosított vagyontárgy tulajdonjoga átszállásának következménye, és a vagyontárgy más jogcím alapján már korábban is az új tulajdonos birtokában volt (Általános Biztosítási Feltételek 6.4.3. pont).
B80: - Amennyiben a szerződő, illetve a biztosított a biztosítási díjat az esedékességtől számított 60 napon belül nem egyenlíti ki, halasztást nem kapott, és a biztosító a díjat bírósági úton nem érvényesíti, a biztosító a kockázatot az esedékességtől számított 60 napig viseli, ez alatt az idő alatt a biztosított (szerződő) az elmulasztott időszakos díjat pótolhatja. Ha ez nem történik meg, a biztosítás a felek minden külön intézkedése nélkül a 60. nap elteltével megszűnik (Általános Biztosítási Feltételek 10.1. pont).
B81: - Ha az esedékes díjnak csak egy részét fizették meg, a szerződés változatlan biztosítási összeggel, a befizetett díjjal arányos időtartamra marad fenn. A szerződés megszűnésének nem előfeltétele, hogy a biztosító írásban felhívja a szerződőt a befizetés kiegészítésére (Általános Biztosítási Feltételek 11. pont).
B82: - Ahol a jelen feltételek alapján létrejött biztosítási szerződés limitet tartalmaz, a limit az ugyanazon biztosítási időszakban bekövetkezett biztosítási esemény miatt kifizetett összeggel csökken, a fedezet (limit) feltöltésére nincs lehetőség. (Általános Biztosítási Feltételek 20.1. pont).
B83: - Egyebekben az adott biztosítási időszakra vonatkozó, a szerződő által meghatározott biztosítási összeg az ugyanazon biztosítási időszakban bekövetkezett biztosítási esemény miatt kifizetett összeggel nem csökken (Általános Biztosítási Feltételek 20.2. pont).
B84: - A biztosítási szerződésekből eredő igények az esedékességtől számított egy éven belül évülnek el (Általános Biztosítási Feltételek 28. pont).
B86: Kijelentem, hogy az UNION-Business Class biztosítási feltételeknek a szokásos szerződési gyakorlattól eltérő rendelkezéseit elfogadom, azokat magamra nézve kötelezőnek ismerem el.
B87: Kelt.: | C87: =Ajánlat1!E112 -> 0 | E87: =Dátum -> 00:00:00
H89: szerződő aláírása
B96: Szerződőként, illetve biztosítottként tudomásul veszem hogy:
B97: -a szóbeli közlések vagy kikötések csak akkor érvényesek, ha azokat a biztosító illetékes szerve írásban igazolja,
B98: -valótlan adatok közlése a biztosítás érvénytelenségét vonja maga után,
B99: -a biztosító kötvénykiállításra és szolgáltatás teljesítésre jogosult szerve a vezérigazgatóság,
B100: -a biztosító a kárrendezési tevékenységet kiszervezheti, ilyen esetben a kárrendezéshez szükséges adatok a Bit. 138.§. (1) bek. o) pontja értelmében átadhatók,
B101: -az adatszolgáltatás önkéntes,
B102: -a biztosító a tudomására jutott valamennyi adatot biztosítási titokként kezeli, és csak az ügyfél írásbeli beleegyezésével adja ki harmadik személynek. A titoktartási kötelezettség nem áll fenn a biztosítási tevékenységről szóló 2014. évi LXXXVIII. törvényben (Bit.) tételesen felsorolt esetekben, és az ott meghatározott szervek, szervezetek megkeresése, illetve ezen szervek, szervezetek részére történő átadás esetén,
B103: -szerződőként, illetve biztosítottként hozzájárulok ahhoz, hogy a biztosítási szerződés megkötéséhez, módosításához, állományban tartásához, valamint a szolgáltatás teljesítéséhez szükséges adatokat, ideértve a különleges adatokat is a biztosító a Bit., valamint az adatvédelmi törvény rendelkezéseinek megfelelően kezelje, az adatokat számítógépes úton feldolgozza. Az adatkezelés célja csak a biztosítás megkötéséhez, módosításához, állományban tartásához, a biztosításból származó követelések megítéléséhez szükséges, vagy a Bit. által meghatározott egyéb cél lehet.
B104: Szerződőként, illetve biztosítottként felhatalmazom azokat a biztosítókat, amelyek rám vonatkozóan azonos vagy összefüggő kockázatú biztosításokat kezelnek, hogy a kockázat elbírálásához, a szerződés kezeléséhez és a szolgáltatási igény elbírálásához szükséges adatokat a biztosító részére továbbítsák.
B105: Kelt.: | C105: =Ajánlat1!E112 -> 0 | E105: =Ajánlat1!G112 -> 00:00:00
H106: szerződő aláírása
B110: A gazdasági reklámtevékenységről szóló 2008.évi XLVIII.tv. (Gtv.) 6.§-ban foglaltak szerint a szerződő/biztosított hozzájárul ahhoz, hogy részére a biztosító közvetlen megkeresés módszerével, így különösen elektronikus levelezés vagy azzal egyenértékű más egyéni kommunikációs eszköz útján gazdasági reklámokat küldjön, ebből a célból a nevét, lakcímét, e-mail címét és mobilszámát nyilvántartsa.
B118: A biztosító az előző céllal az adatokat a Gtv. előírásainak megfelelően, a hozzájáruló nyilatkozat visszavonásáig tartja nyilván és indoklás nélkül, ingyenesen visszavonható a biztosító részére postai (1461 Budapest, Pf.131.) vagy elektronikus úton (e-mail: dm@unionbiztosito.hu) megküldött nyilatkozattal. Szerződő/biztosított kijelenti, hogy a jelen nyilatkozat önkéntes adatszolgáltatáson alapul, és az adatkezelés céljáról, tartalmáról szóló megfelelő tájékoztatást követően történt.
B126: Kelt.: | C126: =Ajánlat1!E112 -> 0 | E126: =Ajánlat1!G112 -> 00:00:00
H129: szerződő aláírása
C132: =Ajánlat1!B116 -> Verzió: 1.19
C133: =Ajánlat1!B117 -> UNION-Business Class Érvényes: 2021.12.31.-ig
A145: 7. oldal, összesen: 7

Sheet Zálogkötelezetti nyilatkozat (hidden)
B2: ZÁLOGKÖTELEZETTI NYILATKOZAT
B4: Szerződő/Biztosított adatai
B5: Név: | D5: =Ajánlat1!E16 -> 0
B6: Adószáma: | D6: =Ajánlat1!D18 -> 0
B7: Székhelye | D7: =CONCATENATE(Ajánlat1!B20," ",Ajánlat1!D20,", ",Ajánlat1!G20," ",Ajánlat1!J20) -> ,
B8: Ir.sz. | D8: helység | G8: utca | I8: házsz.em.ajtó
B9: Hozzájárulok, hogy a Biztosító az itt megadott, biztosítási titoknak minősülő adataimat, a jelen nyilatkozatban megjelölt Zálogjogosult hitelintézetnek átadja.
B11: Biztosított/Zálogkötelezett nyilatkozata
B12: Alulírott Biztosított tájékoztatom az UNION Vienna Insurance Group Biztosító Zrt-t (továbbiakban: Biztosító), hogy a jelen nyomtatványon megjelölt kockázatviselési címen fellelhető vagyontárgyra, mint Zálogtárgyra vonatkozóan köztem – mint Zálogkötelezett – és a lent megjelölt hitelintézet – mint Zálogjogosult – között Zálogszerződés jött létre. Felhatalmazom a Biztosítót, hogy az itt hivatkozott Zálogtárgyra kötött biztosítási szerződésen a Zálogjogosultat megillető hitelbiztosítéki záradékot jegyezzen be.
B13: Tudomásul veszem, hogy a Biztosító:
B14: - a biztosított vagyontárgyakat ért, káresemények által okozott értékcsökkenésekre esedékessé vált és
D15: Ft-ot (Limitösszeg) meg nem haladó szolgáltatási összeget minden esetben közvetlenül a Biztosított
B16: részére teljesíti.
B17: Felhatalmazom továbbá a Biztosítót, hogy:
B18: a biztosított vagyontárgyakat ért káresemények által okozott értékcsökkenésekre esedékessé vált és a Limitösszeget meghaladó szolgáltatási összeg tekintetében – ideértve a biztosított vagyontárgyak megsemmisülését, vagy a teljes biztosítási összeg kimerülését eredményező káresemény bekövetkezése esetet is – a valós körülmények figyelembevételével megállapított és legfeljebb a biztosított vagyontárgyak biztosítási összegének mértékéig terjedő teljes szolgáltatási összeget, közvetlenül a(z)
F19: (Bank) Székhelye:
B20: Székhelye:
B21: Zálogjogosult által vezetett számlára való átutalással teljesítse.
B23: Szerződő nyilatkozata
B24: Alulírott Szerződő felhatalmazom a Biztosítót az alábbiakra:
B25: - amennyiben a lentebb megjelölt biztosítási szerződés nem jön létre, úgy ennek tényéről a biztosítási ajánlat elutasításával egyidejűleg tájékoztathassa a Zálogjogosultat.
B26: - a biztosítási szerződésen a Zálogkötelezett jelen teljesítési utasítása alapján bejegyzett Zálogjogosultat megillető hitelbiztosítéki záradékot, annak külön hozzájárulása nélkül ne törölje,
B27: a biztosítási szerződés:
C28: aktuális díjrendezettségi státuszát a Zálogjogosult megkeresésére – külön eljárásban – esetileg kiadja.
C29: a biztosítási díj elmaradásáról az esedékességet követő 91 napon belül a Zálogjogosultat tájékoztassa.
C30: a biztosítási szerződés bármely okú megszűnéséről, a megszűnést követő 8 napon belül a Zálogjogosultat tájékoztassa.
B32: Zálogtárgy adatai
B33: Kockázatviselési cím:
B34: HRSZ:
B35: Hitelfedezet tárgya:
B36: Biztosítási ajánlat/szerződés azonosítója:
B37: Biztosítási szerződés tartama: | H37: Díjfizetés gyakorisága:
B38: Kockázatviselés kezdete:
B39: Épületbiztosítás biztosítási összege: | I39: Ft
B40: Gép, berendezés, felszerelés biztosítási összege: | I40: Ft
B41: Készlet biztosítási összege: | I41: Ft
B42: Hozzájárulok, hogy a Biztosító az itt megadott, biztosítási titoknak minősülő szerződési adatokat, a jelen nyilatkozatban megjelölt Zálogjogosult hitelintézetnek átadja.
B44: Zálogjogosult adatai
B45: Zálogjogosult hitelintézet neve:
B46: Székhely:
B47: Hitelszerződés azonosítója:
B48: Hitelszerződés kezdete: | H48: Hitel típusa:
B49: Hitelszerződés lejárata: | H49: Hitel összege:
B52: Kelt: | C52: =Ajánlat1!E112 -> 0 | E52: =Dátum -> 00:00:00
H54: Szerződő/Biztosított aláírása
C62: a biztosítási díj elmaradásáról az esedékességet követő 30 napon belül a Zálogjogosultat tájékoztassa.
C63: a biztosítási díj elmaradásáról az esedékességet követő 90 napon belül a Zálogjogosultat tájékoztassa.
C69: épület
C70: gép, berendezés, felszerelés
C71: készlet
C72: épület, gép, berendezés, felszerelés
C73: épület, gép, berendezés, felszerelés, készlet
C74: épület, készlet
C75: gép, berendezés, felszerelés, készlet

Sheet Munka8 (hidden)
A2: Épület | B2: Ingóság | C2: Felelősség | D2: Géptörés | E2: Üveg
A3: =Díjszámítás!M27 -> FALSE | B3: =IF(Díjszámítás!M42<5,Díjszámítás!M42,Díjszámítás!M42-4) -> -4 | C3: =Díjszámítás!M77 -> FALSE | D3: =Díjszámítás!H62+Díjszámítás!H70 -> 0 | E3: =Díjszámítás!H49 -> 0
A4: Az Limit (ÉpLimit; IngóLimit; FelLimit) munkalapokat mindig csak az első példányhoz kell kinyomtatni.
A5: Ha az Épület (A3 cella) 0, akkor nem kell kinyomtatni az Épület, és az ÉpLimit munkalapokat
A6: Ha az Épület (A3 cella) értéke 1-es, akkor ki kell kinyomtatni az Épület munkalapot, és az ÉpLimit munkap 1. Oldalát, ha a cella értéke 2-es, akkor az Épület munkalapot és az ÉpLimit munkalap 2. Oldalát, ha az érték 3-as, akkor az Épület munkalapot és az ÉpLimit munkap 3. oldalát.
A8: Ha az Ingóság (B3 cella) 0, akkor nem kell kinyomtatni az IngóLimit munkalapokat
A9: Ha az Ingóság (B3 cella) értéke 1-es, akkor ki kell kinyomtatni az Épület munkalapot, és az IngóLimit munkap 1. Oldalát, ha a cella értéke 2-es, akkor az Épület munkalapot és az IngóLimit munkalap 2. Oldalát, ha az érték 3-as, akkor az Épület munkalapot és az IngóLimit munkap 3. oldalát.
A11: Ha az Felelősség (C3 cella) 0, akkor nem kell kinyomtatni a FelLimit munkalapot
A12: Ha a Felelősség (C3 cella) értéke 1-es, akkor ki kell kinyomtatni a FelLimit munkap 1. Oldalát, ha a cella értéke 2-es, akkor a FelLimit munkalap 2. Oldalát, ha az érték 3-as, akkor a FelLimit munkap 3. oldalát.
A14: Ha a Géptörés (D3 cella) 0, akkor nem kell kinyomtatni a Géptörés-ELBER munkalapot
A15: Ha a Géptörés (D3 cella) értéke 1-es, akkor ki kell kinyomtatni a Géptörés-ELBER munkapot.
A17: Mindig ki kell nyomtatni az Ajánlat1, a Díjkalkuláció, az Épület, a Kockázatfelmérő és a Nyilatkozat munkalapokat.
A19: Ha az Üveg (E3 cella) 0, akkor nem kell kinyomtatni az ÜvegLimit munkalapot
A20: Ha az Üveg (E3 cella) értéke 1-es, akkor ki kell kinyomtatni az ÜvegLimit munkapot.

Sheet Társbiztosítotti nyilatkozat (hidden)
A1: NYILATKOZAT TÁRSBIZTOSÍTOTT BEJEGYZÉSÉHEZ
B2: Értesítés a | E2: ajánlat- vagy kötvényszámú biztosítási szerződéshez kapcsolódó
G3: változásról
A5: Union Vienna Insurance Group Biztosító Zrt.
A6: Vezérigazgatóság
A8: Budapest
A9: Baross u. 1.
A10: 1082
A13: 1. A(z) …………………..(szerződő)…………….. cégszerű képviseletében ezúton kérem Önöket, hogy a ………………. kockázatviselési kezdettel ……………………kötvényszámon Önökkel megkötött, egyedi vagyonbiztosítási szerződés esetében a szolgáltatási összeg tekintetében a finanszírozás futamidejére a …………………………….(lízingcég neve) re ( lízingcég címe.), mint Társbiztosítottat bejegyezni szíveskedjenek.
A14: 1. A(z) | B14: =Ajánlat1!E16 -> 0 | G14: cégszerű képviseletében ezúton kérem Önöket, hogy a
D15: kockázatviselési kezdettel | J15: kötvényszámon Önökkel megkötött,
A16: egyedi vagyonbiztosítási szerződés esetében a szolgáltatási összeg tekintetében a finanszírozás futamidejére a
E17: -t címe: | N17: ,
A18: mint Társbiztosítottat bejegyezni szíveskedjenek.
A20: 2. Kérem, hogy jelen levelünk kézhezvételét követően a fent megjelölt biztosítási szerződésben meghatározott biztosítási események által a biztosított ………………………………………… vagyontárgyakban bekövetkezett káresemények esetén az önrészesedést meghaladó szolgáltatási összeget legfeljebb… …………………..Ft értékhatárig közvetlenül a Társbiztosított …………………. banknál vezetett ……………………………………………………………………………..számú számlájára átutalással teljesíteni szíveskedjenek.
A21: 2. Kérem, hogy jelen levelünk kézhezvételét követően a fent megjelölt biztosítási szerződésben meghatározott biztosítási
A22: események által a biztosított | I22: vagyontárgyakban bekövetkezett káresemények
A23: esetén az önrészesedést meghaladó szolgáltatási összeget legfeljebb | K23: értékhatárig közvetlenül a
A24: Társbiztosított | G24: banknál vezetett
A25: számú számlájára átutalással teljesíteni szíveskedjenek.
A27: 3. A Társbiztosított részéről a kapcsolattartó személy:
A28: Hitelszerződés száma:
A29: Finanszírozás időtartama:
A31: 4. Vagyontárgy(ak) – vagyoncsoporton belül:
A32: megnevezés: | G32: gyáriszám:
A34: 5. Hozzájárulok ahhoz, hogy a fent megjelölt biztosítási szerződés részét képező, biztosítási titoknak
A35: minősülő adatainkat az UNION Biztosító Zrt. a társbiztosított részére megadja.
A39: Kelt.: | B39: =Ajánlat1!E112 -> 0 | E39: , | F39: =Ajánlat1!G112 -> 00:00:00
J43: szerződő

Sheet Fedezeti limittábla
